Workbook

Sheet 【準備】登録
A2: 対抗戦名称 | D2: 第 | E2: 16 | F2: 回 | G2: 和奈滋 | I2: 対抗戦
A4: 開催日 | D4: 2018-11-18
A6: 会場 | D6: キングスポット | J6: （ | K6: 奈良 | M6: ）
A8: 出場選手
A9: 前回 | B9: チーム | D9: 1 | G9: 2 | J9: 3 | M9: 4 | P9: 5 | S9: 6 | V9: 7 | Y9: 8
A10: 順位 | D10: 選手名 | F10: 点数 | G10: 選手名 | I10: 点数 | J10: 選手名 | L10: 点数 | M10: 選手名 | O10: 点数 | P10: 選手名 | R10: 点数 | S10: 選手名 | U10: 点数 | V10: 選手名 | X10: 点数 | Y10: 選手名 | AA10: 点数
A11: 3 | B11: NRC | D11: 斉藤 | F11: 180 | G11: 山田 | I11: 180 | J11: 吉向 | L11: 180 | M11: 白戸 | O11: 180 | P11: 植田 | R11: 180 | S11: 岩本 | U11: 180 | V11: 白戸 | X11: 140 | AA11: 180
A12: 2 | B12: WRC | D12: 和田 | F12: 180 | G12: 山中 | I12: 180 | J12: 末岡 | L12: 180 | M12: 杉本 | O12: 180 | P12: 大迫 | R12: 180 | S12: 中本 | U12: 180 | V12: 松房 | X12: 140 | AA12: 140
A13: 1 | B13: SBC | D13: 大橋 | F13: 180 | G13: 西峰 | I13: 180 | J13: 林 | L13: 180 | M13: 秋田 | O13: 180 | P13: 山中 | R13: 180 | S13: 柳川 | U13: 180 | V13: 大橋 | X13: 140 | AA13: 140
A15: 点数 | D15: 男性 | F15: ： | G15: M | I15: 180 | J15: 点
D16: 女性 | F16: ： | G16: W | I16: 140 | J16: 点
D18: SBC | K18: WRC | R18: NRC
C19: 1 | D19: 大橋 義治 | G19: おおはし よしはる | K19: 和田 宗一郎 | N19: わだ そういちろう | R19: 斉藤 裕児 | U19: さいとう ゆうじ
C20: 2 | D20: 西峰 久祐 | G20: にしみね ひさのり | K20: 山中 康介 | N20: やまなか こうすけ | R20: 山田 晃司 | U20: やまだ こうじ
C21: 3 | D21: 林 秀忠 | G21: はやし ひでただ | K21: 末岡 修 | N21: すえおか おさむ | R21: 吉向 翔平 | U21: きっこう しょうへい
C22: 4 | D22: 秋田 倫央 | G22: あきた みちお | K22: 杉本 博章 | N22: すぎもと ひろあき | R22: 白戸 玲人 | U22: しらと れいにん
C23: 5 | D23: 山中 康寛 | G23: やまなか やすひろ | K23: 大迫 忠典 | N23: おおさこ ただのり | R23: 植田 慎也 | U23: うえだ しんや
C24: 6 | D24: 柳川 哲也 | G24: やながわ てつや | K24: 中本 雅大 | N24: なかもと まさひろ | R24: 岩本 剛 | U24: いわもと つよし
C25: 7 | D25: 大橋 洋子 | G25: おおはし ようこ | K25: 松房 ゆかり | N25: まつふさ ゆかり | R25: 白戸 恭子 | U25: しらと きょうこ
C26: 8

Sheet 【準備】対戦カード
K1: =【結果】個人成績表!$A$1 -> 第16回 和奈滋対抗戦 (奈良；キングスポット)
B3: 印刷範囲の設定 | K3: G-No | O3: T-No
N5: 所属
N6: 氏名
N7: 得点
N8: HR
O10: レフリー
B11: =【結果】個人成績表!$A$1 -> 第16回 和奈滋対抗戦 (奈良；キングスポット) | K11: =【結果】個人成績表!$A$1 -> 第16回 和奈滋対抗戦 (奈良；キングスポット) | T11: =【結果】個人成績表!$A$1 -> 第16回 和奈滋対抗戦 (奈良；キングスポット) | AC11: =【結果】個人成績表!$A$1 -> 第16回 和奈滋対抗戦 (奈良；キングスポット) | AL11: =【結果】個人成績表!$A$1 -> 第16回 和奈滋対抗戦 (奈良；キングスポット) | AU11: =【結果】個人成績表!$A$1 -> 第16回 和奈滋対抗戦 (奈良；キングスポット) | BD11: =【結果】個人成績表!$A$1 -> 第16回 和奈滋対抗戦 (奈良；キングスポット) | BM11: =【結果】個人成績表!$A$1 -> 第16回 和奈滋対抗戦 (奈良；キングスポット)
B13: G-No | C13: =【進行】結果入力表!B7 -> 1 | F13: T-No | K13: G-No | L13: =【進行】結果入力表!B8 -> 2 | O13: T-No | T13: G-No | U13: =【進行】結果入力表!B9 -> 3 | X13: T-No | AC13: G-No | AD13: =【進行】結果入力表!B10 -> 4 | AG13: T-No | AL13: G-No | AM13: =【進行】結果入力表!B11 -> 5 | AP13: T-No | AU13: G-No | AV13: =【進行】結果入力表!B12 -> 6 | AY13: T-No | BD13: G-No | BE13: =【進行】結果入力表!B13 -> 7 | BH13: T-No | BM13: G-No | BN13: =【進行】結果入力表!B14 ->  | BQ13: T-No
B15: =VLOOKUP(C13,【進行】結果入力表!$B$7:$J$78,2,FALSE) -> NRC | E15: 所属 | F15: =VLOOKUP(C13,【進行】結果入力表!$B$7:$J$78,9,FALSE) -> SBC | K15: =VLOOKUP(L13,【進行】結果入力表!$B$7:$J$78,2,FALSE) -> NRC | N15: 所属 | O15: =VLOOKUP(L13,【進行】結果入力表!$B$7:$J$78,9,FALSE) -> SBC | T15: =VLOOKUP(U13,【進行】結果入力表!$B$7:$J$78,2,FALSE) -> NRC | W15: 所属 | X15: =VLOOKUP(U13,【進行】結果入力表!$B$7:$J$78,9,FALSE) -> SBC | AC15: =VLOOKUP(AD13,【進行】結果入力表!$B$7:$J$78,2,FALSE) -> NRC | AF15: 所属 | AG15: =VLOOKUP(AD13,【進行】結果入力表!$B$7:$J$78,9,FALSE) -> SBC | AL15: =VLOOKUP(AM13,【進行】結果入力表!$B$7:$J$78,2,FALSE) -> NRC | AO15: 所属 | AP15: =VLOOKUP(AM13,【進行】結果入力表!$B$7:$J$78,9,FALSE) -> SBC | AU15: =VLOOKUP(AV13,【進行】結果入力表!$B$7:$J$78,2,FALSE) -> NRC | AX15: 所属 | AY15: =VLOOKUP(AV13,【進行】結果入力表!$B$7:$J$78,9,FALSE) -> SBC | BD15: =VLOOKUP(BE13,【進行】結果入力表!$B$7:$J$78,2,FALSE) -> NRC | BG15: 所属 | BH15: =VLOOKUP(BE13,【進行】結果入力表!$B$7:$J$78,9,FALSE) -> SBC | BM15: =VLOOKUP(BN13,【進行】結果入力表!$B$7:$J$78,2,FALSE) -> NRC | BP15: 所属 | BQ15: =VLOOKUP(BN13,【進行】結果入力表!$B$7:$J$78,9,FALSE) -> SBC
B16: =VLOOKUP(C13,【進行】結果入力表!$B$7:$J$78,3,FALSE) -> 斉藤 | E16: 氏名 | F16: =VLOOKUP(C13,【進行】結果入力表!$B$7:$J$78,8,FALSE) -> 大橋 | K16: =VLOOKUP(L13,【進行】結果入力表!$B$7:$J$78,3,FALSE) -> 山田 | N16: 氏名 | O16: =VLOOKUP(L13,【進行】結果入力表!$B$7:$J$78,8,FALSE) -> 西峰 | T16: =VLOOKUP(U13,【進行】結果入力表!$B$7:$J$78,3,FALSE) -> 吉向 | W16: 氏名 | X16: =VLOOKUP(U13,【進行】結果入力表!$B$7:$J$78,8,FALSE) -> 林 | AC16: =VLOOKUP(AD13,【進行】結果入力表!$B$7:$J$78,3,FALSE) -> 白戸 | AF16: 氏名 | AG16: =VLOOKUP(AD13,【進行】結果入力表!$B$7:$J$78,8,FALSE) -> 秋田 | AL16: =VLOOKUP(AM13,【進行】結果入力表!$B$7:$J$78,3,FALSE) -> 植田 | AO16: 氏名 | AP16: =VLOOKUP(AM13,【進行】結果入力表!$B$7:$J$78,8,FALSE) -> 山中 | AU16: =VLOOKUP(AV13,【進行】結果入力表!$B$7:$J$78,3,FALSE) -> 岩本 | AX16: 氏名 | AY16: =VLOOKUP(AV13,【進行】結果入力表!$B$7:$J$78,8,FALSE) -> 柳川 | BD16: =VLOOKUP(BE13,【進行】結果入力表!$B$7:$J$78,3,FALSE) -> 白戸 | BG16: 氏名 | BH16: =VLOOKUP(BE13,【進行】結果入力表!$B$7:$J$78,8,FALSE) -> 大橋 | BM16: =VLOOKUP(BN13,【進行】結果入力表!$B$7:$J$78,3,FALSE) ->  | BP16: 氏名 | BQ16: =VLOOKUP(BN13,【進行】結果入力表!$B$7:$J$78,8,FALSE) -> 
E17: 得点 | N17: 得点 | W17: 得点 | AF17: 得点 | AO17: 得点 | AX17: 得点 | BG17: 得点 | BP17: 得点
E18: HR | N18: HR | W18: HR | AF18: HR | AO18: HR | AX18: HR | BG18: HR | BP18: HR
E20: レフリー： | F20: =VLOOKUP(C13,【進行】結果入力表!$B$7:$M$78,11,FALSE) -> WRC | G20: =VLOOKUP(C13,【進行】結果入力表!$B$7:$M$78,12,FALSE) -> 和田 | N20: レフリー： | O20: =VLOOKUP(L13,【進行】結果入力表!$B$7:$M$78,11,FALSE) -> WRC | P20: =VLOOKUP(L13,【進行】結果入力表!$B$7:$M$78,12,FALSE) -> 山中 | W20: レフリー： | X20: =VLOOKUP(U13,【進行】結果入力表!$B$7:$M$78,11,FALSE) -> WRC | Y20: =VLOOKUP(U13,【進行】結果入力表!$B$7:$M$78,12,FALSE) -> 末岡 | AF20: レフリー： | AG20: =VLOOKUP(AD13,【進行】結果入力表!$B$7:$M$78,11,FALSE) -> WRC | AH20: =VLOOKUP(AD13,【進行】結果入力表!$B$7:$M$78,12,FALSE) -> 杉本 | AO20: レフリー： | AP20: =VLOOKUP(AM13,【進行】結果入力表!$B$7:$M$78,11,FALSE) -> WRC | AQ20: =VLOOKUP(AM13,【進行】結果入力表!$B$7:$M$78,12,FALSE) -> 大迫 | AX20: レフリー： | AY20: =VLOOKUP(AV13,【進行】結果入力表!$B$7:$M$78,11,FALSE) -> WRC | AZ20: =VLOOKUP(AV13,【進行】結果入力表!$B$7:$M$78,12,FALSE) -> 中本 | BG20: レフリー： | BH20: =VLOOKUP(BE13,【進行】結果入力表!$B$7:$M$78,11,FALSE) -> WRC | BI20: =VLOOKUP(BE13,【進行】結果入力表!$B$7:$M$78,12,FALSE) -> 松房 | BP20: レフリー： | BQ20: =VLOOKUP(BN13,【進行】結果入力表!$B$7:$M$78,11,FALSE) -> WRC | BR20: =VLOOKUP(BN13,【進行】結果入力表!$B$7:$M$78,12,FALSE) -> 
B21: =【結果】個人成績表!$A$1 -> 第16回 和奈滋対抗戦 (奈良；キングスポット) | K21: =【結果】個人成績表!$A$1 -> 第16回 和奈滋対抗戦 (奈良；キングスポット) | T21: =【結果】個人成績表!$A$1 -> 第16回 和奈滋対抗戦 (奈良；キングスポット) | AC21: =【結果】個人成績表!$A$1 -> 第16回 和奈滋対抗戦 (奈良；キングスポット) | AL21: =【結果】個人成績表!$A$1 -> 第16回 和奈滋対抗戦 (奈良；キングスポット) | AU21: =【結果】個人成績表!$A$1 -> 第16回 和奈滋対抗戦 (奈良；キングスポット) | BD21: =【結果】個人成績表!$A$1 -> 第16回 和奈滋対抗戦 (奈良；キングスポット) | BM21: =【結果】個人成績表!$A$1 -> 第16回 和奈滋対抗戦 (奈良；キングスポット)
B23: G-No | C23: =【進行】結果入力表!B15 -> 8 | F23: T-No | K23: G-No | L23: =【進行】結果入力表!B16 -> 9 | O23: T-No | T23: G-No | U23: =【進行】結果入力表!B17 -> 10 | X23: T-No | AC23: G-No | AD23: =【進行】結果入力表!B18 -> 11 | AG23: T-No | AL23: G-No | AM23: =【進行】結果入力表!B19 -> 12 | AP23: T-No | AU23: G-No | AV23: =【進行】結果入力表!B20 -> 13 | AY23: T-No | BD23: G-No | BE23: =【進行】結果入力表!B21 -> 14 | BH23: T-No | BM23: G-No | BN23: =【進行】結果入力表!B22 ->  | BQ23: T-No
B25: =VLOOKUP(C23,【進行】結果入力表!$B$7:$J$78,2,FALSE) -> NRC | E25: 所属 | F25: =VLOOKUP(C23,【進行】結果入力表!$B$7:$J$78,9,FALSE) -> WRC | K25: =VLOOKUP(L23,【進行】結果入力表!$B$7:$J$78,2,FALSE) -> NRC | N25: 所属 | O25: =VLOOKUP(L23,【進行】結果入力表!$B$7:$J$78,9,FALSE) -> WRC | T25: =VLOOKUP(U23,【進行】結果入力表!$B$7:$J$78,2,FALSE) -> NRC | W25: 所属 | X25: =VLOOKUP(U23,【進行】結果入力表!$B$7:$J$78,9,FALSE) -> WRC | AC25: =VLOOKUP(AD23,【進行】結果入力表!$B$7:$J$78,2,FALSE) -> NRC | AF25: 所属 | AG25: =VLOOKUP(AD23,【進行】結果入力表!$B$7:$J$78,9,FALSE) -> WRC | AL25: =VLOOKUP(AM23,【進行】結果入力表!$B$7:$J$78,2,FALSE) -> NRC | AO25: 所属 | AP25: =VLOOKUP(AM23,【進行】結果入力表!$B$7:$J$78,9,FALSE) -> WRC | AU25: =VLOOKUP(AV23,【進行】結果入力表!$B$7:$J$78,2,FALSE) -> NRC | AX25: 所属 | AY25: =VLOOKUP(AV23,【進行】結果入力表!$B$7:$J$78,9,FALSE) -> WRC | BD25: =VLOOKUP(BE23,【進行】結果入力表!$B$7:$J$78,2,FALSE) -> NRC | BG25: 所属 | BH25: =VLOOKUP(BE23,【進行】結果入力表!$B$7:$J$78,9,FALSE) -> WRC | BM25: =VLOOKUP(BN23,【進行】結果入力表!$B$7:$J$78,2,FALSE) -> NRC | BP25: 所属 | BQ25: =VLOOKUP(BN23,【進行】結果入力表!$B$7:$J$78,9,FALSE) -> SBC
B26: =VLOOKUP(C23,【進行】結果入力表!$B$7:$J$78,3,FALSE) -> 斉藤 | E26: 氏名 | F26: =VLOOKUP(C23,【進行】結果入力表!$B$7:$J$78,8,FALSE) -> 和田 | K26: =VLOOKUP(L23,【進行】結果入力表!$B$7:$J$78,3,FALSE) -> 山田 | N26: 氏名 | O26: =VLOOKUP(L23,【進行】結果入力表!$B$7:$J$78,8,FALSE) -> 山中 | T26: =VLOOKUP(U23,【進行】結果入力表!$B$7:$J$78,3,FALSE) -> 吉向 | W26: 氏名 | X26: =VLOOKUP(U23,【進行】結果入力表!$B$7:$J$78,8,FALSE) -> 末岡 | AC26: =VLOOKUP(AD23,【進行】結果入力表!$B$7:$J$78,3,FALSE) -> 白戸 | AF26: 氏名 | AG26: =VLOOKUP(AD23,【進行】結果入力表!$B$7:$J$78,8,FALSE) -> 杉本 | AL26: =VLOOKUP(AM23,【進行】結果入力表!$B$7:$J$78,3,FALSE) -> 植田 | AO26: 氏名 | AP26: =VLOOKUP(AM23,【進行】結果入力表!$B$7:$J$78,8,FALSE) -> 大迫 | AU26: =VLOOKUP(AV23,【進行】結果入力表!$B$7:$J$78,3,FALSE) -> 岩本 | AX26: 氏名 | AY26: =VLOOKUP(AV23,【進行】結果入力表!$B$7:$J$78,8,FALSE) -> 中本 | BD26: =VLOOKUP(BE23,【進行】結果入力表!$B$7:$J$78,3,FALSE) -> 白戸 | BG26: 氏名 | BH26: =VLOOKUP(BE23,【進行】結果入力表!$B$7:$J$78,8,FALSE) -> 松房 | BM26: =VLOOKUP(BN23,【進行】結果入力表!$B$7:$J$78,3,FALSE) ->  | BP26: 氏名 | BQ26: =VLOOKUP(BN23,【進行】結果入力表!$B$7:$J$78,8,FALSE) -> 
E27: 得点 | N27: 得点 | W27: 得点 | AF27: 得点 | AO27: 得点 | AX27: 得点 | BG27: 得点 | BP27: 得点
E28: HR | N28: HR | W28: HR | AF28: HR | AO28: HR | AX28: HR | BG28: HR | BP28: HR
E30: レフリー： | F30: =VLOOKUP(C23,【進行】結果入力表!$B$7:$M$78,11,FALSE) -> SBC | G30: =VLOOKUP(C23,【進行】結果入力表!$B$7:$M$78,12,FALSE) -> 大橋 | N30: レフリー： | O30: =VLOOKUP(L23,【進行】結果入力表!$B$7:$M$78,11,FALSE) -> SBC | P30: =VLOOKUP(L23,【進行】結果入力表!$B$7:$M$78,12,FALSE) -> 西峰 | W30: レフリー： | X30: =VLOOKUP(U23,【進行】結果入力表!$B$7:$M$78,11,FALSE) -> SBC | Y30: =VLOOKUP(U23,【進行】結果入力表!$B$7:$M$78,12,FALSE) -> 林 | AF30: レフリー： | AG30: =VLOOKUP(AD23,【進行】結果入力表!$B$7:$M$78,11,FALSE) -> SBC | AH30: =VLOOKUP(AD23,【進行】結果入力表!$B$7:$M$78,12,FALSE) -> 秋田 | AO30: レフリー： | AP30: =VLOOKUP(AM23,【進行】結果入力表!$B$7:$M$78,11,FALSE) -> SBC | AQ30: =VLOOKUP(AM23,【進行】結果入力表!$B$7:$M$78,12,FALSE) -> 山中 | AX30: レフリー： | AY30: =VLOOKUP(AV23,【進行】結果入力表!$B$7:$M$78,11,FALSE) -> SBC | AZ30: =VLOOKUP(AV23,【進行】結果入力表!$B$7:$M$78,12,FALSE) -> 柳川 | BG30: レフリー： | BH30: =VLOOKUP(BE23,【進行】結果入力表!$B$7:$M$78,11,FALSE) -> SBC | BI30: =VLOOKUP(BE23,【進行】結果入力表!$B$7:$M$78,12,FALSE) -> 大橋 | BP30: レフリー： | BQ30: =VLOOKUP(BN23,【進行】結果入力表!$B$7:$M$78,11,FALSE) -> WRC | BR30: =VLOOKUP(BN23,【進行】結果入力表!$B$7:$M$78,12,FALSE) -> 
B31: =【結果】個人成績表!$A$1 -> 第16回 和奈滋対抗戦 (奈良；キングスポット) | K31: =【結果】個人成績表!$A$1 -> 第16回 和奈滋対抗戦 (奈良；キングスポット) | T31: =【結果】個人成績表!$A$1 -> 第16回 和奈滋対抗戦 (奈良；キングスポット) | AC31: =【結果】個人成績表!$A$1 -> 第16回 和奈滋対抗戦 (奈良；キングスポット) | AL31: =【結果】個人成績表!$A$1 -> 第16回 和奈滋対抗戦 (奈良；キングスポット) | AU31: =【結果】個人成績表!$A$1 -> 第16回 和奈滋対抗戦 (奈良；キングスポット) | BD31: =【結果】個人成績表!$A$1 -> 第16回 和奈滋対抗戦 (奈良；キングスポット) | BM31: =【結果】個人成績表!$A$1 -> 第16回 和奈滋対抗戦 (奈良；キングスポット)
B33: G-No | C33: =【進行】結果入力表!B23 -> 15 | F33: T-No | K33: G-No | L33: =【進行】結果入力表!B24 -> 16 | O33: T-No | T33: G-No | U33: =【進行】結果入力表!B25 -> 17 | X33: T-No | AC33: G-No | AD33: =【進行】結果入力表!B26 -> 18 | AG33: T-No | AL33: G-No | AM33: =【進行】結果入力表!B27 -> 19 | AP33: T-No | AU33: G-No | AV33: =【進行】結果入力表!B28 -> 20 | AY33: T-No | BD33: G-No | BE33: =【進行】結果入力表!B29 -> 21 | BH33: T-No | BM33: G-No | BN33: =【進行】結果入力表!B30 ->  | BQ33: T-No
B35: =VLOOKUP(C33,【進行】結果入力表!$B$7:$J$78,2,FALSE) -> WRC | E35: 所属 | F35: =VLOOKUP(C33,【進行】結果入力表!$B$7:$J$78,9,FALSE) -> SBC | K35: =VLOOKUP(L33,【進行】結果入力表!$B$7:$J$78,2,FALSE) -> WRC | N35: 所属 | O35: =VLOOKUP(L33,【進行】結果入力表!$B$7:$J$78,9,FALSE) -> SBC | T35: =VLOOKUP(U33,【進行】結果入力表!$B$7:$J$78,2,FALSE) -> WRC | W35: 所属 | X35: =VLOOKUP(U33,【進行】結果入力表!$B$7:$J$78,9,FALSE) -> SBC | AC35: =VLOOKUP(AD33,【進行】結果入力表!$B$7:$J$78,2,FALSE) -> WRC | AF35: 所属 | AG35: =VLOOKUP(AD33,【進行】結果入力表!$B$7:$J$78,9,FALSE) -> SBC | AL35: =VLOOKUP(AM33,【進行】結果入力表!$B$7:$J$78,2,FALSE) -> WRC | AO35: 所属 | AP35: =VLOOKUP(AM33,【進行】結果入力表!$B$7:$J$78,9,FALSE) -> SBC | AU35: =VLOOKUP(AV33,【進行】結果入力表!$B$7:$J$78,2,FALSE) -> WRC | AX35: 所属 | AY35: =VLOOKUP(AV33,【進行】結果入力表!$B$7:$J$78,9,FALSE) -> SBC | BD35: =VLOOKUP(BE33,【進行】結果入力表!$B$7:$J$78,2,FALSE) -> WRC | BG35: 所属 | BH35: =VLOOKUP(BE33,【進行】結果入力表!$B$7:$J$78,9,FALSE) -> SBC | BM35: =VLOOKUP(BN33,【進行】結果入力表!$B$7:$J$78,2,FALSE) -> NRC | BP35: 所属 | BQ35: =VLOOKUP(BN33,【進行】結果入力表!$B$7:$J$78,9,FALSE) -> SBC
B36: =VLOOKUP(C33,【進行】結果入力表!$B$7:$J$78,3,FALSE) -> 和田 | E36: 氏名 | F36: =VLOOKUP(C33,【進行】結果入力表!$B$7:$J$78,8,FALSE) -> 大橋 | K36: =VLOOKUP(L33,【進行】結果入力表!$B$7:$J$78,3,FALSE) -> 山中 | N36: 氏名 | O36: =VLOOKUP(L33,【進行】結果入力表!$B$7:$J$78,8,FALSE) -> 西峰 | T36: =VLOOKUP(U33,【進行】結果入力表!$B$7:$J$78,3,FALSE) -> 末岡 | W36: 氏名 | X36: =VLOOKUP(U33,【進行】結果入力表!$B$7:$J$78,8,FALSE) -> 林 | AC36: =VLOOKUP(AD33,【進行】結果入力表!$B$7:$J$78,3,FALSE) -> 杉本 | AF36: 氏名 | AG36: =VLOOKUP(AD33,【進行】結果入力表!$B$7:$J$78,8,FALSE) -> 秋田 | AL36: =VLOOKUP(AM33,【進行】結果入力表!$B$7:$J$78,3,FALSE) -> 大迫 | AO36: 氏名 | AP36: =VLOOKUP(AM33,【進行】結果入力表!$B$7:$J$78,8,FALSE) -> 山中 | AU36: =VLOOKUP(AV33,【進行】結果入力表!$B$7:$J$78,3,FALSE) -> 中本 | AX36: 氏名 | AY36: =VLOOKUP(AV33,【進行】結果入力表!$B$7:$J$78,8,FALSE) -> 柳川 | BD36: =VLOOKUP(BE33,【進行】結果入力表!$B$7:$J$78,3,FALSE) -> 松房 | BG36: 氏名 | BH36: =VLOOKUP(BE33,【進行】結果入力表!$B$7:$J$78,8,FALSE) -> 大橋 | BM36: =VLOOKUP(BN33,【進行】結果入力表!$B$7:$J$78,3,FALSE) ->  | BP36: 氏名 | BQ36: =VLOOKUP(BN33,【進行】結果入力表!$B$7:$J$78,8,FALSE) -> 
E37: 得点 | N37: 得点 | W37: 得点 | AF37: 得点 | AO37: 得点 | AX37: 得点 | BG37: 得点 | BP37: 得点
E38: HR | N38: HR | W38: HR | AF38: HR | AO38: HR | AX38: HR | BG38: HR | BP38: HR
E40: レフリー： | F40: =VLOOKUP(C33,【進行】結果入力表!$B$7:$M$78,11,FALSE) -> NRC | G40: =VLOOKUP(C33,【進行】結果入力表!$B$7:$M$78,12,FALSE) -> 斉藤 | N40: レフリー： | O40: =VLOOKUP(L33,【進行】結果入力表!$B$7:$M$78,11,FALSE) -> NRC | P40: =VLOOKUP(L33,【進行】結果入力表!$B$7:$M$78,12,FALSE) -> 山田 | W40: レフリー： | X40: =VLOOKUP(U33,【進行】結果入力表!$B$7:$M$78,11,FALSE) -> NRC | Y40: =VLOOKUP(U33,【進行】結果入力表!$B$7:$M$78,12,FALSE) -> 吉向 | AF40: レフリー： | AG40: =VLOOKUP(AD33,【進行】結果入力表!$B$7:$M$78,11,FALSE) -> NRC | AH40: =VLOOKUP(AD33,【進行】結果入力表!$B$7:$M$78,12,FALSE) -> 白戸 | AO40: レフリー： | AP40: =VLOOKUP(AM33,【進行】結果入力表!$B$7:$M$78,11,FALSE) -> NRC | AQ40: =VLOOKUP(AM33,【進行】結果入力表!$B$7:$M$78,12,FALSE) -> 植田 | AX40: レフリー： | AY40: =VLOOKUP(AV33,【進行】結果入力表!$B$7:$M$78,11,FALSE) -> NRC | AZ40: =VLOOKUP(AV33,【進行】結果入力表!$B$7:$M$78,12,FALSE) -> 岩本 | BG40: レフリー： | BH40: =VLOOKUP(BE33,【進行】結果入力表!$B$7:$M$78,11,FALSE) -> NRC | BI40: =VLOOKUP(BE33,【進行】結果入力表!$B$7:$M$78,12,FALSE) -> 白戸 | BP40: レフリー： | BQ40: =VLOOKUP(BN33,【進行】結果入力表!$B$7:$M$78,11,FALSE) -> WRC | BR40: =VLOOKUP(BN33,【進行】結果入力表!$B$7:$M$78,12,FALSE) -> 
B41: =【結果】個人成績表!$A$1 -> 第16回 和奈滋対抗戦 (奈良；キングスポット) | K41: =【結果】個人成績表!$A$1 -> 第16回 和奈滋対抗戦 (奈良；キングスポット) | T41: =【結果】個人成績表!$A$1 -> 第16回 和奈滋対抗戦 (奈良；キングスポット) | AC41: =【結果】個人成績表!$A$1 -> 第16回 和奈滋対抗戦 (奈良；キングスポット) | AL41: =【結果】個人成績表!$A$1 -> 第16回 和奈滋対抗戦 (奈良；キングスポット) | AU41: =【結果】個人成績表!$A$1 -> 第16回 和奈滋対抗戦 (奈良；キングスポット) | BD41: =【結果】個人成績表!$A$1 -> 第16回 和奈滋対抗戦 (奈良；キングスポット) | BM41: =【結果】個人成績表!$A$1 -> 第16回 和奈滋対抗戦 (奈良；キングスポット)
B43: G-No | C43: =【進行】結果入力表!B31 -> 22 | F43: T-No | K43: G-No | L43: =【進行】結果入力表!B32 -> 23 | O43: T-No | T43: G-No | U43: =【進行】結果入力表!B33 -> 24 | X43: T-No | AC43: G-No | AD43: =【進行】結果入力表!B34 -> 25 | AG43: T-No | AL43: G-No | AM43: =【進行】結果入力表!B35 -> 26 | AP43: T-No | AU43: G-No | AV43: =【進行】結果入力表!B36 -> 27 | AY43: T-No | BD43: G-No | BE43: =【進行】結果入力表!B37 -> 28 | BH43: T-No | BM43: G-No | BN43: =【進行】結果入力表!B38 ->  | BQ43: T-No
B45: =VLOOKUP(C43,【進行】結果入力表!$B$7:$J$78,2,FALSE) -> NRC | E45: 所属 | F45: =VLOOKUP(C43,【進行】結果入力表!$B$7:$J$78,9,FALSE) -> SBC | K45: =VLOOKUP(L43,【進行】結果入力表!$B$7:$J$78,2,FALSE) -> NRC | N45: 所属 | O45: =VLOOKUP(L43,【進行】結果入力表!$B$7:$J$78,9,FALSE) -> SBC | T45: =VLOOKUP(U43,【進行】結果入力表!$B$7:$J$78,2,FALSE) -> NRC | W45: 所属 | X45: =VLOOKUP(U43,【進行】結果入力表!$B$7:$J$78,9,FALSE) -> SBC | AC45: =VLOOKUP(AD43,【進行】結果入力表!$B$7:$J$78,2,FALSE) -> NRC | AF45: 所属 | AG45: =VLOOKUP(AD43,【進行】結果入力表!$B$7:$J$78,9,FALSE) -> SBC | AL45: =VLOOKUP(AM43,【進行】結果入力表!$B$7:$J$78,2,FALSE) -> NRC | AO45: 所属 | AP45: =VLOOKUP(AM43,【進行】結果入力表!$B$7:$J$78,9,FALSE) -> SBC | AU45: =VLOOKUP(AV43,【進行】結果入力表!$B$7:$J$78,2,FALSE) -> NRC | AX45: 所属 | AY45: =VLOOKUP(AV43,【進行】結果入力表!$B$7:$J$78,9,FALSE) -> SBC | BD45: =VLOOKUP(BE43,【進行】結果入力表!$B$7:$J$78,2,FALSE) -> NRC | BG45: 所属 | BH45: =VLOOKUP(BE43,【進行】結果入力表!$B$7:$J$78,9,FALSE) -> SBC | BM45: =VLOOKUP(BN43,【進行】結果入力表!$B$7:$J$78,2,FALSE) -> NRC | BP45: 所属 | BQ45: =VLOOKUP(BN43,【進行】結果入力表!$B$7:$J$78,9,FALSE) -> SBC
B46: =VLOOKUP(C43,【進行】結果入力表!$B$7:$J$78,3,FALSE) -> 岩本 | E46: 氏名 | F46: =VLOOKUP(C43,【進行】結果入力表!$B$7:$J$78,8,FALSE) -> 大橋 | K46: =VLOOKUP(L43,【進行】結果入力表!$B$7:$J$78,3,FALSE) -> 白戸 | N46: 氏名 | O46: =VLOOKUP(L43,【進行】結果入力表!$B$7:$J$78,8,FALSE) -> 西峰 | T46: =VLOOKUP(U43,【進行】結果入力表!$B$7:$J$78,3,FALSE) -> 斉藤 | W46: 氏名 | X46: =VLOOKUP(U43,【進行】結果入力表!$B$7:$J$78,8,FALSE) -> 林 | AC46: =VLOOKUP(AD43,【進行】結果入力表!$B$7:$J$78,3,FALSE) -> 山田 | AF46: 氏名 | AG46: =VLOOKUP(AD43,【進行】結果入力表!$B$7:$J$78,8,FALSE) -> 秋田 | AL46: =VLOOKUP(AM43,【進行】結果入力表!$B$7:$J$78,3,FALSE) -> 吉向 | AO46: 氏名 | AP46: =VLOOKUP(AM43,【進行】結果入力表!$B$7:$J$78,8,FALSE) -> 山中 | AU46: =VLOOKUP(AV43,【進行】結果入力表!$B$7:$J$78,3,FALSE) -> 白戸 | AX46: 氏名 | AY46: =VLOOKUP(AV43,【進行】結果入力表!$B$7:$J$78,8,FALSE) -> 柳川 | BD46: =VLOOKUP(BE43,【進行】結果入力表!$B$7:$J$78,3,FALSE) -> 植田 | BG46: 氏名 | BH46: =VLOOKUP(BE43,【進行】結果入力表!$B$7:$J$78,8,FALSE) -> 大橋 | BM46: =VLOOKUP(BN43,【進行】結果入力表!$B$7:$J$78,3,FALSE) ->  | BP46: 氏名 | BQ46: =VLOOKUP(BN43,【進行】結果入力表!$B$7:$J$78,8,FALSE) -> 
E47: 得点 | N47: 得点 | W47: 得点 | AF47: 得点 | AO47: 得点 | AX47: 得点 | BG47: 得点 | BP47: 得点
E48: HR | N48: HR | W48: HR | AF48: HR | AO48: HR | AX48: HR | BG48: HR | BP48: HR
E50: レフリー： | F50: =VLOOKUP(C43,【進行】結果入力表!$B$7:$M$78,11,FALSE) -> WRC | G50: =VLOOKUP(C43,【進行】結果入力表!$B$7:$M$78,12,FALSE) -> 松房 | N50: レフリー： | O50: =VLOOKUP(L43,【進行】結果入力表!$B$7:$M$78,11,FALSE) -> WRC | P50: =VLOOKUP(L43,【進行】結果入力表!$B$7:$M$78,12,FALSE) -> 和田 | W50: レフリー： | X50: =VLOOKUP(U43,【進行】結果入力表!$B$7:$M$78,11,FALSE) -> WRC | Y50: =VLOOKUP(U43,【進行】結果入力表!$B$7:$M$78,12,FALSE) -> 山中 | AF50: レフリー： | AG50: =VLOOKUP(AD43,【進行】結果入力表!$B$7:$M$78,11,FALSE) -> WRC | AH50: =VLOOKUP(AD43,【進行】結果入力表!$B$7:$M$78,12,FALSE) -> 末岡 | AO50: レフリー： | AP50: =VLOOKUP(AM43,【進行】結果入力表!$B$7:$M$78,11,FALSE) -> WRC | AQ50: =VLOOKUP(AM43,【進行】結果入力表!$B$7:$M$78,12,FALSE) -> 杉本 | AX50: レフリー： | AY50: =VLOOKUP(AV43,【進行】結果入力表!$B$7:$M$78,11,FALSE) -> WRC | AZ50: =VLOOKUP(AV43,【進行】結果入力表!$B$7:$M$78,12,FALSE) -> 大迫 | BG50: レフリー： | BH50: =VLOOKUP(BE43,【進行】結果入力表!$B$7:$M$78,11,FALSE) -> WRC | BI50: =VLOOKUP(BE43,【進行】結果入力表!$B$7:$M$78,12,FALSE) -> 中本 | BP50: レフリー： | BQ50: =VLOOKUP(BN43,【進行】結果入力表!$B$7:$M$78,11,FALSE) -> WRC | BR50: =VLOOKUP(BN43,【進行】結果入力表!$B$7:$M$78,12,FALSE) -> 
B51: =【結果】個人成績表!$A$1 -> 第16回 和奈滋対抗戦 (奈良；キングスポット) | K51: =【結果】個人成績表!$A$1 -> 第16回 和奈滋対抗戦 (奈良；キングスポット) | T51: =【結果】個人成績表!$A$1 -> 第16回 和奈滋対抗戦 (奈良；キングスポット) | AC51: =【結果】個人成績表!$A$1 -> 第16回 和奈滋対抗戦 (奈良；キングスポット) | AL51: =【結果】個人成績表!$A$1 -> 第16回 和奈滋対抗戦 (奈良；キングスポット) | AU51: =【結果】個人成績表!$A$1 -> 第16回 和奈滋対抗戦 (奈良；キングスポット) | BD51: =【結果】個人成績表!$A$1 -> 第16回 和奈滋対抗戦 (奈良；キングスポット) | BM51: =【結果】個人成績表!$A$1 -> 第16回 和奈滋対抗戦 (奈良；キングスポット)
B53: G-No | C53: =【進行】結果入力表!B39 -> 29 | F53: T-No | K53: G-No | L53: =【進行】結果入力表!B40 -> 30 | O53: T-No | T53: G-No | U53: =【進行】結果入力表!B41 -> 31 | X53: T-No | AC53: G-No | AD53: =【進行】結果入力表!B42 -> 32 | AG53: T-No | AL53: G-No | AM53: =【進行】結果入力表!B43 -> 33 | AP53: T-No | AU53: G-No | AV53: =【進行】結果入力表!B44 -> 34 | AY53: T-No | BD53: G-No | BE53: =【進行】結果入力表!B45 -> 35 | BH53: T-No | BM53: G-No | BN53: =【進行】結果入力表!B46 ->  | BQ53: T-No
B55: =VLOOKUP(C53,【進行】結果入力表!$B$7:$J$78,2,FALSE) -> NRC | E55: 所属 | F55: =VLOOKUP(C53,【進行】結果入力表!$B$7:$J$78,9,FALSE) -> WRC | K55: =VLOOKUP(L53,【進行】結果入力表!$B$7:$J$78,2,FALSE) -> NRC | N55: 所属 | O55: =VLOOKUP(L53,【進行】結果入力表!$B$7:$J$78,9,FALSE) -> WRC | T55: =VLOOKUP(U53,【進行】結果入力表!$B$7:$J$78,2,FALSE) -> NRC | W55: 所属 | X55: =VLOOKUP(U53,【進行】結果入力表!$B$7:$J$78,9,FALSE) -> WRC | AC55: =VLOOKUP(AD53,【進行】結果入力表!$B$7:$J$78,2,FALSE) -> NRC | AF55: 所属 | AG55: =VLOOKUP(AD53,【進行】結果入力表!$B$7:$J$78,9,FALSE) -> WRC | AL55: =VLOOKUP(AM53,【進行】結果入力表!$B$7:$J$78,2,FALSE) -> NRC | AO55: 所属 | AP55: =VLOOKUP(AM53,【進行】結果入力表!$B$7:$J$78,9,FALSE) -> WRC | AU55: =VLOOKUP(AV53,【進行】結果入力表!$B$7:$J$78,2,FALSE) -> NRC | AX55: 所属 | AY55: =VLOOKUP(AV53,【進行】結果入力表!$B$7:$J$78,9,FALSE) -> WRC | BD55: =VLOOKUP(BE53,【進行】結果入力表!$B$7:$J$78,2,FALSE) -> NRC | BG55: 所属 | BH55: =VLOOKUP(BE53,【進行】結果入力表!$B$7:$J$78,9,FALSE) -> WRC | BM55: =VLOOKUP(BN53,【進行】結果入力表!$B$7:$J$78,2,FALSE) -> NRC | BP55: 所属 | BQ55: =VLOOKUP(BN53,【進行】結果入力表!$B$7:$J$78,9,FALSE) -> SBC
B56: =VLOOKUP(C53,【進行】結果入力表!$B$7:$J$78,3,FALSE) -> 岩本 | E56: 氏名 | F56: =VLOOKUP(C53,【進行】結果入力表!$B$7:$J$78,8,FALSE) -> 松房 | K56: =VLOOKUP(L53,【進行】結果入力表!$B$7:$J$78,3,FALSE) -> 白戸 | N56: 氏名 | O56: =VLOOKUP(L53,【進行】結果入力表!$B$7:$J$78,8,FALSE) -> 和田 | T56: =VLOOKUP(U53,【進行】結果入力表!$B$7:$J$78,3,FALSE) -> 斉藤 | W56: 氏名 | X56: =VLOOKUP(U53,【進行】結果入力表!$B$7:$J$78,8,FALSE) -> 山中 | AC56: =VLOOKUP(AD53,【進行】結果入力表!$B$7:$J$78,3,FALSE) -> 山田 | AF56: 氏名 | AG56: =VLOOKUP(AD53,【進行】結果入力表!$B$7:$J$78,8,FALSE) -> 末岡 | AL56: =VLOOKUP(AM53,【進行】結果入力表!$B$7:$J$78,3,FALSE) -> 吉向 | AO56: 氏名 | AP56: =VLOOKUP(AM53,【進行】結果入力表!$B$7:$J$78,8,FALSE) -> 杉本 | AU56: =VLOOKUP(AV53,【進行】結果入力表!$B$7:$J$78,3,FALSE) -> 白戸 | AX56: 氏名 | AY56: =VLOOKUP(AV53,【進行】結果入力表!$B$7:$J$78,8,FALSE) -> 大迫 | BD56: =VLOOKUP(BE53,【進行】結果入力表!$B$7:$J$78,3,FALSE) -> 植田 | BG56: 氏名 | BH56: =VLOOKUP(BE53,【進行】結果入力表!$B$7:$J$78,8,FALSE) -> 中本 | BM56: =VLOOKUP(BN53,【進行】結果入力表!$B$7:$J$78,3,FALSE) ->  | BP56: 氏名 | BQ56: =VLOOKUP(BN53,【進行】結果入力表!$B$7:$J$78,8,FALSE) -> 
E57: 得点 | N57: 得点 | W57: 得点 | AF57: 得点 | AO57: 得点 | AX57: 得点 | BG57: 得点 | BP57: 得点
E58: HR | N58: HR | W58: HR | AF58: HR | AO58: HR | AX58: HR | BG58: HR | BP58: HR
E60: レフリー： | F60: =VLOOKUP(C53,【進行】結果入力表!$B$7:$M$78,11,FALSE) -> SBC | G60: =VLOOKUP(C53,【進行】結果入力表!$B$7:$M$78,12,FALSE) -> 大橋 | N60: レフリー： | O60: =VLOOKUP(L53,【進行】結果入力表!$B$7:$M$78,11,FALSE) -> SBC | P60: =VLOOKUP(L53,【進行】結果入力表!$B$7:$M$78,12,FALSE) -> 西峰 | W60: レフリー： | X60: =VLOOKUP(U53,【進行】結果入力表!$B$7:$M$78,11,FALSE) -> SBC | Y60: =VLOOKUP(U53,【進行】結果入力表!$B$7:$M$78,12,FALSE) -> 林 | AF60: レフリー： | AG60: =VLOOKUP(AD53,【進行】結果入力表!$B$7:$M$78,11,FALSE) -> SBC | AH60: =VLOOKUP(AD53,【進行】結果入力表!$B$7:$M$78,12,FALSE) -> 秋田 | AO60: レフリー： | AP60: =VLOOKUP(AM53,【進行】結果入力表!$B$7:$M$78,11,FALSE) -> SBC | AQ60: =VLOOKUP(AM53,【進行】結果入力表!$B$7:$M$78,12,FALSE) -> 山中 | AX60: レフリー： | AY60: =VLOOKUP(AV53,【進行】結果入力表!$B$7:$M$78,11,FALSE) -> SBC | AZ60: =VLOOKUP(AV53,【進行】結果入力表!$B$7:$M$78,12,FALSE) -> 柳川 | BG60: レフリー： | BH60: =VLOOKUP(BE53,【進行】結果入力表!$B$7:$M$78,11,FALSE) -> SBC | BI60: =VLOOKUP(BE53,【進行】結果入力表!$B$7:$M$78,12,FALSE) -> 大橋 | BP60: レフリー： | BQ60: =VLOOKUP(BN53,【進行】結果入力表!$B$7:$M$78,11,FALSE) -> WRC | BR60: =VLOOKUP(BN53,【進行】結果入力表!$B$7:$M$78,12,FALSE) -> 
B61: =【結果】個人成績表!$A$1 -> 第16回 和奈滋対抗戦 (奈良；キングスポット) | K61: =【結果】個人成績表!$A$1 -> 第16回 和奈滋対抗戦 (奈良；キングスポット) | T61: =【結果】個人成績表!$A$1 -> 第16回 和奈滋対抗戦 (奈良；キングスポット) | AC61: =【結果】個人成績表!$A$1 -> 第16回 和奈滋対抗戦 (奈良；キングスポット) | AL61: =【結果】個人成績表!$A$1 -> 第16回 和奈滋対抗戦 (奈良；キングスポット) | AU61: =【結果】個人成績表!$A$1 -> 第16回 和奈滋対抗戦 (奈良；キングスポット) | BD61: =【結果】個人成績表!$A$1 -> 第16回 和奈滋対抗戦 (奈良；キングスポット) | BM61: =【結果】個人成績表!$A$1 -> 第16回 和奈滋対抗戦 (奈良；キングスポット)
B63: G-No | C63: =【進行】結果入力表!B47 -> 36 | F63: T-No | K63: G-No | L63: =【進行】結果入力表!B48 -> 37 | O63: T-No | T63: G-No | U63: =【進行】結果入力表!B49 -> 38 | X63: T-No | AC63: G-No | AD63: =【進行】結果入力表!B50 -> 39 | AG63: T-No | AL63: G-No | AM63: =【進行】結果入力表!B51 -> 40 | AP63: T-No | AU63: G-No | AV63: =【進行】結果入力表!B52 -> 41 | AY63: T-No | BD63: G-No | BE63: =【進行】結果入力表!B53 -> 42 | BH63: T-No | BM63: G-No | BN63: =【進行】結果入力表!B54 ->  | BQ63: T-No
B65: =VLOOKUP(C63,【進行】結果入力表!$B$7:$J$78,2,FALSE) -> WRC | E65: 所属 | F65: =VLOOKUP(C63,【進行】結果入力表!$B$7:$J$78,9,FALSE) -> SBC | K65: =VLOOKUP(L63,【進行】結果入力表!$B$7:$J$78,2,FALSE) -> WRC | N65: 所属 | O65: =VLOOKUP(L63,【進行】結果入力表!$B$7:$J$78,9,FALSE) -> SBC | T65: =VLOOKUP(U63,【進行】結果入力表!$B$7:$J$78,2,FALSE) -> WRC | W65: 所属 | X65: =VLOOKUP(U63,【進行】結果入力表!$B$7:$J$78,9,FALSE) -> SBC | AC65: =VLOOKUP(AD63,【進行】結果入力表!$B$7:$J$78,2,FALSE) -> WRC | AF65: 所属 | AG65: =VLOOKUP(AD63,【進行】結果入力表!$B$7:$J$78,9,FALSE) -> SBC | AL65: =VLOOKUP(AM63,【進行】結果入力表!$B$7:$J$78,2,FALSE) -> WRC | AO65: 所属 | AP65: =VLOOKUP(AM63,【進行】結果入力表!$B$7:$J$78,9,FALSE) -> SBC | AU65: =VLOOKUP(AV63,【進行】結果入力表!$B$7:$J$78,2,FALSE) -> WRC | AX65: 所属 | AY65: =VLOOKUP(AV63,【進行】結果入力表!$B$7:$J$78,9,FALSE) -> SBC | BD65: =VLOOKUP(BE63,【進行】結果入力表!$B$7:$J$78,2,FALSE) -> WRC | BG65: 所属 | BH65: =VLOOKUP(BE63,【進行】結果入力表!$B$7:$J$78,9,FALSE) -> SBC | BM65: =VLOOKUP(BN63,【進行】結果入力表!$B$7:$J$78,2,FALSE) -> NRC | BP65: 所属 | BQ65: =VLOOKUP(BN63,【進行】結果入力表!$B$7:$J$78,9,FALSE) -> SBC
B66: =VLOOKUP(C63,【進行】結果入力表!$B$7:$J$78,3,FALSE) -> 松房 | E66: 氏名 | F66: =VLOOKUP(C63,【進行】結果入力表!$B$7:$J$78,8,FALSE) -> 大橋 | K66: =VLOOKUP(L63,【進行】結果入力表!$B$7:$J$78,3,FALSE) -> 和田 | N66: 氏名 | O66: =VLOOKUP(L63,【進行】結果入力表!$B$7:$J$78,8,FALSE) -> 西峰 | T66: =VLOOKUP(U63,【進行】結果入力表!$B$7:$J$78,3,FALSE) -> 山中 | W66: 氏名 | X66: =VLOOKUP(U63,【進行】結果入力表!$B$7:$J$78,8,FALSE) -> 林 | AC66: =VLOOKUP(AD63,【進行】結果入力表!$B$7:$J$78,3,FALSE) -> 末岡 | AF66: 氏名 | AG66: =VLOOKUP(AD63,【進行】結果入力表!$B$7:$J$78,8,FALSE) -> 秋田 | AL66: =VLOOKUP(AM63,【進行】結果入力表!$B$7:$J$78,3,FALSE) -> 杉本 | AO66: 氏名 | AP66: =VLOOKUP(AM63,【進行】結果入力表!$B$7:$J$78,8,FALSE) -> 山中 | AU66: =VLOOKUP(AV63,【進行】結果入力表!$B$7:$J$78,3,FALSE) -> 大迫 | AX66: 氏名 | AY66: =VLOOKUP(AV63,【進行】結果入力表!$B$7:$J$78,8,FALSE) -> 柳川 | BD66: =VLOOKUP(BE63,【進行】結果入力表!$B$7:$J$78,3,FALSE) -> 中本 | BG66: 氏名 | BH66: =VLOOKUP(BE63,【進行】結果入力表!$B$7:$J$78,8,FALSE) -> 大橋 | BM66: =VLOOKUP(BN63,【進行】結果入力表!$B$7:$J$78,3,FALSE) ->  | BP66: 氏名 | BQ66: =VLOOKUP(BN63,【進行】結果入力表!$B$7:$J$78,8,FALSE) -> 
E67: 得点 | N67: 得点 | W67: 得点 | AF67: 得点 | AO67: 得点 | AX67: 得点 | BG67: 得点 | BP67: 得点
E68: HR | N68: HR | W68: HR | AF68: HR | AO68: HR | AX68: HR | BG68: HR | BP68: HR
E70: レフリー： | F70: =VLOOKUP(C63,【進行】結果入力表!$B$7:$M$78,11,FALSE) -> NRC | G70: =VLOOKUP(C63,【進行】結果入力表!$B$7:$M$78,12,FALSE) -> 岩本 | N70: レフリー： | O70: =VLOOKUP(L63,【進行】結果入力表!$B$7:$M$78,11,FALSE) -> NRC | P70: =VLOOKUP(L63,【進行】結果入力表!$B$7:$M$78,12,FALSE) -> 白戸 | W70: レフリー： | X70: =VLOOKUP(U63,【進行】結果入力表!$B$7:$M$78,11,FALSE) -> NRC | Y70: =VLOOKUP(U63,【進行】結果入力表!$B$7:$M$78,12,FALSE) -> 斉藤 | AF70: レフリー： | AG70: =VLOOKUP(AD63,【進行】結果入力表!$B$7:$M$78,11,FALSE) -> NRC | AH70: =VLOOKUP(AD63,【進行】結果入力表!$B$7:$M$78,12,FALSE) -> 山田 | AO70: レフリー： | AP70: =VLOOKUP(AM63,【進行】結果入力表!$B$7:$M$78,11,FALSE) -> NRC | AQ70: =VLOOKUP(AM63,【進行】結果入力表!$B$7:$M$78,12,FALSE) -> 吉向 | AX70: レフリー： | AY70: =VLOOKUP(AV63,【進行】結果入力表!$B$7:$M$78,11,FALSE) -> NRC | AZ70: =VLOOKUP(AV63,【進行】結果入力表!$B$7:$M$78,12,FALSE) -> 白戸 | BG70: レフリー： | BH70: =VLOOKUP(BE63,【進行】結果入力表!$B$7:$M$78,11,FALSE) -> NRC | BI70: =VLOOKUP(BE63,【進行】結果入力表!$B$7:$M$78,12,FALSE) -> 植田 | BP70: レフリー： | BQ70: =VLOOKUP(BN63,【進行】結果入力表!$B$7:$M$78,11,FALSE) -> WRC | BR70: =VLOOKUP(BN63,【進行】結果入力表!$B$7:$M$78,12,FALSE) -> 
B71: =【結果】個人成績表!$A$1 -> 第16回 和奈滋対抗戦 (奈良；キングスポット) | K71: =【結果】個人成績表!$A$1 -> 第16回 和奈滋対抗戦 (奈良；キングスポット) | T71: =【結果】個人成績表!$A$1 -> 第16回 和奈滋対抗戦 (奈良；キングスポット) | AC71: =【結果】個人成績表!$A$1 -> 第16回 和奈滋対抗戦 (奈良；キングスポット) | AL71: =【結果】個人成績表!$A$1 -> 第16回 和奈滋対抗戦 (奈良；キングスポット) | AU71: =【結果】個人成績表!$A$1 -> 第16回 和奈滋対抗戦 (奈良；キングスポット) | BD71: =【結果】個人成績表!$A$1 -> 第16回 和奈滋対抗戦 (奈良；キングスポット) | BM71: =【結果】個人成績表!$A$1 -> 第16回 和奈滋対抗戦 (奈良；キングスポット)
B73: G-No | C73: =【進行】結果入力表!B55 -> 43 | F73: T-No | K73: G-No | L73: =【進行】結果入力表!B56 -> 44 | O73: T-No | T73: G-No | U73: =【進行】結果入力表!B57 -> 45 | X73: T-No | AC73: G-No | AD73: =【進行】結果入力表!B58 -> 46 | AG73: T-No | AL73: G-No | AM73: =【進行】結果入力表!B59 -> 47 | AP73: T-No | AU73: G-No | AV73: =【進行】結果入力表!B60 -> 48 | AY73: T-No | BD73: G-No | BE73: =【進行】結果入力表!B61 -> 49 | BH73: T-No | BM73: G-No | BN73: =【進行】結果入力表!B62 ->  | BQ73: T-No
B75: =VLOOKUP(C73,【進行】結果入力表!$B$7:$J$78,2,FALSE) -> NRC | E75: 所属 | F75: =VLOOKUP(C73,【進行】結果入力表!$B$7:$J$78,9,FALSE) -> SBC | K75: =VLOOKUP(L73,【進行】結果入力表!$B$7:$J$78,2,FALSE) -> NRC | N75: 所属 | O75: =VLOOKUP(L73,【進行】結果入力表!$B$7:$J$78,9,FALSE) -> SBC | T75: =VLOOKUP(U73,【進行】結果入力表!$B$7:$J$78,2,FALSE) -> NRC | W75: 所属 | X75: =VLOOKUP(U73,【進行】結果入力表!$B$7:$J$78,9,FALSE) -> SBC | AC75: =VLOOKUP(AD73,【進行】結果入力表!$B$7:$J$78,2,FALSE) -> NRC | AF75: 所属 | AG75: =VLOOKUP(AD73,【進行】結果入力表!$B$7:$J$78,9,FALSE) -> SBC | AL75: =VLOOKUP(AM73,【進行】結果入力表!$B$7:$J$78,2,FALSE) -> NRC | AO75: 所属 | AP75: =VLOOKUP(AM73,【進行】結果入力表!$B$7:$J$78,9,FALSE) -> SBC | AU75: =VLOOKUP(AV73,【進行】結果入力表!$B$7:$J$78,2,FALSE) -> NRC | AX75: 所属 | AY75: =VLOOKUP(AV73,【進行】結果入力表!$B$7:$J$78,9,FALSE) -> SBC | BD75: =VLOOKUP(BE73,【進行】結果入力表!$B$7:$J$78,2,FALSE) -> NRC | BG75: 所属 | BH75: =VLOOKUP(BE73,【進行】結果入力表!$B$7:$J$78,9,FALSE) -> SBC | BM75: =VLOOKUP(BN73,【進行】結果入力表!$B$7:$J$78,2,FALSE) -> NRC | BP75: 所属 | BQ75: =VLOOKUP(BN73,【進行】結果入力表!$B$7:$J$78,9,FALSE) -> SBC
B76: =VLOOKUP(C73,【進行】結果入力表!$B$7:$J$78,3,FALSE) -> 白戸 | E76: 氏名 | F76: =VLOOKUP(C73,【進行】結果入力表!$B$7:$J$78,8,FALSE) -> 大橋 | K76: =VLOOKUP(L73,【進行】結果入力表!$B$7:$J$78,3,FALSE) -> 植田 | N76: 氏名 | O76: =VLOOKUP(L73,【進行】結果入力表!$B$7:$J$78,8,FALSE) -> 西峰 | T76: =VLOOKUP(U73,【進行】結果入力表!$B$7:$J$78,3,FALSE) -> 岩本 | W76: 氏名 | X76: =VLOOKUP(U73,【進行】結果入力表!$B$7:$J$78,8,FALSE) -> 林 | AC76: =VLOOKUP(AD73,【進行】結果入力表!$B$7:$J$78,3,FALSE) -> 白戸 | AF76: 氏名 | AG76: =VLOOKUP(AD73,【進行】結果入力表!$B$7:$J$78,8,FALSE) -> 秋田 | AL76: =VLOOKUP(AM73,【進行】結果入力表!$B$7:$J$78,3,FALSE) -> 斉藤 | AO76: 氏名 | AP76: =VLOOKUP(AM73,【進行】結果入力表!$B$7:$J$78,8,FALSE) -> 山中 | AU76: =VLOOKUP(AV73,【進行】結果入力表!$B$7:$J$78,3,FALSE) -> 山田 | AX76: 氏名 | AY76: =VLOOKUP(AV73,【進行】結果入力表!$B$7:$J$78,8,FALSE) -> 柳川 | BD76: =VLOOKUP(BE73,【進行】結果入力表!$B$7:$J$78,3,FALSE) -> 吉向 | BG76: 氏名 | BH76: =VLOOKUP(BE73,【進行】結果入力表!$B$7:$J$78,8,FALSE) -> 大橋 | BM76: =VLOOKUP(BN73,【進行】結果入力表!$B$7:$J$78,3,FALSE) ->  | BP76: 氏名 | BQ76: =VLOOKUP(BN73,【進行】結果入力表!$B$7:$J$78,8,FALSE) -> 
E77: 得点 | N77: 得点 | W77: 得点 | AF77: 得点 | AO77: 得点 | AX77: 得点 | BG77: 得点 | BP77: 得点
E78: HR | N78: HR | W78: HR | AF78: HR | AO78: HR | AX78: HR | BG78: HR | BP78: HR
E80: レフリー： | F80: =VLOOKUP(C73,【進行】結果入力表!$B$7:$M$78,11,FALSE) -> WRC | G80: =VLOOKUP(C73,【進行】結果入力表!$B$7:$M$78,12,FALSE) -> 中本 | N80: レフリー： | O80: =VLOOKUP(L73,【進行】結果入力表!$B$7:$M$78,11,FALSE) -> WRC | P80: =VLOOKUP(L73,【進行】結果入力表!$B$7:$M$78,12,FALSE) -> 松房 | W80: レフリー： | X80: =VLOOKUP(U73,【進行】結果入力表!$B$7:$M$78,11,FALSE) -> WRC | Y80: =VLOOKUP(U73,【進行】結果入力表!$B$7:$M$78,12,FALSE) -> 和田 | AF80: レフリー： | AG80: =VLOOKUP(AD73,【進行】結果入力表!$B$7:$M$78,11,FALSE) -> WRC | AH80: =VLOOKUP(AD73,【進行】結果入力表!$B$7:$M$78,12,FALSE) -> 山中 | AO80: レフリー： | AP80: =VLOOKUP(AM73,【進行】結果入力表!$B$7:$M$78,11,FALSE) -> WRC | AQ80: =VLOOKUP(AM73,【進行】結果入力表!$B$7:$M$78,12,FALSE) -> 末岡 | AX80: レフリー： | AY80: =VLOOKUP(AV73,【進行】結果入力表!$B$7:$M$78,11,FALSE) -> WRC | AZ80: =VLOOKUP(AV73,【進行】結果入力表!$B$7:$M$78,12,FALSE) -> 杉本 | BG80: レフリー： | BH80: =VLOOKUP(BE73,【進行】結果入力表!$B$7:$M$78,11,FALSE) -> WRC | BI80: =VLOOKUP(BE73,【進行】結果入力表!$B$7:$M$78,12,FALSE) -> 大迫 | BP80: レフリー： | BQ80: =VLOOKUP(BN73,【進行】結果入力表!$B$7:$M$78,11,FALSE) -> WRC | BR80: =VLOOKUP(BN73,【進行】結果入力表!$B$7:$M$78,12,FALSE) -> 
B81: =【結果】個人成績表!$A$1 -> 第16回 和奈滋対抗戦 (奈良；キングスポット) | K81: =【結果】個人成績表!$A$1 -> 第16回 和奈滋対抗戦 (奈良；キングスポット) | T81: =【結果】個人成績表!$A$1 -> 第16回 和奈滋対抗戦 (奈良；キングスポット) | AC81: =【結果】個人成績表!$A$1 -> 第16回 和奈滋対抗戦 (奈良；キングスポット) | AL81: =【結果】個人成績表!$A$1 -> 第16回 和奈滋対抗戦 (奈良；キングスポット) | AU81: =【結果】個人成績表!$A$1 -> 第16回 和奈滋対抗戦 (奈良；キングスポット) | BD81: =【結果】個人成績表!$A$1 -> 第16回 和奈滋対抗戦 (奈良；キングスポット) | BM81: =【結果】個人成績表!$A$1 -> 第16回 和奈滋対抗戦 (奈良；キングスポット)
B83: G-No | C83: =【進行】結果入力表!B63 -> 50 | F83: T-No | K83: G-No | L83: =【進行】結果入力表!B64 -> 51 | O83: T-No | T83: G-No | U83: =【進行】結果入力表!B65 -> 52 | X83: T-No | AC83: G-No | AD83: =【進行】結果入力表!B66 -> 53 | AG83: T-No | AL83: G-No | AM83: =【進行】結果入力表!B67 -> 54 | AP83: T-No | AU83: G-No | AV83: =【進行】結果入力表!B68 -> 55 | AY83: T-No | BD83: G-No | BE83: =【進行】結果入力表!B69 -> 56 | BH83: T-No | BM83: G-No | BN83: =【進行】結果入力表!B70 ->  | BQ83: T-No
B85: =VLOOKUP(C83,【進行】結果入力表!$B$7:$J$78,2,FALSE) -> NRC | E85: 所属 | F85: =VLOOKUP(C83,【進行】結果入力表!$B$7:$J$78,9,FALSE) -> WRC | K85: =VLOOKUP(L83,【進行】結果入力表!$B$7:$J$78,2,FALSE) -> NRC | N85: 所属 | O85: =VLOOKUP(L83,【進行】結果入力表!$B$7:$J$78,9,FALSE) -> WRC | T85: =VLOOKUP(U83,【進行】結果入力表!$B$7:$J$78,2,FALSE) -> NRC | W85: 所属 | X85: =VLOOKUP(U83,【進行】結果入力表!$B$7:$J$78,9,FALSE) -> WRC | AC85: =VLOOKUP(AD83,【進行】結果入力表!$B$7:$J$78,2,FALSE) -> NRC | AF85: 所属 | AG85: =VLOOKUP(AD83,【進行】結果入力表!$B$7:$J$78,9,FALSE) -> WRC | AL85: =VLOOKUP(AM83,【進行】結果入力表!$B$7:$J$78,2,FALSE) -> NRC | AO85: 所属 | AP85: =VLOOKUP(AM83,【進行】結果入力表!$B$7:$J$78,9,FALSE) -> WRC | AU85: =VLOOKUP(AV83,【進行】結果入力表!$B$7:$J$78,2,FALSE) -> NRC | AX85: 所属 | AY85: =VLOOKUP(AV83,【進行】結果入力表!$B$7:$J$78,9,FALSE) -> WRC | BD85: =VLOOKUP(BE83,【進行】結果入力表!$B$7:$J$78,2,FALSE) -> NRC | BG85: 所属 | BH85: =VLOOKUP(BE83,【進行】結果入力表!$B$7:$J$78,9,FALSE) -> WRC | BM85: =VLOOKUP(BN83,【進行】結果入力表!$B$7:$J$78,2,FALSE) -> NRC | BP85: 所属 | BQ85: =VLOOKUP(BN83,【進行】結果入力表!$B$7:$J$78,9,FALSE) -> SBC
B86: =VLOOKUP(C83,【進行】結果入力表!$B$7:$J$78,3,FALSE) -> 白戸 | E86: 氏名 | F86: =VLOOKUP(C83,【進行】結果入力表!$B$7:$J$78,8,FALSE) -> 中本 | K86: =VLOOKUP(L83,【進行】結果入力表!$B$7:$J$78,3,FALSE) -> 植田 | N86: 氏名 | O86: =VLOOKUP(L83,【進行】結果入力表!$B$7:$J$78,8,FALSE) -> 松房 | T86: =VLOOKUP(U83,【進行】結果入力表!$B$7:$J$78,3,FALSE) -> 岩本 | W86: 氏名 | X86: =VLOOKUP(U83,【進行】結果入力表!$B$7:$J$78,8,FALSE) -> 和田 | AC86: =VLOOKUP(AD83,【進行】結果入力表!$B$7:$J$78,3,FALSE) -> 白戸 | AF86: 氏名 | AG86: =VLOOKUP(AD83,【進行】結果入力表!$B$7:$J$78,8,FALSE) -> 山中 | AL86: =VLOOKUP(AM83,【進行】結果入力表!$B$7:$J$78,3,FALSE) -> 斉藤 | AO86: 氏名 | AP86: =VLOOKUP(AM83,【進行】結果入力表!$B$7:$J$78,8,FALSE) -> 末岡 | AU86: =VLOOKUP(AV83,【進行】結果入力表!$B$7:$J$78,3,FALSE) -> 山田 | AX86: 氏名 | AY86: =VLOOKUP(AV83,【進行】結果入力表!$B$7:$J$78,8,FALSE) -> 杉本 | BD86: =VLOOKUP(BE83,【進行】結果入力表!$B$7:$J$78,3,FALSE) -> 吉向 | BG86: 氏名 | BH86: =VLOOKUP(BE83,【進行】結果入力表!$B$7:$J$78,8,FALSE) -> 大迫 | BM86: =VLOOKUP(BN83,【進行】結果入力表!$B$7:$J$78,3,FALSE) ->  | BP86: 氏名 | BQ86: =VLOOKUP(BN83,【進行】結果入力表!$B$7:$J$78,8,FALSE) -> 
E87: 得点 | N87: 得点 | W87: 得点 | AF87: 得点 | AO87: 得点 | AX87: 得点 | BG87: 得点 | BP87: 得点
E88: HR | N88: HR | W88: HR | AF88: HR | AO88: HR | AX88: HR | BG88: HR | BP88: HR
E90: レフリー： | F90: =VLOOKUP(C83,【進行】結果入力表!$B$7:$M$78,11,FALSE) -> SBC | G90: =VLOOKUP(C83,【進行】結果入力表!$B$7:$M$78,12,FALSE) -> 大橋 | N90: レフリー： | O90: =VLOOKUP(L83,【進行】結果入力表!$B$7:$M$78,11,FALSE) -> SBC | P90: =VLOOKUP(L83,【進行】結果入力表!$B$7:$M$78,12,FALSE) -> 西峰 | W90: レフリー： | X90: =VLOOKUP(U83,【進行】結果入力表!$B$7:$M$78,11,FALSE) -> SBC | Y90: =VLOOKUP(U83,【進行】結果入力表!$B$7:$M$78,12,FALSE) -> 林 | AF90: レフリー： | AG90: =VLOOKUP(AD83,【進行】結果入力表!$B$7:$M$78,11,FALSE) -> SBC | AH90: =VLOOKUP(AD83,【進行】結果入力表!$B$7:$M$78,12,FALSE) -> 秋田 | AO90: レフリー： | AP90: =VLOOKUP(AM83,【進行】結果入力表!$B$7:$M$78,11,FALSE) -> SBC | AQ90: =VLOOKUP(AM83,【進行】結果入力表!$B$7:$M$78,12,FALSE) -> 山中 | AX90: レフリー： | AY90: =VLOOKUP(AV83,【進行】結果入力表!$B$7:$M$78,11,FALSE) -> SBC | AZ90: =VLOOKUP(AV83,【進行】結果入力表!$B$7:$M$78,12,FALSE) -> 柳川 | BG90: レフリー： | BH90: =VLOOKUP(BE83,【進行】結果入力表!$B$7:$M$78,11,FALSE) -> SBC | BI90: =VLOOKUP(BE83,【進行】結果入力表!$B$7:$M$78,12,FALSE) -> 大橋 | BP90: レフリー： | BQ90: =VLOOKUP(BN83,【進行】結果入力表!$B$7:$M$78,11,FALSE) -> WRC | BR90: =VLOOKUP(BN83,【進行】結果入力表!$B$7:$M$78,12,FALSE) -> 
B91: =【結果】個人成績表!$A$1 -> 第16回 和奈滋対抗戦 (奈良；キングスポット) | K91: =【結果】個人成績表!$A$1 -> 第16回 和奈滋対抗戦 (奈良；キングスポット) | T91: =【結果】個人成績表!$A$1 -> 第16回 和奈滋対抗戦 (奈良；キングスポット) | AC91: =【結果】個人成績表!$A$1 -> 第16回 和奈滋対抗戦 (奈良；キングスポット) | AL91: =【結果】個人成績表!$A$1 -> 第16回 和奈滋対抗戦 (奈良；キングスポット) | AU91: =【結果】個人成績表!$A$1 -> 第16回 和奈滋対抗戦 (奈良；キングスポット) | BD91: =【結果】個人成績表!$A$1 -> 第16回 和奈滋対抗戦 (奈良；キングスポット) | BM91: =【結果】個人成績表!$A$1 -> 第16回 和奈滋対抗戦 (奈良；キングスポット)
B93: G-No | C93: =【進行】結果入力表!B71 -> 57 | F93: T-No | K93: G-No | L93: =【進行】結果入力表!B72 -> 58 | O93: T-No | T93: G-No | U93: =【進行】結果入力表!B73 -> 59 | X93: T-No | AC93: G-No | AD93: =【進行】結果入力表!B74 -> 60 | AG93: T-No | AL93: G-No | AM93: =【進行】結果入力表!B75 -> 61 | AP93: T-No | AU93: G-No | AV93: =【進行】結果入力表!B76 -> 62 | AY93: T-No | BD93: G-No | BE93: =【進行】結果入力表!B77 -> 63 | BH93: T-No | BM93: G-No | BN93: =【進行】結果入力表!B78 ->  | BQ93: T-No
B95: =VLOOKUP(C93,【進行】結果入力表!$B$7:$J$78,2,FALSE) -> WRC | E95: 所属 | F95: =VLOOKUP(C93,【進行】結果入力表!$B$7:$J$78,9,FALSE) -> SBC | K95: =VLOOKUP(L93,【進行】結果入力表!$B$7:$J$78,2,FALSE) -> WRC | N95: 所属 | O95: =VLOOKUP(L93,【進行】結果入力表!$B$7:$J$78,9,FALSE) -> SBC | T95: =VLOOKUP(U93,【進行】結果入力表!$B$7:$J$78,2,FALSE) -> WRC | W95: 所属 | X95: =VLOOKUP(U93,【進行】結果入力表!$B$7:$J$78,9,FALSE) -> SBC | AC95: =VLOOKUP(AD93,【進行】結果入力表!$B$7:$J$78,2,FALSE) -> WRC | AF95: 所属 | AG95: =VLOOKUP(AD93,【進行】結果入力表!$B$7:$J$78,9,FALSE) -> SBC | AL95: =VLOOKUP(AM93,【進行】結果入力表!$B$7:$J$78,2,FALSE) -> WRC | AO95: 所属 | AP95: =VLOOKUP(AM93,【進行】結果入力表!$B$7:$J$78,9,FALSE) -> SBC | AU95: =VLOOKUP(AV93,【進行】結果入力表!$B$7:$J$78,2,FALSE) -> WRC | AX95: 所属 | AY95: =VLOOKUP(AV93,【進行】結果入力表!$B$7:$J$78,9,FALSE) -> SBC | BD95: =VLOOKUP(BE93,【進行】結果入力表!$B$7:$J$78,2,FALSE) -> WRC | BG95: 所属 | BH95: =VLOOKUP(BE93,【進行】結果入力表!$B$7:$J$78,9,FALSE) -> SBC | BM95: =VLOOKUP(BN93,【進行】結果入力表!$B$7:$J$78,2,FALSE) -> NRC | BP95: 所属 | BQ95: =VLOOKUP(BN93,【進行】結果入力表!$B$7:$J$78,9,FALSE) -> SBC
B96: =VLOOKUP(C93,【進行】結果入力表!$B$7:$J$78,3,FALSE) -> 中本 | E96: 氏名 | F96: =VLOOKUP(C93,【進行】結果入力表!$B$7:$J$78,8,FALSE) -> 大橋 | K96: =VLOOKUP(L93,【進行】結果入力表!$B$7:$J$78,3,FALSE) -> 松房 | N96: 氏名 | O96: =VLOOKUP(L93,【進行】結果入力表!$B$7:$J$78,8,FALSE) -> 西峰 | T96: =VLOOKUP(U93,【進行】結果入力表!$B$7:$J$78,3,FALSE) -> 和田 | W96: 氏名 | X96: =VLOOKUP(U93,【進行】結果入力表!$B$7:$J$78,8,FALSE) -> 林 | AC96: =VLOOKUP(AD93,【進行】結果入力表!$B$7:$J$78,3,FALSE) -> 山中 | AF96: 氏名 | AG96: =VLOOKUP(AD93,【進行】結果入力表!$B$7:$J$78,8,FALSE) -> 秋田 | AL96: =VLOOKUP(AM93,【進行】結果入力表!$B$7:$J$78,3,FALSE) -> 末岡 | AO96: 氏名 | AP96: =VLOOKUP(AM93,【進行】結果入力表!$B$7:$J$78,8,FALSE) -> 山中 | AU96: =VLOOKUP(AV93,【進行】結果入力表!$B$7:$J$78,3,FALSE) -> 杉本 | AX96: 氏名 | AY96: =VLOOKUP(AV93,【進行】結果入力表!$B$7:$J$78,8,FALSE) -> 柳川 | BD96: =VLOOKUP(BE93,【進行】結果入力表!$B$7:$J$78,3,FALSE) -> 大迫 | BG96: 氏名 | BH96: =VLOOKUP(BE93,【進行】結果入力表!$B$7:$J$78,8,FALSE) -> 大橋 | BM96: =VLOOKUP(BN93,【進行】結果入力表!$B$7:$J$78,3,FALSE) ->  | BP96: 氏名 | BQ96: =VLOOKUP(BN93,【進行】結果入力表!$B$7:$J$78,8,FALSE) -> 
E97: 得点 | N97: 得点 | W97: 得点 | AF97: 得点 | AO97: 得点 | AX97: 得点 | BG97: 得点 | BP97: 得点
E98: HR | N98: HR | W98: HR | AF98: HR | AO98: HR | AX98: HR | BG98: HR | BP98: HR
E100: レフリー： | F100: =VLOOKUP(C93,【進行】結果入力表!$B$7:$M$78,11,FALSE) -> NRC | G100: =VLOOKUP(C93,【進行】結果入力表!$B$7:$M$78,12,FALSE) -> 白戸 | N100: レフリー： | O100: =VLOOKUP(L93,【進行】結果入力表!$B$7:$M$78,11,FALSE) -> NRC | P100: =VLOOKUP(L93,【進行】結果入力表!$B$7:$M$78,12,FALSE) -> 植田 | W100: レフリー： | X100: =VLOOKUP(U93,【進行】結果入力表!$B$7:$M$78,11,FALSE) -> NRC | Y100: =VLOOKUP(U93,【進行】結果入力表!$B$7:$M$78,12,FALSE) -> 岩本 | AF100: レフリー： | AG100: =VLOOKUP(AD93,【進行】結果入力表!$B$7:$M$78,11,FALSE) -> NRC | AH100: =VLOOKUP(AD93,【進行】結果入力表!$B$7:$M$78,12,FALSE) -> 白戸 | AO100: レフリー： | AP100: =VLOOKUP(AM93,【進行】結果入力表!$B$7:$M$78,11,FALSE) -> NRC | AQ100: =VLOOKUP(AM93,【進行】結果入力表!$B$7:$M$78,12,FALSE) -> 斉藤 | AX100: レフリー： | AY100: =VLOOKUP(AV93,【進行】結果入力表!$B$7:$M$78,11,FALSE) -> NRC | AZ100: =VLOOKUP(AV93,【進行】結果入力表!$B$7:$M$78,12,FALSE) -> 山田 | BG100: レフリー： | BH100: =VLOOKUP(BE93,【進行】結果入力表!$B$7:$M$78,11,FALSE) -> NRC | BI100: =VLOOKUP(BE93,【進行】結果入力表!$B$7:$M$78,12,FALSE) -> 吉向 | BP100: レフリー： | BQ100: =VLOOKUP(BN93,【進行】結果入力表!$B$7:$M$78,11,FALSE) -> WRC | BR100: =VLOOKUP(BN93,【進行】結果入力表!$B$7:$M$78,12,FALSE) -> 
F105: io

Sheet 【進行】結果入力表
A6: 節 | B6: G-No | C6: 所属A | D6: 選手名A | E6: HR | F6: 得点 | G6: 得点 | H6: HR | I6: 選手名B | J6: 所属B | L6: レフリー
A7: 第1節 | B7: 1 | C7: =IF(【準備】登録!B11="","",【準備】登録!B11) -> NRC | D7: =IF(【準備】登録!$D$11="","",【準備】登録!$D$11) -> 斉藤 | F7: 62 | G7: w | I7: =IF(【準備】登録!$D$13="","",【準備】登録!$D$13) -> 大橋 | J7: =IF(【準備】登録!B13="","",【準備】登録!B13) -> SBC | L7: =J15 -> WRC | M7: =I15 -> 和田
B8: 2 | C8: =$C$7 -> NRC | D8: =IF(【準備】登録!$G$11="","",【準備】登録!$G$11) -> 山田 | F8: w | G8: 83 | I8: =IF(【準備】登録!$G$13="","",【準備】登録!$G$13) -> 西峰 | J8: =$J$7 -> SBC | L8: =J16 -> WRC | M8: =I16 -> 山中
B9: 3 | C9: =$C$7 -> NRC | D9: =IF(【準備】登録!$J$11="","",【準備】登録!$J$11) -> 吉向 | F9: w | G9: 157 | I9: =IF(【準備】登録!$J$13="","",【準備】登録!$J$13) -> 林 | J9: =$J$7 -> SBC | L9: WRC | M9: 末岡
B10: 4 | C10: NRC | D10: =IF(【準備】登録!$M$11="","",【準備】登録!$M$11) -> 白戸 | F10: w | G10: 118 | I10: =IF(【準備】登録!$M$13="","",【準備】登録!$M$13) -> 秋田 | J10: SBC | L10: WRC | M10: 杉本
B11: 5 | C11: NRC | D11: =IF(【準備】登録!$P$11="","",【準備】登録!$P$11) -> 植田 | F11: w | G11: 141 | I11: =IF(【準備】登録!$P$13="","",【準備】登録!$P$13) -> 山中 | J11: SBC | L11: WRC | M11: 大迫
B12: 6 | C12: NRC | D12: =IF(【準備】登録!$S$11="","",【準備】登録!$S$11) -> 岩本 | F12: w | G12: 164 | I12: =IF(【準備】登録!$S$13="","",【準備】登録!$S$13) -> 柳川 | J12: SBC | L12: WRC | M12: 中本
B13: 7 | C13: NRC | D13: =IF(【準備】登録!$V$11="","",【準備】登録!$V$11) -> 白戸 | F13: w | G13: 53 | I13: =IF(【準備】登録!$V$13="","",【準備】登録!$V$13) -> 大橋 | J13: SBC | L13: WRC | M13: 松房
B14: =IF(D14="","",8) ->  | C14: NRC | D14: =IF(【準備】登録!$Y$11="","",【準備】登録!Y11) ->  | I14: =IF(【準備】登録!$Y$13="","",【準備】登録!Y13) ->  | J14: SBC | L14: WRC
B15: =IF(D14="",8,9) -> 8 | C15: NRC | D15: =D7 -> 斉藤 | F15: 5 | G15: w | H15: 111 | I15: =IF(【準備】登録!$D$12="","",【準備】登録!$D$12) -> 和田 | J15: =$C$23 -> WRC | L15: =J7 -> SBC | M15: =I7 -> 大橋
B16: =B15+1 -> 9 | C16: NRC | D16: =D8 -> 山田 | F16: w | G16: 134 | I16: =IF(【準備】登録!$G$12="","",【準備】登録!$G$12) -> 山中 | J16: WRC | L16: =J8 -> SBC | M16: =I8 -> 西峰
B17: 10 | C17: NRC | D17: 吉向 | E17: 120 | F17: w | G17: 164 | I17: =IF(【準備】登録!$J$12="","",【準備】登録!$J$12) -> 末岡 | J17: WRC | L17: SBC | M17: 林
B18: 11 | C18: NRC | D18: 白戸 | F18: 57 | G18: w | I18: =IF(【準備】登録!$M$12="","",【準備】登録!$M$12) -> 杉本 | J18: WRC | L18: SBC | M18: 秋田
B19: 12 | C19: NRC | D19: 植田 | F19: w | G19: 21 | I19: =IF(【準備】登録!$P$12="","",【準備】登録!$P$12) -> 大迫 | J19: WRC | L19: SBC | M19: 山中
B20: 13 | C20: NRC | D20: 岩本 | F20: w | G20: 113 | I20: =IF(【準備】登録!$S$12="","",【準備】登録!$S$12) -> 中本 | J20: WRC | L20: SBC | M20: 柳川
B21: 14 | C21: NRC | D21: 白戸 | F21: w | G21: 99 | I21: =IF(【準備】登録!$V$12="","",【準備】登録!$V$12) -> 松房 | J21: WRC | L21: SBC | M21: 大橋
B22: =IF(D22="","",B21+1) ->  | C22: NRC | I22: =IF(【準備】登録!$Y$12="","",【準備】登録!Y12) ->  | J22: WRC | L22: SBC
B23: =IF(D22="",B21+1,B22+1) -> 15 | C23: =IF(【準備】登録!B12="","",【準備】登録!B12) -> WRC | D23: =I15 -> 和田 | F23: w | G23: 81 | I23: =I7 -> 大橋 | J23: =$J$7 -> SBC | L23: =C7 -> NRC | M23: =D15 -> 斉藤
B24: =B23+1 -> 16 | C24: =$C$23 -> WRC | D24: =I16 -> 山中 | F24: 159 | G24: w | I24: =I8 -> 西峰 | J24: SBC | L24: =C8 -> NRC | M24: =D16 -> 山田
B25: 17 | C25: =$C$23 -> WRC | D25: 末岡 | E25: 135 | F25: w | G25: 78 | I25: 林 | J25: SBC | L25: NRC | M25: 吉向
B26: 18 | C26: WRC | D26: 杉本 | F26: w | G26: 73 | I26: 秋田 | J26: SBC | L26: NRC | M26: 白戸
B27: 19 | C27: WRC | D27: 大迫 | F27: 74 | G27: w | I27: 山中 | J27: SBC | L27: NRC | M27: 植田
B28: 20 | C28: WRC | D28: 中本 | F28: w | G28: 120 | I28: 柳川 | J28: SBC | L28: NRC | M28: 岩本
B29: 21 | C29: WRC | D29: 松房 | F29: w | G29: 49 | I29: 大橋 | J29: SBC | L29: NRC | M29: 白戸
B30: =IF(D30="","",B29+1) ->  | C30: WRC | J30: SBC | L30: NRC
A31: 第2節 | B31: =IF(D30="",B29+1,B30+1) -> 22 | C31: =$C$7 -> NRC | D31: =D39 -> 岩本 | F31: 48 | G31: w | I31: =IF(【準備】登録!$D$13="","",【準備】登録!$D$13) -> 大橋 | J31: =$J$7 -> SBC | L31: =J39 -> WRC | M31: =I39 -> 松房
B32: =B31+1 -> 23 | C32: NRC | D32: 白戸 | F32: 96 | G32: w | I32: =IF(【準備】登録!$G$13="","",【準備】登録!$G$13) -> 西峰 | J32: SBC | L32: =J40 -> WRC | M32: =I40 -> 和田
B33: 24 | C33: NRC | D33: 斉藤 | F33: 107 | G33: w | I33: =IF(【準備】登録!$J$13="","",【準備】登録!$J$13) -> 林 | J33: SBC | L33: WRC | M33: 山中
B34: 25 | C34: NRC | D34: 山田 | F34: w | G34: 137 | I34: =IF(【準備】登録!$M$13="","",【準備】登録!$M$13) -> 秋田 | J34: SBC | L34: WRC | M34: 末岡
B35: 26 | C35: NRC | D35: 吉向 | F35: w | G35: 169 | I35: =IF(【準備】登録!$P$13="","",【準備】登録!$P$13) -> 山中 | J35: SBC | L35: WRC | M35: 杉本
B36: 27 | C36: NRC | D36: 白戸 | F36: w | G36: 57 | I36: =IF(【準備】登録!$S$13="","",【準備】登録!$S$13) -> 柳川 | J36: SBC | L36: WRC | M36: 大迫
B37: 28 | C37: NRC | D37: 植田 | F37: w | G37: 102 | I37: =IF(【準備】登録!$V$13="","",【準備】登録!$V$13) -> 大橋 | J37: SBC | L37: WRC | M37: 中本
B38: =IF(D46="","",B37+1) ->  | C38: NRC | I38: =IF(【準備】登録!Y13="","",【準備】登録!$Y$13) ->  | J38: SBC | L38: WRC
B39: =IF(D46="",B37+1,B38+1) -> 29 | C39: NRC | D39: =IF($D$7="","",IF(【準備】登録!Y11="",【準備】登録!S11,【準備】登録!$V$11)) -> 岩本 | F39: 132 | G39: w | I39: =IF($D$7="","",IF(【準備】登録!Y12="",【準備】登録!V12,【準備】登録!$Y$12)) -> 松房 | J39: =$C$23 -> WRC | L39: =J31 -> SBC | M39: =I31 -> 大橋
B40: =B39+1 -> 30 | C40: NRC | D40: =IF($D$7="","",IF(【準備】登録!$Y$11="",【準備】登録!V11,【準備】登録!Y11)) -> 白戸 | F40: 120 | G40: w | I40: =IF($D$7="","",【準備】登録!$D$12) -> 和田 | J40: WRC | L40: =J32 -> SBC | M40: =I32 -> 西峰
B41: 31 | C41: NRC | D41: =IF($D$7="","",【準備】登録!$D$11) -> 斉藤 | F41: w | G41: 15 | I41: =IF($D$7="","",【準備】登録!$G$12) -> 山中 | J41: WRC | L41: SBC | M41: 林
B42: 32 | C42: NRC | D42: =IF($D$7="","",【準備】登録!$G$11) -> 山田 | E42: 110 | F42: w | G42: 145 | I42: =IF($D$7="","",【準備】登録!$J$12) -> 末岡 | J42: WRC | L42: SBC | M42: 秋田
B43: 33 | C43: NRC | D43: =IF($D$7="","",【準備】登録!$J$11) -> 吉向 | F43: w | G43: 164 | I43: =IF($D$7="","",【準備】登録!$M$12) -> 杉本 | J43: WRC | L43: SBC | M43: 山中
B44: 34 | C44: NRC | D44: =IF($D$7="","",【準備】登録!$M$11) -> 白戸 | F44: w | G44: 48 | I44: =IF($D$7="","",【準備】登録!$P$12) -> 大迫 | J44: WRC | L44: SBC | M44: 柳川
B45: 35 | C45: NRC | D45: =IF($D$7="","",【準備】登録!$P$11) -> 植田 | F45: w | G45: 141 | I45: =IF($D$7="","",【準備】登録!$S$12) -> 中本 | J45: WRC | L45: SBC | M45: 大橋
B46: =IF(D38="","",B45+1) ->  | C46: NRC | D46: =IF(【準備】登録!Y11="","",【準備】登録!$S$11) ->  | I46: =IF(【準備】登録!Y12="","",【準備】登録!$V$12) ->  | J46: WRC | L46: SBC
B47: =IF(D38="",B45+1,B46+1) -> 36 | C47: =$C$23 -> WRC | D47: =I39 -> 松房 | F47: w | G47: 22 | I47: =I31 -> 大橋 | J47: SBC | L47: =C39 -> NRC | M47: =D39 -> 岩本
B48: =B47+1 -> 37 | C48: WRC | D48: =I40 -> 和田 | F48: 98 | G48: w | I48: 西峰 | J48: SBC | L48: =C40 -> NRC | M48: =D40 -> 白戸
B49: 38 | C49: WRC | D49: 山中 | F49: w | G49: 104 | I49: 林 | J49: SBC | L49: NRC | M49: 斉藤
B50: 39 | C50: WRC | D50: 末岡 | F50: w | G50: 151 | I50: 秋田 | J50: SBC | L50: NRC | M50: 山田
B51: 40 | C51: WRC | D51: 杉本 | F51: w | G51: 75 | I51: 山中 | J51: SBC | L51: NRC | M51: 吉向
B52: 41 | C52: WRC | D52: 大迫 | F52: 142 | G52: w | I52: 柳川 | J52: SBC | L52: NRC | M52: 白戸
B53: 42 | C53: WRC | D53: 中本 | F53: 156 | G53: w | I53: 大橋 | J53: SBC | L53: NRC | M53: 植田
B54: =IF(D54="","",B53+1) ->  | C54: WRC | J54: SBC | L54: NRC
A55: 第3節 | B55: =IF(D54="",B53+1,B54+1) -> 43 | C55: =$C$7 -> NRC | D55: =D63 -> 白戸 | F55: w | G55: 15 | I55: =IF($D$7="","",【準備】登録!$D$13) -> 大橋 | J55: =$J$7 -> SBC | L55: =J63 -> WRC | M55: =I63 -> 中本
B56: =B55+1 -> 44 | C56: NRC | D56: 植田 | F56: w | G56: 72 | I56: =IF($D$7="","",【準備】登録!$G$13) -> 西峰 | J56: SBC | L56: =J64 -> WRC | M56: =I64 -> 松房
B57: 45 | C57: NRC | D57: 岩本 | F57: 147 | G57: w | I57: =IF($D$7="","",【準備】登録!$J$13) -> 林 | J57: SBC | L57: WRC | M57: 和田
B58: 46 | C58: NRC | D58: 白戸 | F58: w | G58: 155 | I58: =IF($D$7="","",【準備】登録!$M$13) -> 秋田 | J58: SBC | L58: WRC | M58: 山中
B59: 47 | C59: NRC | D59: 斉藤 | F59: 87 | G59: w | I59: =IF($D$7="","",【準備】登録!$P$13) -> 山中 | J59: SBC | L59: WRC | M59: 末岡
B60: 48 | C60: NRC | D60: 山田 | F60: w | G60: 62 | I60: =IF($D$7="","",【準備】登録!$S$13) -> 柳川 | J60: SBC | L60: WRC | M60: 杉本
B61: 49 | C61: NRC | D61: 吉向 | F61: w | G61: 52 | I61: =IF($D$7="","",【準備】登録!$V$13) -> 大橋 | J61: SBC | L61: WRC | M61: 大迫
B62: =IF(D70="","",B61+1) ->  | C62: NRC | I62: =IF(【準備】登録!Y13="","",【準備】登録!$Y$13) ->  | J62: SBC | L62: WRC
B63: =IF(D70="",B61+1,B62+1) -> 50 | C63: NRC | D63: =IF($D$7="","",IF(【準備】登録!Y11="",【準備】登録!M11,【準備】登録!$P$11)) -> 白戸 | F63: 117 | G63: w | I63: =IF($D$7="","",IF(【準備】登録!Y12="",【準備】登録!S12,【準備】登録!$V$12)) -> 中本 | J63: =$C$23 -> WRC | L63: =J55 -> SBC | M63: =I55 -> 大橋
B64: =B63+1 -> 51 | C64: NRC | D64: =IF($D$7="","",IF(【準備】登録!Y11="",【準備】登録!P11,【準備】登録!$S$11)) -> 植田 | F64: 84 | G64: w | I64: =IF($D$7="","",IF(【準備】登録!Y12="",【準備】登録!V12,【準備】登録!$Y$12)) -> 松房 | J64: WRC | L64: =J56 -> SBC | M64: =I56 -> 西峰
B65: 52 | C65: NRC | D65: =IF($D$7="","",IF(【準備】登録!Y11="",【準備】登録!S11,【準備】登録!$V$11)) -> 岩本 | E65: 100 | F65: 148 | G65: w | H65: 104 | I65: =IF($D$7="","",【準備】登録!$D$12) -> 和田 | J65: WRC | L65: SBC | M65: 林
B66: 53 | C66: NRC | D66: =IF($D$7="","",IF(【準備】登録!Y11="",【準備】登録!V11,【準備】登録!$Y$11)) -> 白戸 | F66: 138 | G66: w | I66: =IF($D$7="","",【準備】登録!$G$12) -> 山中 | J66: WRC | L66: SBC | M66: 秋田
B67: 54 | C67: NRC | D67: =IF($D$7="","",【準備】登録!$D$11) -> 斉藤 | F67: w | G67: 92 | I67: =IF($D$7="","",【準備】登録!$J$12) -> 末岡 | J67: WRC | L67: SBC | M67: 山中
B68: 55 | C68: NRC | D68: =IF($D$7="","",【準備】登録!$G$11) -> 山田 | F68: 141 | G68: w | I68: =IF($D$7="","",【準備】登録!$M$12) -> 杉本 | J68: WRC | L68: SBC | M68: 柳川
B69: 56 | C69: NRC | D69: =IF($D$7="","",【準備】登録!$J$11) -> 吉向 | E69: 104 | F69: w | G69: 165 | I69: =IF($D$7="","",【準備】登録!$P$12) -> 大迫 | J69: WRC | L69: SBC | M69: 大橋
B70: =IF(D62="","",B69+1) ->  | C70: NRC | D70: =IF(【準備】登録!Y11="","",【準備】登録!$M$11) ->  | I70: =IF(【準備】登録!Y12="","",【準備】登録!$S$12) ->  | J70: WRC | L70: SBC
B71: =IF(D62="",B69+1,B70+1) -> 57 | C71: =$C$23 -> WRC | D71: =I63 -> 中本 | F71: 131 | G71: w | I71: =I55 -> 大橋 | J71: SBC | L71: =C63 -> NRC | M71: =D63 -> 白戸
B72: =B71+1 -> 58 | C72: WRC | D72: =I64 -> 松房 | F72: w | G72: 150 | I72: 西峰 | J72: SBC | L72: =C64 -> NRC | M72: =D64 -> 植田
B73: 59 | C73: WRC | D73: 和田 | F73: 92 | G73: w | H73: 113 | I73: 林 | J73: SBC | L73: NRC | M73: 岩本
B74: 60 | C74: WRC | D74: 山中 | F74: 131 | G74: w | I74: 秋田 | J74: SBC | L74: NRC | M74: 白戸
B75: 61 | C75: WRC | D75: 末岡 | F75: w | G75: 158 | H75: 105 | I75: 山中 | J75: SBC | L75: NRC | M75: 斉藤
B76: 62 | C76: WRC | D76: 杉本 | F76: w | G76: 95 | I76: 柳川 | J76: SBC | L76: NRC | M76: 山田
B77: 63 | C77: WRC | D77: 大迫 | F77: 52 | G77: w | I77: 大橋 | J77: SBC | L77: NRC | M77: 吉向
B78: =IF(D78="","",B77+1) ->  | C78: WRC | J78: SBC | L78: NRC

Sheet 【結果】個人成績表
A1: =【準備】登録!D2&【準備】登録!E2&【準備】登録!F2&" "&【準備】登録!G2&【準備】登録!I2&" "&"("&【準備】登録!K6&"；"&【準備】登録!D6&")" -> 第16回 和奈滋対抗戦 (奈良；キングスポット)
BM2: =【準備】登録!D4 -> 2018-11-18
F4: 第１節 | X4: 第２節 | AR4: 第３節 | BL4: 順 | BM4: HR記録 | BT4: HR | BW4: HR_Point | BX4: Rank | BY4: 氏名 | BZ4: クラブ | CA4: MAX | CC4: 途中経過
A5: =IF(【準備】登録!B11="","",【準備】登録!B11) -> NRC | B5: 選手名 | E5: 持点 | F5: =A25 -> SBC | H5: W | I5: L | J5: TP | L5: TP | N5: =A15 -> WRC | P5: W | Q5: L | R5: W | S5: L | T5: TP | V5: TP | X5: =F5 -> SBC | Z5: W | AA5: L | AB5: W | AC5: L | AD5: TP | AF5: TP | AH5: =N5 -> WRC | AJ5: W | AK5: L | AL5: W | AM5: L | AN5: TP | AP5: TP | AR5: =F5 -> SBC | AT5: W | AU5: L | AV5: W | AW5: L | AX5: TP | AZ5: TP | BB5: =N5 -> WRC | BD5: W | BE5: L | BF5: W | BG5: L | BH5: TP | BJ5: TP | BL5: R | BM5: 1G | BN5: 2G | BO5: 3G | BP5: 4G | BQ5: 5G | BR5: 6G | BT5: A | BU5: B | BV5: P | CC5: W | CD5: L | CE5: TP | CF5: R_P | CI5: MVP、VP
B6: =IF(【準備】登録!$D$11=0,"",【準備】登録!$D$11) -> 斉藤 | E6: =【準備】登録!F11 -> 180 | F6: =IF(【進行】結果入力表!F7="","",【進行】結果入力表!F7) -> 62 | H6: =IF(F6="","",IF(F6="w",1,0)) -> 0 | I6: =IF(F6="","",IF(F6="w",0,1)) -> 1 | J6: =IF(F6="","",IF(F6="w",E6,F6)) -> 62 | L6: =IF($F6="","",J6/$E6*180) -> 62 | N6: =IF(【進行】結果入力表!F15="","",【進行】結果入力表!F15) -> 5 | P6: =IF(N6="","",IF(N6="w",1,0)) -> 0 | Q6: =IF(N6="","",IF(N6="w",0,1)) -> 1 | R6: =IF(N6="","",SUM(H6,P6)) -> 0 | S6: =IF(N6="","",SUM(I6,Q6)) -> 2 | T6: =IF(N6="","",IF(N6="w",E6+J6,N6+J6)) -> 67 | V6: =IF($N6="","",T6/$E6*180) -> 67 | X6: =IF(【進行】結果入力表!F33="","",【進行】結果入力表!F33) -> 107 | Z6: =IF(X6="","",IF(X6="w",1,0)) -> 0 | AA6: =IF(X6="","",IF(X6="w",0,1)) -> 1 | AB6: =IF(X6="","",SUM(R6,Z6)) -> 0 | AC6: =IF(X6="","",SUM(S6,AA6)) -> 3 | AD6: =IF(X6="","",IF(X6="w",T6+E6,X6+T6)) -> 174 | AF6: =IF($X6="","",AD6/$E6*180) -> 174 | AH6: =IF(【進行】結果入力表!F41="","",【進行】結果入力表!F41) -> w | AJ6: =IF(AH6="","",IF(AH6="w",1,0)) -> 1 | AK6: =IF(AH6="","",IF(AH6="w",0,1)) -> 0 | AL6: =IF(AH6="","",SUM(AB6,AJ6)) -> 1 | AM6: =IF(AH6="","",SUM(AC6,AK6)) -> 3 | AN6: =IF(AH6="","",IF(AH6="w",AD6+E6,AH6+AD6)) -> 354 | AP6: =IF($AH6="","",AN6/$E6*180) -> 354 | AR6: =IF(【進行】結果入力表!F59="","",【進行】結果入力表!F59) -> 87 | AT6: =IF(AR6="","",IF(AR6="w",1,0)) -> 0 | AU6: =IF(AR6="","",IF(AR6="w",0,1)) -> 1 | AV6: =IF(AR6="","",IF(AR6="w",AL6+1,AL6)) -> 1 | AW6: =IF(AR6="","",IF(AR6="w",AM6,AM6+1)) -> 4 | AX6: =IF(AR6="","",IF(AR6="w",AN6+E6,AR6+AN6)) -> 441 | AZ6: =IF($AR6="","",AX6/$E6*180) -> 441 | BB6: =IF(【進行】結果入力表!F67="","",【進行】結果入力表!F67) -> w | BD6: =IF(BB6="","",IF(BB6="w",1,0)) -> 1 | BE6: =IF(BB6="","",IF(BB6="w",0,1)) -> 0 | BF6: =IF(BB6="","",IF(BB6="w",AV6+1,AV6)) -> 2 | BG6: =IF(BB6="","",IF(BB6="w",AW6,AW6+1)) -> 4 | BH6: =IF(BB6="","",IF(BB6="w",AX6+E6,BB6+AX6)) -> 621 | BJ6: =IF($BB6="","",BH6/$E6*180) -> 621 | BL6: =IF(SUM(H6:I6,R6:S6)=0,"",IF(B$13="",RANK($CF$6:$CF$12,$CF$6:$CF$12,0),RANK($CF$6:$CF$13,$CF$6:$CF$13,0))) -> 7 | BM6: =IF(【進行】結果入力表!E7="","",【進行】結果入力表!E7) ->  | BN6: =IF(【進行】結果入力表!E15="","",【進行】結果入力表!E15) ->  | BO6: =IF(【進行】結果入力表!E33="","",【進行】結果入力表!E33) ->  | BP6: =IF(【進行】結果入力表!E41="","",【進行】結果入力表!E41) ->  | BQ6: =IF(【進行】結果入力表!E59="","",【進行】結果入力表!E59) ->  | BR6: =IF(【進行】結果入力表!E67="","",【進行】結果入力表!E67) ->  | BT6: =COUNTIF($BM6:$BR6,BT$5) -> 0 | BU6: =COUNTIF($BM6:$BR6,BU$5) -> 0 | BV6: =MAX($BM6:$BR6) -> 0 | BW6: =BT6*10000+BU6*1000+BV6 -> 0 | BX6: =RANK(BW6,$BW$6:$BW$33) -> 8 | BY6: =B6 -> 斉藤 | BZ6: =$A$5 -> NRC | CA6: =IF(BT6>0,"A"&E6,IF(BU6>0,"B"&E6,BV6)) -> 0 | CC6: =COUNTIF(F6:BC6,"w") -> 2 | CD6: =COUNT(F6,N6,AH6,X6,AR6,BB6) -> 4 | CE6: =CC6*180+SUM(F6,N6,AH6,X6,AR6,BB6)*180/E6 -> 621 | CF6: =CC6*100000+CE6 -> 200621 | CH6: =RANK(CK6,CK6:CK8,1) -> 1 | CI6: =A5 -> NRC | CJ6: =VLOOKUP(1,BL6:CF13,14,FALSE) -> 吉向 | CK6: =VLOOKUP(1,BL6:CF13,13,FALSE) -> 2
B7: =IF(【準備】登録!$D$11=0,"",【準備】登録!$G$11) -> 山田 | E7: =【準備】登録!I11 -> 180 | F7: =IF(【進行】結果入力表!F8="","",【進行】結果入力表!F8) -> w | H7: =IF(F7="","",IF(F7="w",1,0)) -> 1 | I7: =IF(F7="","",IF(F7="w",0,1)) -> 0 | J7: =IF(F7="","",IF(F7="w",E7,F7)) -> 180 | L7: =IF($F7="","",J7/$E7*180) -> 180 | N7: =IF(【進行】結果入力表!F16="","",【進行】結果入力表!F16) -> w | P7: =IF(N7="","",IF(N7="w",1,0)) -> 1 | Q7: =IF(N7="","",IF(N7="w",0,1)) -> 0 | R7: =IF(N7="","",SUM(H7,P7)) -> 2 | S7: =IF(N7="","",SUM(I7,Q7)) -> 0 | T7: 360 | V7: 360 | X7: =IF(【進行】結果入力表!F34="","",【進行】結果入力表!F34) -> w | Z7: =IF(X7="","",IF(X7="w",1,0)) -> 1 | AA7: =IF(X7="","",IF(X7="w",0,1)) -> 0 | AB7: =IF(X7="","",SUM(R7,Z7)) -> 3 | AC7: =IF(X7="","",SUM(S7,AA7)) -> 0 | AD7: 540 | AF7: 540 | AH7: =IF(【進行】結果入力表!F42="","",【進行】結果入力表!F42) -> w | AJ7: =IF(AH7="","",IF(AH7="w",1,0)) -> 1 | AK7: =IF(AH7="","",IF(AH7="w",0,1)) -> 0 | AL7: =IF(AH7="","",SUM(AB7,AJ7)) -> 4 | AM7: =IF(AH7="","",SUM(AC7,AK7)) -> 0 | AN7: 720 | AP7: 720 | AR7: =IF(【進行】結果入力表!F60="","",【進行】結果入力表!F60) -> w | AT7: =IF(AR7="","",IF(AR7="w",1,0)) -> 1 | AU7: =IF(AR7="","",IF(AR7="w",0,1)) -> 0 | AV7: =IF(AR7="","",IF(AR7="w",AL7+1,AL7)) -> 5 | AW7: =IF(AR7="","",IF(AR7="w",AM7,AM7+1)) -> 0 | AX7: 900 | AZ7: 900 | BB7: =IF(【進行】結果入力表!F68="","",【進行】結果入力表!F68) -> 141 | BD7: =IF(BB7="","",IF(BB7="w",1,0)) -> 0 | BE7: =IF(BB7="","",IF(BB7="w",0,1)) -> 1 | BF7: =IF(BB7="","",IF(BB7="w",AV7+1,AV7)) -> 5 | BG7: =IF(BB7="","",IF(BB7="w",AW7,AW7+1)) -> 1 | BH7: 1041 | BJ7: 1041 | BL7: 2 | BM7: =IF(【進行】結果入力表!E8="","",【進行】結果入力表!E8) ->  | BN7: =IF(【進行】結果入力表!E16="","",【進行】結果入力表!E16) ->  | BO7: =IF(【進行】結果入力表!E34="","",【進行】結果入力表!E34) ->  | BP7: =IF(【進行】結果入力表!E42="","",【進行】結果入力表!E42) -> 110 | BQ7: =IF(【進行】結果入力表!E60="","",【進行】結果入力表!E60) ->  | BR7: =IF(【進行】結果入力表!E68="","",【進行】結果入力表!E68) ->  | BT7: =COUNTIF($BM7:$BR7,BT$5) -> 0 | BU7: =COUNTIF($BM7:$BR7,BU$5) -> 0 | BV7: =MAX($BM7:$BR7) -> 110 | BW7: =BT7*10000+BU7*1000+BV7 -> 110 | BX7: =RANK(BW7,$BW$6:$BW$33) -> 5 | BY7: =B7 -> 山田 | BZ7: =$A$5 -> NRC | CA7: 110 | CC7: 5 | CD7: 1 | CE7: 1041 | CF7: =CC7*100000+CE7 -> 501041 | CH7: =RANK(CK7,CK6:CK8,1) -> 3 | CI7: =A15 -> WRC | CJ7: =VLOOKUP(1,BL16:CF23,14,FALSE) -> 杉本 | CK7: =VLOOKUP(1,BL16:CF23,13,FALSE) -> 8
B8: =IF(【準備】登録!$D$11=0,"",【準備】登録!$J$11) -> 吉向 | E8: =【準備】登録!L11 -> 180 | F8: =IF(【進行】結果入力表!F9="","",【進行】結果入力表!F9) -> w | H8: 1 | I8: 0 | J8: 180 | L8: 180 | N8: =IF(【進行】結果入力表!F17="","",【進行】結果入力表!F17) -> w | P8: 1 | Q8: 0 | R8: 2 | S8: 0 | T8: 360 | V8: 360 | X8: =IF(【進行】結果入力表!F35="","",【進行】結果入力表!F35) -> w | Z8: 1 | AA8: 0 | AB8: 3 | AC8: 0 | AD8: 540 | AF8: 540 | AH8: =IF(【進行】結果入力表!F43="","",【進行】結果入力表!F43) -> w | AJ8: 1 | AK8: 0 | AL8: 4 | AM8: 0 | AN8: 720 | AP8: 720 | AR8: =IF(【進行】結果入力表!F61="","",【進行】結果入力表!F61) -> w | AT8: 1 | AU8: 0 | AV8: 5 | AW8: 0 | AX8: 900 | AZ8: 900 | BB8: =IF(【進行】結果入力表!F69="","",【進行】結果入力表!F69) -> w | BD8: 1 | BE8: 0 | BF8: 6 | BG8: 0 | BH8: 1080 | BJ8: 1080 | BL8: 1 | BM8: =IF(【進行】結果入力表!E9="","",【進行】結果入力表!E9) ->  | BN8: =IF(【進行】結果入力表!E17="","",【進行】結果入力表!E17) -> 120 | BO8: =IF(【進行】結果入力表!E35="","",【進行】結果入力表!E35) ->  | BP8: =IF(【進行】結果入力表!E43="","",【進行】結果入力表!E43) ->  | BQ8: =IF(【進行】結果入力表!E61="","",【進行】結果入力表!E61) ->  | BR8: =IF(【進行】結果入力表!E69="","",【進行】結果入力表!E69) -> 104 | BT8: 0 | BU8: 0 | BV8: 120 | BW8: 120 | BX8: =RANK(BW8,$BW$6:$BW$33) -> 2 | BY8: 吉向 | BZ8: NRC | CA8: 120 | CC8: 6 | CD8: 0 | CE8: 1080 | CF8: 601080 | CH8: =RANK(CK8,CK6:CK8,1) -> 2 | CI8: =A25 -> SBC | CJ8: =VLOOKUP(1,BL26:CF33,14,FALSE) -> 林 | CK8: =VLOOKUP(1,BL26:CF33,13,FALSE) -> 3
B9: =IF(【準備】登録!$D$11=0,"",【準備】登録!$M$11) -> 白戸 | E9: =【準備】登録!O11 -> 180 | F9: =IF(【進行】結果入力表!F10="","",【進行】結果入力表!F10) -> w | H9: 1 | I9: 0 | J9: 180 | L9: 180 | N9: =IF(【進行】結果入力表!F18="","",【進行】結果入力表!F18) -> 57 | P9: 0 | Q9: 1 | R9: 1 | S9: 1 | T9: 237 | V9: 237 | X9: =IF(【進行】結果入力表!F36="","",【進行】結果入力表!F36) -> w | Z9: 1 | AA9: 0 | AB9: 2 | AC9: 1 | AD9: 417 | AF9: 417 | AH9: =IF(【進行】結果入力表!F44="","",【進行】結果入力表!F44) -> w | AJ9: 1 | AK9: 0 | AL9: 3 | AM9: 1 | AN9: 597 | AP9: 597 | AR9: =IF(【進行】結果入力表!D$70="",IF(【進行】結果入力表!F55="","",【進行】結果入力表!F55),IF(【進行】結果入力表!F62="","",【進行】結果入力表!F62)) -> w | AT9: 1 | AU9: 0 | AV9: 4 | AW9: 1 | AX9: 777 | AZ9: 777 | BB9: =IF(【進行】結果入力表!D$70="",IF(【進行】結果入力表!F63="","",【進行】結果入力表!F63),IF(【進行】結果入力表!F70="","",【進行】結果入力表!F70)) -> 117 | BD9: 0 | BE9: 1 | BF9: 4 | BG9: 2 | BH9: 894 | BJ9: 894 | BL9: 4 | BM9: =IF(【進行】結果入力表!E10="","",【進行】結果入力表!E10) ->  | BN9: =IF(【進行】結果入力表!E18="","",【進行】結果入力表!E18) ->  | BO9: =IF(【進行】結果入力表!E36="","",【進行】結果入力表!E36) ->  | BP9: =IF(【進行】結果入力表!E44="","",【進行】結果入力表!E44) ->  | BQ9: =IF(【進行】結果入力表!D$70="",IF(【進行】結果入力表!E55="","",【進行】結果入力表!E55),IF(【進行】結果入力表!E62="","",【進行】結果入力表!E62)) ->  | BR9: =IF(【進行】結果入力表!D$70="",IF(【進行】結果入力表!E63="","",【進行】結果入力表!E63),IF(【進行】結果入力表!E70="","",【進行】結果入力表!E70)) ->  | BT9: 0 | BU9: 0 | BV9: 0 | BW9: 0 | BX9: =RANK(BW9,$BW$6:$BW$33) -> 8 | BY9: 白戸 | BZ9: NRC | CA9: 0 | CC9: 4 | CD9: 2 | CE9: 894 | CF9: 400894
B10: =IF(【準備】登録!$D$11=0,"",【準備】登録!$P$11) -> 植田 | E10: =【準備】登録!R11 -> 180 | F10: =IF(【進行】結果入力表!F11="","",【進行】結果入力表!F11) -> w | H10: 1 | I10: 0 | J10: 180 | L10: 180 | N10: =IF(【進行】結果入力表!F19="","",【進行】結果入力表!F19) -> w | P10: 1 | Q10: 0 | R10: 2 | S10: 0 | T10: 360 | V10: 360 | X10: =IF(【進行】結果入力表!F37="","",【進行】結果入力表!F37) -> w | Z10: 1 | AA10: 0 | AB10: 3 | AC10: 0 | AD10: 540 | AF10: 540 | AH10: =IF(【進行】結果入力表!F45="","",【進行】結果入力表!F45) -> w | AJ10: 1 | AK10: 0 | AL10: 4 | AM10: 0 | AN10: 720 | AP10: 720 | AR10: =IF(【進行】結果入力表!D$62="",IF(【進行】結果入力表!F56="","",【進行】結果入力表!F56),IF(【進行】結果入力表!F55="","",【進行】結果入力表!F55)) -> w | AT10: 1 | AU10: 0 | AV10: 5 | AW10: 0 | AX10: 900 | AZ10: 900 | BB10: =IF(【進行】結果入力表!D$70="",IF(【進行】結果入力表!F64="","",【進行】結果入力表!F64),IF(【進行】結果入力表!F63="","",【進行】結果入力表!F63)) -> 84 | BD10: 0 | BE10: 1 | BF10: 5 | BG10: 1 | BH10: 984 | BJ10: 984 | BL10: 3 | BM10: =IF(【進行】結果入力表!E11="","",【進行】結果入力表!E11) ->  | BN10: =IF(【進行】結果入力表!E19="","",【進行】結果入力表!E19) ->  | BO10: =IF(【進行】結果入力表!E37="","",【進行】結果入力表!E37) ->  | BP10: =IF(【進行】結果入力表!E45="","",【進行】結果入力表!E45) ->  | BQ10: =IF(【進行】結果入力表!D$62="",IF(【進行】結果入力表!E56="","",【進行】結果入力表!E56),IF(【進行】結果入力表!E55="","",【進行】結果入力表!E55)) ->  | BR10: =IF(【進行】結果入力表!D$70="",IF(【進行】結果入力表!E64="","",【進行】結果入力表!E64),IF(【進行】結果入力表!E63="","",【進行】結果入力表!E63)) ->  | BT10: 0 | BU10: 0 | BV10: 0 | BW10: 0 | BX10: 8 | BY10: 植田 | BZ10: NRC | CA10: 0 | CC10: 5 | CD10: 1 | CE10: 984 | CF10: 500984
B11: =IF(【準備】登録!$D$11=0,"",【準備】登録!$S$11) -> 岩本 | E11: =【準備】登録!U11 -> 180 | F11: =IF(【進行】結果入力表!F12="","",【進行】結果入力表!F12) -> w | H11: 1 | I11: 0 | J11: 180 | L11: 180 | N11: =IF(【進行】結果入力表!F20="","",【進行】結果入力表!F20) -> w | P11: 1 | Q11: 0 | R11: 2 | S11: 0 | T11: 360 | V11: 360 | X11: =IF(【進行】結果入力表!D46="",IF(【進行】結果入力表!F31="","",【進行】結果入力表!F31),IF(【進行】結果入力表!F38="","",【進行】結果入力表!F38)) -> 48 | Z11: 0 | AA11: 1 | AB11: 2 | AC11: 1 | AD11: 408 | AF11: 408 | AH11: =IF(【進行】結果入力表!D46="",IF(【進行】結果入力表!F39="","",【進行】結果入力表!F39),IF(【進行】結果入力表!F46="","",【進行】結果入力表!F46)) -> 132 | AJ11: 0 | AK11: 1 | AL11: 2 | AM11: 2 | AN11: 540 | AP11: 540 | AR11: =IF(【進行】結果入力表!D$62="",IF(【進行】結果入力表!F57="","",【進行】結果入力表!F57),IF(【進行】結果入力表!F56="","",【進行】結果入力表!F56)) -> 147 | AT11: 0 | AU11: 1 | AV11: 2 | AW11: 3 | AX11: 687 | AZ11: 687 | BB11: =IF(【進行】結果入力表!D$70="",IF(【進行】結果入力表!F65="","",【進行】結果入力表!F65),IF(【進行】結果入力表!F64="","",【進行】結果入力表!F64)) -> 148 | BD11: 0 | BE11: 1 | BF11: 2 | BG11: 4 | BH11: 835 | BJ11: 835 | BL11: 6 | BM11: =IF(【進行】結果入力表!E12="","",【進行】結果入力表!E12) ->  | BN11: =IF(【進行】結果入力表!E20="","",【進行】結果入力表!E20) ->  | BO11: =IF(【進行】結果入力表!D$46="",IF(【進行】結果入力表!E31="","",【進行】結果入力表!E31),IF(【進行】結果入力表!E38="","",【進行】結果入力表!E38)) ->  | BP11: =IF(【進行】結果入力表!D$46="",IF(【進行】結果入力表!E39="","",【進行】結果入力表!E39),IF(【進行】結果入力表!E46="","",【進行】結果入力表!E46)) ->  | BQ11: =IF(【進行】結果入力表!D$62="",IF(【進行】結果入力表!E57="","",【進行】結果入力表!E57),IF(【進行】結果入力表!E56="","",【進行】結果入力表!E56)) ->  | BR11: =IF(【進行】結果入力表!D$70="",IF(【進行】結果入力表!E65="","",【進行】結果入力表!E65),IF(【進行】結果入力表!E64="","",【進行】結果入力表!E64)) -> 100 | BT11: 0 | BU11: 0 | BV11: 100 | BW11: 100 | BX11: 7 | BY11: 岩本 | BZ11: NRC | CA11: 100 | CC11: 2 | CD11: 4 | CE11: 835 | CF11: 200835
B12: =IF(【準備】登録!$D$11=0,"",【準備】登録!$V$11) -> 白戸 | E12: =【準備】登録!X11 -> 140 | F12: =IF(【進行】結果入力表!F13="","",【進行】結果入力表!F13) -> w | H12: 1 | I12: 0 | J12: 140 | L12: 180 | N12: =IF(【進行】結果入力表!F21="","",【進行】結果入力表!F21) -> w | P12: 1 | Q12: 0 | R12: 2 | S12: 0 | T12: 280 | V12: 360 | X12: =IF(【進行】結果入力表!D46="",IF(【進行】結果入力表!F32="","",【進行】結果入力表!F32),IF(【進行】結果入力表!F31="","",【進行】結果入力表!F31)) -> 96 | Z12: 0 | AA12: 1 | AB12: 2 | AC12: 1 | AD12: 376 | AF12: 483.4285714 | AH12: =IF(【進行】結果入力表!D46="",IF(【進行】結果入力表!F40="","",【進行】結果入力表!F40),IF(【進行】結果入力表!F39="","",【進行】結果入力表!F39)) -> 120 | AJ12: 0 | AK12: 1 | AL12: 2 | AM12: 2 | AN12: 496 | AP12: 637.7142857 | AR12: =IF(【進行】結果入力表!D$62="",IF(【進行】結果入力表!F58="","",【進行】結果入力表!F58),IF(【進行】結果入力表!F57="","",【進行】結果入力表!F57)) -> w | AT12: 1 | AU12: 0 | AV12: 3 | AW12: 2 | AX12: 636 | AZ12: 817.7142857 | BB12: =IF(【進行】結果入力表!D$70="",IF(【進行】結果入力表!F66="","",【進行】結果入力表!F66),IF(【進行】結果入力表!F65="","",【進行】結果入力表!F65)) -> 138 | BD12: 0 | BE12: 1 | BF12: 3 | BG12: 3 | BH12: 774 | BJ12: 995.1428571 | BL12: 5 | BM12: =IF(【進行】結果入力表!E13="","",【進行】結果入力表!E13) ->  | BN12: =IF(【進行】結果入力表!E21="","",【進行】結果入力表!E21) ->  | BO12: =IF(【進行】結果入力表!D$46="",IF(【進行】結果入力表!E32="","",【進行】結果入力表!E32),IF(【進行】結果入力表!E31="","",【進行】結果入力表!E31)) ->  | BP12: =IF(【進行】結果入力表!D$46="",IF(【進行】結果入力表!E40="","",【進行】結果入力表!E40),IF(【進行】結果入力表!E39="","",【進行】結果入力表!E39)) ->  | BQ12: =IF(【進行】結果入力表!D$62="",IF(【進行】結果入力表!E58="","",【進行】結果入力表!E58),IF(【進行】結果入力表!E57="","",【進行】結果入力表!E57)) ->  | BR12: =IF(【進行】結果入力表!D$70="",IF(【進行】結果入力表!E66="","",【進行】結果入力表!E66),IF(【進行】結果入力表!E65="","",【進行】結果入力表!E65)) ->  | BT12: 0 | BU12: 0 | BV12: 0 | BW12: 0 | BX12: 8 | BY12: 白戸 | BZ12: NRC | CA12: 0 | CC12: 3 | CD12: 3 | CE12: 995.1428571 | CF12: 300995.1429
B13: =IF(【準備】登録!$Y$11=0,"",【準備】登録!$Y$11) ->  | E13: =IF(【準備】登録!$Y$11="","",【準備】登録!AA11) ->  | F13: =IF(【進行】結果入力表!F14="","",【進行】結果入力表!F14) ->  | H13: =IF(F13="","",IF(F13="w",1,0)) ->  | I13: =IF(F13="","",IF(F13="w",0,1)) ->  | N13: =IF(【進行】結果入力表!F22="","",【進行】結果入力表!F22) ->  | X13: =IF(【進行】結果入力表!D46="","",IF(【進行】結果入力表!F32="","",【進行】結果入力表!F32)) ->  | AH13: =IF(【進行】結果入力表!D46="","",IF(【進行】結果入力表!F40="","",【進行】結果入力表!F40)) ->  | AR13: =IF(【進行】結果入力表!D62="","",IF(【進行】結果入力表!F58="","",【進行】結果入力表!F58)) ->  | AV13: =IF(AR13="","",IF(AR13="w",AL13+1,AL13)) ->  | AW13: =IF(AR13="","",IF(AR13="w",AM13,AM13+1)) ->  | BB13: =IF(【進行】結果入力表!D70="","",IF(【進行】結果入力表!F66="","",【進行】結果入力表!F66)) ->  | BF13: =IF(BB13="","",IF(BB13="w",AV13+1,AV13)) ->  | BG13: =IF(BB13="","",IF(BB13="w",AW13,AW13+1)) ->  | BM13: =IF(【進行】結果入力表!E14="","",【進行】結果入力表!E14) ->  | BN13: =IF(【進行】結果入力表!E22="","",【進行】結果入力表!E22) ->  | BO13: =IF(【進行】結果入力表!D46="","",IF(【進行】結果入力表!E32="","",【進行】結果入力表!E32)) ->  | BP13: =IF(【進行】結果入力表!D46="","",IF(【進行】結果入力表!E40="","",【進行】結果入力表!E40)) ->  | BQ13: =IF(【進行】結果入力表!D70="","",IF(【進行】結果入力表!E58="","",【進行】結果入力表!E58)) ->  | BR13: =IF(【進行】結果入力表!D70="","",IF(【進行】結果入力表!E66="","",【進行】結果入力表!E66)) ->  | BT13: 0 | BU13: 0 | BV13: 0 | BW13: 0 | BX13: 8 | BZ13: NRC | CA13: 0 | CC13: =IF(B13="","",COUNTIF(F13:BC13,"w")) ->  | CD13: =IF(B13="","",COUNT(F13,N13,AH13,X13,AR13,BB13)) ->  | CE13: =IF(CC13="","",CC13*180+SUM(F13,N13,AH13,X13,AR13,BB13)*180/E13) ->  | CF13: =IF(B13="","",CC13*100000+CE13) -> 
B14: Total | H14: =IF(COUNTBLANK(H6:H13)=8,"",SUM(H6:H13)) -> 6 | I14: =IF(COUNTBLANK(I6:I13)=8,"",SUM(I6:I13)) -> 1 | J14: =IF($B6="","",SUM(J6:J13)) -> 1102 | K14: =IF($B6="","",SUM(K6:K13)) -> 0 | L14: =IF(COUNTBLANK(L6:L13)=8,"",SUM(L6:L13)) -> 1142 | M14: =IF($B6="","",SUM(M6:M13)) -> 0 | P14: =SUM(P6:P13) -> 5 | Q14: =SUM(Q6:Q13) -> 2 | R14: =IF(COUNTBLANK(R6:R13)=8,"",SUM(H14,P14)) -> 11 | S14: =IF(COUNTBLANK(S6:S13)=8,"",SUM(I14,Q14)) -> 3 | T14: =IF($B6="","",SUM(T6:T13)) -> 2024 | U14: =IF($B6="","",SUM(U6:U13)) -> 0 | V14: =IF(COUNTBLANK(V6:V13)=8,"",SUM(V6:V13)) -> 2104 | W14: =IF($B6="","",SUM(W6:W13)) -> 0 | Z14: =SUM(Z6:Z13) -> 4 | AA14: =SUM(AA6:AA13) -> 3 | AB14: =IF(COUNTBLANK(AB6:AB13)=8,"",SUM(R14,Z14)) -> 15 | AC14: =IF(COUNTBLANK(AC6:AC13)=8,"",SUM(S14,AA14)) -> 6 | AD14: =IF($B6="","",SUM(AD6:AD13)) -> 2995 | AE14: =IF($B6="","",SUM(AE6:AE13)) -> 0 | AF14: =IF(COUNTBLANK(AF6:AF13)=8,"",SUM(AF6:AF13)) -> 3102.428571 | AG14: =IF($B6="","",SUM(AG6:AG13)) -> 0 | AJ14: =SUM(AJ6:AJ13) -> 5 | AK14: =SUM(AK6:AK13) -> 2 | AL14: =IF(COUNTBLANK(AL6:AL13)=8,"",SUM(AB14,AJ14)) -> 20 | AM14: =IF(COUNTBLANK(AM6:AM13)=8,"",SUM(AC14,AK14)) -> 8 | AN14: =IF($B6="","",SUM(AN6:AN13)) -> 4147 | AO14: =IF($B6="","",SUM(AO6:AO13)) -> 0 | AP14: =IF(COUNTBLANK(AP6:AP13)=8,"",SUM(AP6:AP13)) -> 4288.714286 | AQ14: =IF($B6="","",SUM(AQ6:AQ13)) -> 0 | AT14: =SUM(AT6:AT13) -> 5 | AU14: =SUM(AU6:AU13) -> 2 | AV14: =IF(COUNTBLANK(AV6:AV13)=8,"",SUM(AL14,AT14)) -> 25 | AW14: =IF(COUNTBLANK(AW6:AW13)=8,"",SUM(AM14,AU14)) -> 10 | AX14: =IF($B6="","",SUM(AX6:AX13)) -> 5241 | AY14: =IF($B6="","",SUM(AY6:AY13)) -> 0 | AZ14: =IF(COUNTBLANK(AZ6:AZ13)=8,"",SUM(AZ6:AZ13)) -> 5422.714286 | BA14: =IF($B6="","",SUM(BA6:BA13)) -> 0 | BD14: =SUM(BD6:BD13) -> 2 | BE14: =SUM(BE6:BE13) -> 5 | BF14: =IF(COUNTBLANK(BF6:BF13)=8,"",SUM(AV14,BD14)) -> 27 | BG14: =IF(COUNTBLANK(BG6:BG13)=8,"",SUM(AW14,BE14)) -> 15 | BH14: =IF(COUNTIF(BH6:BI13,"")=16,"",SUM(BH6:BH13)) -> 6229 | BI14: =IF($B6="","",SUM(BI6:BI13)) -> 0 | BJ14: =IF(COUNTBLANK(BJ6:BJ13)=8,"",SUM(BJ6:BJ13)) -> 6450.142857 | BK14: =IF($B6="","",SUM(BK6:BK13)) -> 0 | CC14: =SUM(CC6:CC13) -> 27 | CD14: =SUM(CD6:CD13) -> 15 | CE14: =SUM(CE6:CE13) -> 6450.142857 | CF14: =SUM(CF6:CF13) -> 2706450.143
A15: =IF(【準備】登録!B12="","",【準備】登録!B12) -> WRC | B15: =B5 -> 選手名 | E15: =E5 -> 持点 | F15: =A5 -> NRC | H15: W | I15: L | J15: TP | L15: TP | N15: =A25 -> SBC | P15: W | Q15: L | R15: W | S15: L | T15: TP | V15: TP | X15: =A5 -> NRC | Z15: W | AA15: L | AB15: W | AC15: L | AD15: TP | AF15: TP | AH15: =A25 -> SBC | AJ15: W | AK15: L | AL15: W | AM15: L | AN15: TP | AP15: TP | AR15: =A5 -> NRC | AT15: W | AU15: L | AV15: W | AW15: L | AX15: TP | AZ15: TP | BB15: =A25 -> SBC | BD15: W | BE15: L | BF15: W | BG15: L | BH15: TP | BJ15: TP | BL15: R | BM15: =BM$5 -> 1G | BN15: 2G | BO15: 3G | BP15: 4G | BQ15: 5G | BR15: 6G | CC15: =CC$5 -> W | CD15: =CD$5 -> L | CE15: =CE$5 -> TP | CF15: =CF$5 -> R_P
B16: =IF(【準備】登録!$D$11=0,"",【準備】登録!$D$12) -> 和田 | E16: =【準備】登録!F12 -> 180 | F16: =IF(【進行】結果入力表!G15="","",【進行】結果入力表!G15) -> w | H16: =IF(F16="","",IF(F16="w",1,0)) -> 1 | I16: =IF(F16="","",IF(F16="w",0,1)) -> 0 | J16: =IF(F16="","",IF(F16="w",E16,F16)) -> 180 | L16: =IF($F16="","",J16/$E16*180) -> 180 | N16: =IF(【進行】結果入力表!F23="","",【進行】結果入力表!F23) -> w | P16: =IF(N16="","",IF(N16="w",1,0)) -> 1 | Q16: =IF(N16="","",IF(N16="w",0,1)) -> 0 | R16: =IF(N16="","",SUM(H16,P16)) -> 2 | S16: =IF(N16="","",SUM(I16,Q16)) -> 0 | T16: =IF(N16="","",IF(N16="w",E16+J16,N16+J16)) -> 360 | V16: =IF($N16="","",T16/$E16*180) -> 360 | X16: =IF(【進行】結果入力表!G40="","",【進行】結果入力表!G40) -> w | Z16: =IF(X16="","",IF(X16="w",1,0)) -> 1 | AA16: =IF(X16="","",IF(X16="w",0,1)) -> 0 | AB16: =IF(X16="","",SUM(R16,Z16)) -> 3 | AC16: =IF(X16="","",SUM(S16,AA16)) -> 0 | AD16: =IF(X16="","",IF(X16="w",T16+E16,X16+T16)) -> 540 | AF16: =IF($X16="","",AD16/$E16*180) -> 540 | AH16: =IF(【進行】結果入力表!F48="","",【進行】結果入力表!F48) -> 98 | AJ16: =IF(AH16="","",IF(AH16="w",1,0)) -> 0 | AK16: =IF(AH16="","",IF(AH16="w",0,1)) -> 1 | AL16: =IF(AH16="","",SUM(AB16,AJ16)) -> 3 | AM16: =IF(AH16="","",SUM(AC16,AK16)) -> 1 | AN16: =IF(AH16="","",IF(AH16="w",AD16+E16,AH16+AD16)) -> 638 | AP16: =IF($AH16="","",AN16/$E16*180) -> 638 | AR16: =IF(【進行】結果入力表!G65="","",【進行】結果入力表!G65) -> w | AT16: =IF(AR16="","",IF(AR16="w",1,0)) -> 1 | AU16: =IF(AR16="","",IF(AR16="w",0,1)) -> 0 | AV16: =IF(AR16="","",IF(AR16="w",AL16+1,AL16)) -> 4 | AW16: =IF(AR16="","",IF(AR16="w",AM16,AM16+1)) -> 1 | AX16: =IF(AR16="","",IF(AR16="w",AN16+E16,AR16+AN16)) -> 818 | AZ16: =IF($AR16="","",AX16/$E16*180) -> 818 | BB16: =IF(【進行】結果入力表!F73="","",【進行】結果入力表!F73) -> 92 | BD16: =IF(BB16="","",IF(BB16="w",1,0)) -> 0 | BE16: =IF(BB16="","",IF(BB16="w",0,1)) -> 1 | BF16: =IF(BB16="","",IF(BB16="w",AV16+1,AV16)) -> 4 | BG16: =IF(BB16="","",IF(BB16="w",AW16,AW16+1)) -> 2 | BH16: =IF(BB16="","",IF(BB16="w",AX16+E16,BB16+AX16)) -> 910 | BJ16: =IF($BB16="","",BH16/$E16*180) -> 910 | BL16: =IF(SUM(H16:I16,R16:S16)=0,"",IF(B$13="",RANK($CF$16:$CF$22,$CF$16:$CF$22,0),RANK($CF$16:$CF$23,$CF$16:$CF$23,0))) -> 3 | BM16: =IF(【進行】結果入力表!H15="","",【進行】結果入力表!H15) -> 111 | BN16: =IF(【進行】結果入力表!E23="","",【進行】結果入力表!E23) ->  | BO16: =IF(【進行】結果入力表!H40="","",【進行】結果入力表!H40) ->  | BP16: =IF(【進行】結果入力表!E48="","",【進行】結果入力表!E48) ->  | BQ16: =IF(【進行】結果入力表!H65="","",【進行】結果入力表!H65) -> 104 | BR16: =IF(【進行】結果入力表!E73="","",【進行】結果入力表!E73) ->  | BT16: =COUNTIF($BM16:$BR16,BT$5) -> 0 | BU16: =COUNTIF($BM16:$BR16,BU$5) -> 0 | BV16: =MAX($BM16:$BR16) -> 111 | BW16: =BT16*10000+BU16*1000+BV16 -> 111 | BX16: 4 | BY16: =B16 -> 和田 | BZ16: =$A$15 -> WRC | CA16: =IF(BT16>0,"A"&E16,IF(BU16>0,"B"&E16,BV16)) -> 111 | CC16: =COUNTIF(F16:BC16,"w") -> 4 | CD16: =COUNT(F16,N16,AH16,X16,AR16,BB16) -> 2 | CE16: =CC16*180+SUM(F16,N16,AH16,X16,AR16,BB16)*180/E16 -> 910 | CF16: =CC16*100000+CE16 -> 400910
B17: =IF(【準備】登録!$D$11=0,"",【準備】登録!$G$12) -> 山中 | E17: =【準備】登録!I12 -> 180 | F17: =IF(【進行】結果入力表!G16="","",【進行】結果入力表!G16) -> 134 | H17: =IF(F17="","",IF(F17="w",1,0)) -> 0 | I17: =IF(F17="","",IF(F17="w",0,1)) -> 1 | J17: =IF(F17="","",IF(F17="w",E17,F17)) -> 134 | L17: =IF($F17="","",J17/$E17*180) -> 134 | N17: =IF(【進行】結果入力表!F24="","",【進行】結果入力表!F24) -> 159 | P17: =IF(N17="","",IF(N17="w",1,0)) -> 0 | Q17: =IF(N17="","",IF(N17="w",0,1)) -> 1 | R17: =IF(N17="","",SUM(H17,P17)) -> 0 | S17: =IF(N17="","",SUM(I17,Q17)) -> 2 | T17: 293 | V17: 293 | X17: =IF(【進行】結果入力表!G41="","",【進行】結果入力表!G41) -> 15 | Z17: =IF(X17="","",IF(X17="w",1,0)) -> 0 | AA17: =IF(X17="","",IF(X17="w",0,1)) -> 1 | AB17: =IF(X17="","",SUM(R17,Z17)) -> 0 | AC17: =IF(X17="","",SUM(S17,AA17)) -> 3 | AD17: 308 | AF17: 308 | AH17: =IF(【進行】結果入力表!F49="","",【進行】結果入力表!F49) -> w | AJ17: =IF(AH17="","",IF(AH17="w",1,0)) -> 1 | AK17: =IF(AH17="","",IF(AH17="w",0,1)) -> 0 | AL17: =IF(AH17="","",SUM(AB17,AJ17)) -> 1 | AM17: =IF(AH17="","",SUM(AC17,AK17)) -> 3 | AN17: 488 | AP17: 488 | AR17: =IF(【進行】結果入力表!G66="","",【進行】結果入力表!G66) -> w | AT17: =IF(AR17="","",IF(AR17="w",1,0)) -> 1 | AU17: =IF(AR17="","",IF(AR17="w",0,1)) -> 0 | AV17: 2 | AW17: 3 | AX17: 668 | AZ17: 668 | BB17: =IF(【進行】結果入力表!F74="","",【進行】結果入力表!F74) -> 131 | BD17: =IF(BB17="","",IF(BB17="w",1,0)) -> 0 | BE17: =IF(BB17="","",IF(BB17="w",0,1)) -> 1 | BF17: 2 | BG17: 4 | BH17: 799 | BJ17: 799 | BL17: 6 | BM17: =IF(【進行】結果入力表!H16="","",【進行】結果入力表!H16) ->  | BN17: =IF(【進行】結果入力表!E24="","",【進行】結果入力表!E24) ->  | BO17: =IF(【進行】結果入力表!H41="","",【進行】結果入力表!H41) ->  | BP17: =IF(【進行】結果入力表!E49="","",【進行】結果入力表!E49) ->  | BQ17: =IF(【進行】結果入力表!H66="","",【進行】結果入力表!H66) ->  | BR17: =IF(【進行】結果入力表!E74="","",【進行】結果入力表!E74) ->  | BT17: =COUNTIF($BM17:$BR17,BT$5) -> 0 | BU17: 0 | BV17: =MAX($BM17:$BR17) -> 0 | BW17: =BT17*10000+BU17*1000+BV17 -> 0 | BX17: 8 | BY17: =B17 -> 山中 | BZ17: =$A$15 -> WRC | CA17: 0 | CC17: 2 | CD17: 4 | CE17: 799 | CF17: =CC17*100000+CE17 -> 200799
B18: =IF(【準備】登録!$D$11=0,"",【準備】登録!$J$12) -> 末岡 | E18: =【準備】登録!L12 -> 180 | F18: =IF(【進行】結果入力表!G17="","",【進行】結果入力表!G17) -> 164 | H18: 0 | I18: 1 | J18: 164 | L18: 164 | N18: =IF(【進行】結果入力表!F25="","",【進行】結果入力表!F25) -> w | P18: 1 | Q18: 0 | R18: 1 | S18: 1 | T18: 344 | V18: 344 | X18: =IF(【進行】結果入力表!G42="","",【進行】結果入力表!G42) -> 145 | Z18: 0 | AA18: 1 | AB18: 1 | AC18: 2 | AD18: 489 | AF18: 489 | AH18: =IF(【進行】結果入力表!F50="","",【進行】結果入力表!F50) -> w | AJ18: 1 | AK18: 0 | AL18: 2 | AM18: 2 | AN18: 669 | AP18: 669 | AR18: =IF(【進行】結果入力表!G67="","",【進行】結果入力表!G67) -> 92 | AT18: 0 | AU18: 1 | AV18: 2 | AW18: 3 | AX18: 761 | AZ18: 761 | BB18: =IF(【進行】結果入力表!F75="","",【進行】結果入力表!F75) -> w | BD18: 1 | BE18: 0 | BF18: 3 | BG18: 3 | BH18: 941 | BJ18: 941 | BL18: 4 | BM18: =IF(【進行】結果入力表!H17="","",【進行】結果入力表!H17) ->  | BN18: =IF(【進行】結果入力表!E25="","",【進行】結果入力表!E25) -> 135 | BO18: =IF(【進行】結果入力表!H42="","",【進行】結果入力表!H42) ->  | BP18: =IF(【進行】結果入力表!E50="","",【進行】結果入力表!E50) ->  | BQ18: =IF(【進行】結果入力表!H67="","",【進行】結果入力表!H67) ->  | BR18: =IF(【進行】結果入力表!E75="","",【進行】結果入力表!E75) ->  | BT18: 0 | BU18: 0 | BV18: 135 | BW18: 135 | BX18: 1 | BY18: 末岡 | BZ18: WRC | CA18: 135 | CC18: 3 | CD18: 3 | CE18: 941 | CF18: 300941
B19: =IF(【準備】登録!$D$11=0,"",【準備】登録!$M$12) -> 杉本 | E19: =【準備】登録!O12 -> 180 | F19: =IF(【進行】結果入力表!G18="","",【進行】結果入力表!G18) -> w | H19: 1 | I19: 0 | J19: 180 | L19: 180 | N19: =IF(【進行】結果入力表!F26="","",【進行】結果入力表!F26) -> w | P19: 1 | Q19: 0 | R19: 2 | S19: 0 | T19: 360 | V19: 360 | X19: =IF(【進行】結果入力表!G43="","",【進行】結果入力表!G43) -> 164 | Z19: 0 | AA19: 1 | AB19: 2 | AC19: 1 | AD19: 524 | AF19: 524 | AH19: =IF(【進行】結果入力表!F51="","",【進行】結果入力表!F51) -> w | AJ19: 1 | AK19: 0 | AL19: 3 | AM19: 1 | AN19: 704 | AP19: 704 | AR19: =IF(【進行】結果入力表!G68="","",【進行】結果入力表!G68) -> w | AT19: 1 | AU19: 0 | AV19: 4 | AW19: 1 | AX19: 884 | AZ19: 884 | BB19: =IF(【進行】結果入力表!F76="","",【進行】結果入力表!F76) -> w | BD19: 1 | BE19: 0 | BF19: 5 | BG19: 1 | BH19: 1064 | BJ19: 1064 | BL19: 1 | BM19: =IF(【進行】結果入力表!H18="","",【進行】結果入力表!H18) ->  | BN19: =IF(【進行】結果入力表!E26="","",【進行】結果入力表!E26) ->  | BO19: =IF(【進行】結果入力表!H43="","",【進行】結果入力表!H43) ->  | BP19: =IF(【進行】結果入力表!E51="","",【進行】結果入力表!E51) ->  | BQ19: =IF(【進行】結果入力表!H68="","",【進行】結果入力表!H68) ->  | BR19: =IF(【進行】結果入力表!E76="","",【進行】結果入力表!E76) ->  | BT19: 0 | BU19: 0 | BV19: 0 | BW19: 0 | BX19: 8 | BY19: 杉本 | BZ19: WRC | CA19: 0 | CC19: 5 | CD19: 1 | CE19: 1064 | CF19: 501064
B20: =IF(【準備】登録!$D$11=0,"",【準備】登録!$P$12) -> 大迫 | E20: =【準備】登録!R12 -> 180 | F20: =IF(【進行】結果入力表!G19="","",【進行】結果入力表!G19) -> 21 | H20: 0 | I20: 1 | J20: 21 | L20: 21 | N20: =IF(【進行】結果入力表!F27="","",【進行】結果入力表!F27) -> 74 | P20: 0 | Q20: 1 | R20: 0 | S20: 2 | T20: 95 | V20: 95 | X20: =IF(【進行】結果入力表!G44="","",【進行】結果入力表!G44) -> 48 | Z20: 0 | AA20: 1 | AB20: 0 | AC20: 3 | AD20: 143 | AF20: 143 | AH20: =IF(【進行】結果入力表!F52="","",【進行】結果入力表!F52) -> 142 | AJ20: 0 | AK20: 1 | AL20: 0 | AM20: 4 | AN20: 285 | AP20: 285 | AR20: =IF(【進行】結果入力表!G69="","",【進行】結果入力表!G69) -> 165 | AT20: 0 | AU20: 1 | AV20: 0 | AW20: 5 | AX20: 450 | AZ20: 450 | BB20: =IF(【進行】結果入力表!F77="","",【進行】結果入力表!F77) -> 52 | BD20: 0 | BE20: 1 | BF20: 0 | BG20: 6 | BH20: 502 | BJ20: 502 | BL20: 7 | BM20: =IF(【進行】結果入力表!H19="","",【進行】結果入力表!H19) ->  | BN20: =IF(【進行】結果入力表!E27="","",【進行】結果入力表!E27) ->  | BO20: =IF(【進行】結果入力表!H44="","",【進行】結果入力表!H44) ->  | BP20: =IF(【進行】結果入力表!E52="","",【進行】結果入力表!E52) ->  | BQ20: =IF(【進行】結果入力表!H69="","",【進行】結果入力表!H69) ->  | BR20: =IF(【進行】結果入力表!E77="","",【進行】結果入力表!E77) ->  | BT20: 0 | BU20: 0 | BV20: 0 | BW20: 0 | BX20: 8 | BY20: 大迫 | BZ20: WRC | CA20: 0 | CC20: 0 | CD20: 6 | CE20: 502 | CF20: 502
B21: =IF(【準備】登録!$D$11=0,"",【準備】登録!$S$12) -> 中本 | E21: =【準備】登録!U12 -> 180 | F21: =IF(【進行】結果入力表!G20="","",【進行】結果入力表!G20) -> 113 | H21: 0 | I21: 1 | J21: 113 | L21: 113 | N21: =IF(【進行】結果入力表!F28="","",【進行】結果入力表!F28) -> w | P21: 1 | Q21: 0 | R21: 1 | S21: 1 | T21: 293 | V21: 293 | X21: =IF(【進行】結果入力表!G45="","",【進行】結果入力表!G45) -> 141 | Z21: 0 | AA21: 1 | AB21: 1 | AC21: 2 | AD21: 434 | AF21: 434 | AH21: =IF(【進行】結果入力表!F53="","",【進行】結果入力表!F53) -> 156 | AJ21: 0 | AK21: 1 | AL21: 1 | AM21: 3 | AN21: 590 | AP21: 590 | AR21: =IF(【進行】結果入力表!I70="",IF(【進行】結果入力表!G63="","",【進行】結果入力表!G63),IF(【進行】結果入力表!G70="","",【進行】結果入力表!G70)) -> w | AT21: 1 | AU21: 0 | AV21: 2 | AW21: 3 | AX21: 770 | AZ21: 770 | BB21: =IF(【進行】結果入力表!$D$78="",IF(【進行】結果入力表!F71="","",【進行】結果入力表!F71),IF(【進行】結果入力表!F78="","",【進行】結果入力表!F78)) -> 131 | BD21: 0 | BE21: 1 | BF21: 2 | BG21: 4 | BH21: 901 | BJ21: 901 | BL21: 5 | BM21: =IF(【進行】結果入力表!H20="","",【進行】結果入力表!H20) ->  | BN21: =IF(【進行】結果入力表!E28="","",【進行】結果入力表!E28) ->  | BO21: =IF(【進行】結果入力表!H45="","",【進行】結果入力表!H45) ->  | BP21: =IF(【進行】結果入力表!E53="","",【進行】結果入力表!E53) ->  | BQ21: =IF(【進行】結果入力表!I70="",IF(【進行】結果入力表!H63="","",【進行】結果入力表!H63),IF(【進行】結果入力表!H70="","",【進行】結果入力表!H70)) ->  | BR21: =IF(【進行】結果入力表!D78="",IF(【進行】結果入力表!E71="","",【進行】結果入力表!E71),IF(【進行】結果入力表!E78="","",【進行】結果入力表!E78)) ->  | BT21: 0 | BU21: 0 | BV21: 0 | BW21: 0 | BX21: 8 | BY21: 中本 | BZ21: WRC | CA21: 0 | CC21: 2 | CD21: 4 | CE21: 901 | CF21: 200901
B22: =IF(【準備】登録!$D$11=0,"",【準備】登録!$V$12) -> 松房 | E22: =【準備】登録!X12 -> 140 | F22: =IF(【進行】結果入力表!G21="","",【進行】結果入力表!G21) -> 99 | H22: 0 | I22: 1 | J22: 99 | L22: 127.2857143 | N22: =IF(【進行】結果入力表!F29="","",【進行】結果入力表!F29) -> w | P22: 1 | Q22: 0 | R22: 1 | S22: 1 | T22: 239 | V22: 307.2857143 | X22: =IF(【進行】結果入力表!I46="",IF(【進行】結果入力表!G39="","",【進行】結果入力表!G39),IF(【進行】結果入力表!G46="","",【進行】結果入力表!G46)) -> w | Z22: 1 | AA22: 0 | AB22: 2 | AC22: 1 | AD22: 379 | AF22: 487.2857143 | AH22: =IF(【進行】結果入力表!$D$54="",IF(【進行】結果入力表!F47="","",【進行】結果入力表!F47),IF(【進行】結果入力表!F54="","",【進行】結果入力表!F54)) -> w | AJ22: 1 | AK22: 0 | AL22: 3 | AM22: 1 | AN22: 519 | AP22: 667.2857143 | AR22: =IF(【進行】結果入力表!I70="",IF(【進行】結果入力表!G64="","",【進行】結果入力表!G64),IF(【進行】結果入力表!G63="","",【進行】結果入力表!G63)) -> w | AT22: 1 | AU22: 0 | AV22: 4 | AW22: 1 | AX22: 659 | AZ22: 847.2857143 | BB22: =IF(【進行】結果入力表!$D$78="",IF(【進行】結果入力表!F72="","",【進行】結果入力表!F72),IF(【進行】結果入力表!F71="","",【進行】結果入力表!F71)) -> w | BD22: 1 | BE22: 0 | BF22: 5 | BG22: 1 | BH22: 799 | BJ22: 1027.285714 | BL22: 2 | BM22: =IF(【進行】結果入力表!H21="","",【進行】結果入力表!H21) ->  | BN22: =IF(【進行】結果入力表!E29="","",【進行】結果入力表!E29) ->  | BO22: =IF(【進行】結果入力表!I46="",IF(【進行】結果入力表!H39="","",【進行】結果入力表!H39),IF(【進行】結果入力表!H46="","",【進行】結果入力表!H46)) ->  | BP22: =IF(【進行】結果入力表!D54="",IF(【進行】結果入力表!E47="","",【進行】結果入力表!E47),IF(【進行】結果入力表!E54="","",【進行】結果入力表!E54)) ->  | BQ22: =IF(【進行】結果入力表!I70="",IF(【進行】結果入力表!H64="","",【進行】結果入力表!H64),IF(【進行】結果入力表!H63="","",【進行】結果入力表!H63)) ->  | BR22: =IF(【進行】結果入力表!D78="",IF(【進行】結果入力表!E72="","",【進行】結果入力表!E72),IF(【進行】結果入力表!E71="","",【進行】結果入力表!E71)) ->  | BT22: 0 | BU22: 0 | BV22: 0 | BW22: 0 | BX22: 8 | BY22: 松房 | BZ22: WRC | CA22: 0 | CC22: 5 | CD22: 1 | CE22: 1027.285714 | CF22: 501027.2857
B23: =IF(【準備】登録!$Y$12=0,"",【準備】登録!$Y$12) ->  | E23: =IF(【準備】登録!$Y$12="","",【準備】登録!AA12) ->  | F23: =IF(【進行】結果入力表!G22="","",【進行】結果入力表!G22) ->  | H23: =IF(F23="","",IF(F23="w",1,0)) ->  | I23: =IF(F23="","",IF(F23="w",0,1)) ->  | N23: =IF(【進行】結果入力表!F30="","",【進行】結果入力表!F30) ->  | X23: =IF(【進行】結果入力表!I46="","",IF(【進行】結果入力表!G39="","",【進行】結果入力表!G39)) ->  | AH23: =IF(【進行】結果入力表!D54="","",IF(【進行】結果入力表!F47="","",【進行】結果入力表!F47)) ->  | AR23: =IF(【進行】結果入力表!I70="","",IF(【進行】結果入力表!G64="","",【進行】結果入力表!G64)) ->  | BB23: =IF(【進行】結果入力表!D78="","",IF(【進行】結果入力表!F72="","",【進行】結果入力表!F72)) ->  | BM23: =IF(【進行】結果入力表!H22="","",【進行】結果入力表!H22) ->  | BN23: =IF(【進行】結果入力表!E30="","",【進行】結果入力表!E30) ->  | BO23: =IF(【進行】結果入力表!I46="","",IF(【進行】結果入力表!H39="","",【進行】結果入力表!H39)) ->  | BP23: =IF(【進行】結果入力表!D54="","",IF(【進行】結果入力表!E47="","",【進行】結果入力表!E47)) ->  | BQ23: =IF(【進行】結果入力表!I70="","",IF(【進行】結果入力表!H64="","",【進行】結果入力表!H64)) ->  | BR23: =IF(【進行】結果入力表!D78="","",IF(【進行】結果入力表!E72="","",【進行】結果入力表!E72)) ->  | BT23: 0 | BU23: 0 | BV23: 0 | BW23: 0 | BX23: 8 | BZ23: WRC | CA23: 0 | CC23: =IF(B23="","",COUNTIF(F23:BC23,"w")) ->  | CD23: =IF(B23="","",COUNT(F23,N23,AH23,X23,AR23,BB23)) ->  | CE23: =IF(CC23="","",CC23*180+SUM(F23,N23,AH23,X23,AR23,BB23)*180/E23) ->  | CF23: =IF(B23="","",CC23*100000+CE23) -> 
B24: Total | H24: =IF(COUNTBLANK(H16:H23)=8,"",SUM(H16:H23)) -> 2 | I24: =IF(COUNTBLANK(I16:I23)=8,"",SUM(I16:I23)) -> 5 | J24: =IF($B16="","",SUM(J16:J23)) -> 891 | K24: =IF($B16="","",SUM(K16:K23)) -> 0 | L24: =IF(COUNTBLANK(L16:L23)=8,"",SUM(L16:L23)) -> 919.2857143 | M24: =IF($B16="","",SUM(M16:M23)) -> 0 | P24: =SUM(P16:P23) -> 5 | Q24: =SUM(Q16:Q23) -> 2 | R24: =IF(COUNTBLANK(R16:R23)=8,"",SUM(H24,P24)) -> 7 | S24: =IF(COUNTBLANK(S16:S23)=8,"",SUM(I24,Q24)) -> 7 | T24: =IF($B16="","",SUM(T16:T23)) -> 1984 | U24: =IF($B16="","",SUM(U16:U23)) -> 0 | V24: =IF(COUNTBLANK(V16:V23)=8,"",SUM(V16:V23)) -> 2052.285714 | W24: =IF($B16="","",SUM(W16:W23)) -> 0 | Z24: =SUM(Z16:Z23) -> 2 | AA24: =SUM(AA16:AA23) -> 5 | AB24: =IF(COUNTBLANK(AB16:AB23)=8,"",SUM(R24,Z24)) -> 9 | AC24: =IF(COUNTBLANK(AC16:AC23)=8,"",SUM(S24,AA24)) -> 12 | AD24: =IF($B16="","",SUM(AD16:AD23)) -> 2817 | AE24: =IF($B16="","",SUM(AE16:AE23)) -> 0 | AF24: =IF(COUNTBLANK(AF16:AF23)=8,"",SUM(AF16:AF23)) -> 2925.285714 | AG24: =IF($B16="","",SUM(AG16:AG23)) -> 0 | AJ24: =SUM(AJ16:AJ23) -> 4 | AK24: =SUM(AK16:AK23) -> 3 | AL24: =IF(COUNTBLANK(AL16:AL23)=8,"",SUM(AB24,AJ24)) -> 13 | AM24: =IF(COUNTBLANK(AM16:AM23)=8,"",SUM(AC24,AK24)) -> 15 | AN24: =IF($B16="","",SUM(AN16:AN23)) -> 3893 | AO24: =IF($B16="","",SUM(AO16:AO23)) -> 0 | AP24: =IF(COUNTBLANK(AP16:AP23)=8,"",SUM(AP16:AP23)) -> 4041.285714 | AQ24: =IF($B16="","",SUM(AQ16:AQ23)) -> 0 | AT24: =SUM(AT16:AT23) -> 5 | AU24: =SUM(AU16:AU23) -> 2 | AV24: =IF(COUNTBLANK(AV16:AV23)=8,"",SUM(AL24,AT24)) -> 18 | AW24: =IF(COUNTBLANK(AW16:AW23)=8,"",SUM(AM24,AU24)) -> 17 | AX24: =IF($B16="","",SUM(AX16:AX23)) -> 5010 | AY24: =IF($B16="","",SUM(AY16:AY23)) -> 0 | AZ24: =IF(COUNTBLANK(AZ16:AZ23)=8,"",SUM(AZ16:AZ23)) -> 5198.285714 | BA24: =IF($B16="","",SUM(BA16:BA23)) -> 0 | BD24: =SUM(BD16:BD23) -> 3 | BE24: =SUM(BE16:BE23) -> 4 | BF24: =IF(COUNTBLANK(BF16:BF23)=8,"",SUM(AV24,BD24)) -> 21 | BG24: =IF(COUNTBLANK(BG16:BG23)=8,"",SUM(AW24,BE24)) -> 21 | BH24: =IF(COUNTIF(BH16:BI23,"")=16,"",SUM(BH16:BH23)) -> 5916 | BI24: =IF($B16="","",SUM(BI16:BI23)) -> 0 | BJ24: =IF(COUNTBLANK(BJ16:BJ23)=8,"",SUM(BJ16:BJ23)) -> 6144.285714 | BK24: =IF($B16="","",SUM(BK16:BK23)) -> 0 | BZ24: WRC | CC24: =SUM(CC16:CC23) -> 21 | CD24: =SUM(CD16:CD23) -> 21 | CE24: =SUM(CE16:CE23) -> 6144.285714 | CF24: =SUM(CF16:CF23) -> 2106144.286
A25: =IF(【準備】登録!B13="","",【準備】登録!B13) -> SBC | B25: =B5 -> 選手名 | E25: =E5 -> 持点 | F25: =A5 -> NRC | H25: W | I25: L | J25: TP | L25: TP | N25: =A15 -> WRC | P25: W | Q25: L | R25: W | S25: L | T25: TP | V25: TP | X25: =A5 -> NRC | Z25: W | AA25: L | AB25: W | AC25: L | AD25: TP | AF25: TP | AH25: =A15 -> WRC | AJ25: W | AK25: L | AL25: W | AM25: L | AN25: TP | AP25: TP | AR25: =A5 -> NRC | AT25: W | AU25: L | AV25: W | AW25: L | AX25: TP | AZ25: TP | BB25: =A15 -> WRC | BD25: W | BE25: L | BF25: W | BG25: L | BH25: TP | BJ25: TP | BL25: R | BM25: =BM$5 -> 1G | BN25: 2G | BO25: 3G | BP25: 4G | BQ25: 5G | BR25: 6G | CC25: =CC$5 -> W | CD25: =CD$5 -> L | CE25: =CE$5 -> TP | CF25: =CF$5 -> R_P
B26: =IF(【準備】登録!$D$11=0,"",【準備】登録!$D$13) -> 大橋 | E26: =【準備】登録!F13 -> 180 | F26: =IF(【進行】結果入力表!G7="","",【進行】結果入力表!G7) -> w | H26: =IF(F26="","",IF(F26="w",1,0)) -> 1 | I26: =IF(F26="","",IF(F26="w",0,1)) -> 0 | J26: =IF(F26="","",IF(F26="w",E26,F26)) -> 180 | L26: =IF($F26="","",J26/$E26*180) -> 180 | N26: =IF(【進行】結果入力表!G23="","",【進行】結果入力表!G23) -> 81 | P26: =IF(N26="","",IF(N26="w",1,0)) -> 0 | Q26: =IF(N26="","",IF(N26="w",0,1)) -> 1 | R26: =IF(N26="","",SUM(H26,P26)) -> 1 | S26: =IF(N26="","",SUM(I26,Q26)) -> 1 | T26: =IF(N26="","",IF(N26="w",E26+J26,N26+J26)) -> 261 | V26: =IF($N26="","",T26/$E26*180) -> 261 | X26: =IF(【進行】結果入力表!G31="","",【進行】結果入力表!G31) -> w | Z26: =IF(X26="","",IF(X26="w",1,0)) -> 1 | AA26: =IF(X26="","",IF(X26="w",0,1)) -> 0 | AB26: =IF(X26="","",SUM(R26,Z26)) -> 2 | AC26: =IF(X26="","",SUM(S26,AA26)) -> 1 | AD26: =IF(X26="","",IF(X26="w",T26+E26,X26+T26)) -> 441 | AF26: =IF($X26="","",AD26/$E26*180) -> 441 | AH26: =IF(【進行】結果入力表!G47="","",【進行】結果入力表!G47) -> 22 | AJ26: =IF(AH26="","",IF(AH26="w",1,0)) -> 0 | AK26: =IF(AH26="","",IF(AH26="w",0,1)) -> 1 | AL26: =IF(AH26="","",SUM(AB26,AJ26)) -> 2 | AM26: =IF(AH26="","",SUM(AC26,AK26)) -> 2 | AN26: =IF(AH26="","",IF(AH26="w",AD26+E26,AH26+AD26)) -> 463 | AP26: =IF($AH26="","",AN26/$E26*180) -> 463 | AR26: =IF(【進行】結果入力表!G55="","",【進行】結果入力表!G55) -> 15 | AT26: =IF(AR26="","",IF(AR26="w",1,0)) -> 0 | AU26: =IF(AR26="","",IF(AR26="w",0,1)) -> 1 | AV26: =IF(AR26="","",IF(AR26="w",AL26+1,AL26)) -> 2 | AW26: =IF(AR26="","",IF(AR26="w",AM26,AM26+1)) -> 3 | AX26: =IF(AR26="","",IF(AR26="w",AN26+E26,AR26+AN26)) -> 478 | AZ26: =IF($AR26="","",AX26/$E26*180) -> 478 | BB26: =IF(【進行】結果入力表!G71="","",【進行】結果入力表!G71) -> w | BD26: =IF(BB26="","",IF(BB26="w",1,0)) -> 1 | BE26: =IF(BB26="","",IF(BB26="w",0,1)) -> 0 | BF26: =IF(BB26="","",IF(BB26="w",AV26+1,AV26)) -> 3 | BG26: =IF(BB26="","",IF(BB26="w",AW26,AW26+1)) -> 3 | BH26: =IF(BB26="","",IF(BB26="w",AX26+E26,BB26+AX26)) -> 658 | BJ26: =IF($BB26="","",BH26/$E26*180) -> 658 | BL26: =IF(SUM(H26:I26,R26:S26)=0,"",IF(B$13="",RANK($CF$26:$CF$32,$CF$26:$CF$32,0),RANK($CF$26:$CF$33,$CF$26:$CF$33,0))) -> 3 | BM26: =IF(【進行】結果入力表!H7="","",【進行】結果入力表!H7) ->  | BN26: =IF(【進行】結果入力表!H23="","",【進行】結果入力表!H23) ->  | BO26: =IF(【進行】結果入力表!H31="","",【進行】結果入力表!H31) ->  | BP26: =IF(【進行】結果入力表!H47="","",【進行】結果入力表!H47) ->  | BQ26: =IF(【進行】結果入力表!H55="","",【進行】結果入力表!H55) ->  | BR26: =IF(【進行】結果入力表!H71="","",【進行】結果入力表!H71) ->  | BT26: =COUNTIF($BM26:$BR26,BT$5) -> 0 | BU26: =COUNTIF($BM26:$BR26,BU$5) -> 0 | BV26: =MAX($BM26:$BR26) -> 0 | BW26: =BT26*10000+BU26*1000+BV26 -> 0 | BX26: 8 | BY26: =B26 -> 大橋 | BZ26: =$A$25 -> SBC | CA26: =IF(BT26>0,"A"&E26,IF(BU26>0,"B"&E26,BV26)) -> 0 | CC26: =COUNTIF(F26:BC26,"w") -> 3 | CD26: =COUNT(F26,N26,AH26,X26,AR26,BB26) -> 3 | CE26: =CC26*180+SUM(F26,N26,AH26,X26,AR26,BB26)*180/E26 -> 658 | CF26: =CC26*100000+CE26 -> 300658
B27: =IF(【準備】登録!$D$11=0,"",【準備】登録!$G$13) -> 西峰 | E27: =【準備】登録!I13 -> 180 | F27: =IF(【進行】結果入力表!G8="","",【進行】結果入力表!G8) -> 83 | H27: =IF(F27="","",IF(F27="w",1,0)) -> 0 | I27: =IF(F27="","",IF(F27="w",0,1)) -> 1 | J27: =IF(F27="","",IF(F27="w",E27,F27)) -> 83 | L27: =IF($F27="","",J27/$E27*180) -> 83 | N27: =IF(【進行】結果入力表!G24="","",【進行】結果入力表!G24) -> w | P27: =IF(N27="","",IF(N27="w",1,0)) -> 1 | Q27: =IF(N27="","",IF(N27="w",0,1)) -> 0 | R27: =IF(N27="","",SUM(H27,P27)) -> 1 | S27: =IF(N27="","",SUM(I27,Q27)) -> 1 | T27: 263 | V27: 263 | X27: =IF(【進行】結果入力表!G32="","",【進行】結果入力表!G32) -> w | Z27: =IF(X27="","",IF(X27="w",1,0)) -> 1 | AA27: =IF(X27="","",IF(X27="w",0,1)) -> 0 | AB27: =IF(X27="","",SUM(R27,Z27)) -> 2 | AC27: =IF(X27="","",SUM(S27,AA27)) -> 1 | AD27: 443 | AF27: 443 | AH27: =IF(【進行】結果入力表!G48="","",【進行】結果入力表!G48) -> w | AJ27: =IF(AH27="","",IF(AH27="w",1,0)) -> 1 | AK27: =IF(AH27="","",IF(AH27="w",0,1)) -> 0 | AL27: =IF(AH27="","",SUM(AB27,AJ27)) -> 3 | AM27: =IF(AH27="","",SUM(AC27,AK27)) -> 1 | AN27: 623 | AP27: 623 | AR27: =IF(【進行】結果入力表!G56="","",【進行】結果入力表!G56) -> 72 | AT27: =IF(AR27="","",IF(AR27="w",1,0)) -> 0 | AU27: =IF(AR27="","",IF(AR27="w",0,1)) -> 1 | AV27: 3 | AW27: 2 | AX27: 695 | AZ27: 695 | BB27: =IF(【進行】結果入力表!G72="","",【進行】結果入力表!G72) -> 150 | BD27: =IF(BB27="","",IF(BB27="w",1,0)) -> 0 | BE27: =IF(BB27="","",IF(BB27="w",0,1)) -> 1 | BF27: 3 | BG27: 3 | BH27: 845 | BJ27: 845 | BL27: 2 | BM27: =IF(【進行】結果入力表!H8="","",【進行】結果入力表!H8) ->  | BN27: =IF(【進行】結果入力表!H24="","",【進行】結果入力表!H24) ->  | BO27: =IF(【進行】結果入力表!H32="","",【進行】結果入力表!H32) ->  | BP27: =IF(【進行】結果入力表!H48="","",【進行】結果入力表!H48) ->  | BQ27: =IF(【進行】結果入力表!H56="","",【進行】結果入力表!H56) ->  | BR27: =IF(【進行】結果入力表!H72="","",【進行】結果入力表!H72) ->  | BT27: =COUNTIF($BM27:$BR27,BT$5) -> 0 | BU27: 0 | BV27: =MAX($BM27:$BR27) -> 0 | BW27: =BT27*10000+BU27*1000+BV27 -> 0 | BX27: 8 | BY27: =B27 -> 西峰 | BZ27: =$A$25 -> SBC | CA27: 0 | CC27: 3 | CD27: 3 | CE27: 845 | CF27: =CC27*100000+CE27 -> 300845
B28: =IF(【準備】登録!$D$11=0,"",【準備】登録!$J$13) -> 林 | E28: =【準備】登録!L13 -> 180 | F28: =IF(【進行】結果入力表!G9="","",【進行】結果入力表!G9) -> 157 | H28: 0 | I28: 1 | J28: 157 | L28: 157 | N28: =IF(【進行】結果入力表!G25="","",【進行】結果入力表!G25) -> 78 | P28: 0 | Q28: 1 | R28: 0 | S28: 2 | T28: 235 | V28: 235 | X28: =IF(【進行】結果入力表!G33="","",【進行】結果入力表!G33) -> w | Z28: 1 | AA28: 0 | AB28: 1 | AC28: 2 | AD28: 415 | AF28: 415 | AH28: =IF(【進行】結果入力表!G49="","",【進行】結果入力表!G49) -> 104 | AJ28: 0 | AK28: 1 | AL28: 1 | AM28: 3 | AN28: 519 | AP28: 519 | AR28: =IF(【進行】結果入力表!G57="","",【進行】結果入力表!G57) -> w | AT28: 1 | AU28: 0 | AV28: 2 | AW28: 3 | AX28: 699 | AZ28: 699 | BB28: =IF(【進行】結果入力表!G73="","",【進行】結果入力表!G73) -> w | BD28: 1 | BE28: 0 | BF28: 3 | BG28: 3 | BH28: 879 | BJ28: 879 | BL28: 1 | BM28: =IF(【進行】結果入力表!H9="","",【進行】結果入力表!H9) ->  | BN28: =IF(【進行】結果入力表!H25="","",【進行】結果入力表!H25) ->  | BO28: =IF(【進行】結果入力表!H33="","",【進行】結果入力表!H33) ->  | BP28: =IF(【進行】結果入力表!H49="","",【進行】結果入力表!H49) ->  | BQ28: =IF(【進行】結果入力表!H57="","",【進行】結果入力表!H57) ->  | BR28: =IF(【進行】結果入力表!H73="","",【進行】結果入力表!H73) -> 113 | BT28: 0 | BU28: 0 | BV28: 113 | BW28: 113 | BX28: =RANK(BW28,$BW$6:$BW$33) -> 3 | BY28: 林 | BZ28: SBC | CA28: 113 | CC28: 3 | CD28: 3 | CE28: 879 | CF28: 300879
B29: =IF(【準備】登録!$D$11=0,"",【準備】登録!$M$13) -> 秋田 | E29: =【準備】登録!O13 -> 180 | F29: =IF(【進行】結果入力表!G10="","",【進行】結果入力表!G10) -> 118 | H29: 0 | I29: 1 | J29: 118 | L29: 118 | N29: =IF(【進行】結果入力表!G26="","",【進行】結果入力表!G26) -> 73 | P29: 0 | Q29: 1 | R29: 0 | S29: 2 | T29: 191 | V29: 191 | X29: =IF(【進行】結果入力表!G34="","",【進行】結果入力表!G34) -> 137 | Z29: 0 | AA29: 1 | AB29: 0 | AC29: 3 | AD29: 328 | AF29: 328 | AH29: =IF(【進行】結果入力表!G50="","",【進行】結果入力表!G50) -> 151 | AJ29: 0 | AK29: 1 | AL29: 0 | AM29: 4 | AN29: 479 | AP29: 479 | AR29: =IF(【進行】結果入力表!G58="","",【進行】結果入力表!G58) -> 155 | AT29: 0 | AU29: 1 | AV29: 0 | AW29: 5 | AX29: 634 | AZ29: 634 | BB29: =IF(【進行】結果入力表!G74="","",【進行】結果入力表!G74) -> w | BD29: 1 | BE29: 0 | BF29: 1 | BG29: 5 | BH29: 814 | BJ29: 814 | BL29: 6 | BM29: =IF(【進行】結果入力表!H10="","",【進行】結果入力表!H10) ->  | BN29: =IF(【進行】結果入力表!H26="","",【進行】結果入力表!H26) ->  | BO29: =IF(【進行】結果入力表!H34="","",【進行】結果入力表!H34) ->  | BP29: =IF(【進行】結果入力表!H50="","",【進行】結果入力表!H50) ->  | BQ29: =IF(【進行】結果入力表!H58="","",【進行】結果入力表!H58) ->  | BR29: =IF(【進行】結果入力表!H74="","",【進行】結果入力表!H74) ->  | BT29: 0 | BU29: 0 | BV29: 0 | BW29: 0 | BX29: 8 | BY29: 秋田 | BZ29: SBC | CA29: 0 | CC29: 1 | CD29: 5 | CE29: 814 | CF29: 100814
B30: =IF(【準備】登録!$D$11=0,"",【準備】登録!$P$13) -> 山中 | E30: =【準備】登録!R13 -> 180 | F30: =IF(【進行】結果入力表!G11="","",【進行】結果入力表!G11) -> 141 | H30: 0 | I30: 1 | J30: 141 | L30: 141 | N30: =IF(【進行】結果入力表!G27="","",【進行】結果入力表!G27) -> w | P30: 1 | Q30: 0 | R30: 1 | S30: 1 | T30: 321 | V30: 321 | X30: =IF(【進行】結果入力表!G35="","",【進行】結果入力表!G35) -> 169 | Z30: 0 | AA30: 1 | AB30: 1 | AC30: 2 | AD30: 490 | AF30: 490 | AH30: =IF(【進行】結果入力表!G51="","",【進行】結果入力表!G51) -> 75 | AJ30: 0 | AK30: 1 | AL30: 1 | AM30: 3 | AN30: 565 | AP30: 565 | AR30: =IF(【進行】結果入力表!G59="","",【進行】結果入力表!G59) -> w | AT30: 1 | AU30: 0 | AV30: 2 | AW30: 3 | AX30: 745 | AZ30: 745 | BB30: =IF(【進行】結果入力表!G75="","",【進行】結果入力表!G75) -> 158 | BD30: 0 | BE30: 1 | BF30: 2 | BG30: 4 | BH30: 903 | BJ30: 903 | BL30: 4 | BM30: =IF(【進行】結果入力表!H11="","",【進行】結果入力表!H11) ->  | BN30: =IF(【進行】結果入力表!H27="","",【進行】結果入力表!H27) ->  | BO30: =IF(【進行】結果入力表!H35="","",【進行】結果入力表!H35) ->  | BP30: =IF(【進行】結果入力表!H51="","",【進行】結果入力表!H51) ->  | BQ30: =IF(【進行】結果入力表!H59="","",【進行】結果入力表!H59) ->  | BR30: =IF(【進行】結果入力表!H75="","",【進行】結果入力表!H75) -> 105 | BT30: 0 | BU30: 0 | BV30: 105 | BW30: 105 | BX30: 6 | BY30: 山中 | BZ30: SBC | CA30: 105 | CC30: 2 | CD30: 4 | CE30: 903 | CF30: 200903
B31: =IF(【準備】登録!$D$11=0,"",【準備】登録!$S$13) -> 柳川 | E31: =【準備】登録!U13 -> 180 | F31: =IF(【進行】結果入力表!G12="","",【進行】結果入力表!G12) -> 164 | H31: 0 | I31: 1 | J31: 164 | L31: 164 | N31: =IF(【進行】結果入力表!G28="","",【進行】結果入力表!G28) -> 120 | P31: 0 | Q31: 1 | R31: 0 | S31: 2 | T31: 284 | V31: 284 | X31: =IF(【進行】結果入力表!G36="","",【進行】結果入力表!G36) -> 57 | Z31: 0 | AA31: 1 | AB31: 0 | AC31: 3 | AD31: 341 | AF31: 341 | AH31: =IF(【進行】結果入力表!G52="","",【進行】結果入力表!G52) -> w | AJ31: 1 | AK31: 0 | AL31: 1 | AM31: 3 | AN31: 521 | AP31: 521 | AR31: =IF(【進行】結果入力表!G60="","",【進行】結果入力表!G60) -> 62 | AT31: 0 | AU31: 1 | AV31: 1 | AW31: 4 | AX31: 583 | AZ31: 583 | BB31: =IF(【進行】結果入力表!G76="","",【進行】結果入力表!G76) -> 95 | BD31: 0 | BE31: 1 | BF31: 1 | BG31: 5 | BH31: 678 | BJ31: 678 | BL31: 7 | BM31: =IF(【進行】結果入力表!H12="","",【進行】結果入力表!H12) ->  | BN31: =IF(【進行】結果入力表!H28="","",【進行】結果入力表!H28) ->  | BO31: =IF(【進行】結果入力表!H36="","",【進行】結果入力表!H36) ->  | BP31: =IF(【進行】結果入力表!H52="","",【進行】結果入力表!H52) ->  | BQ31: =IF(【進行】結果入力表!H60="","",【進行】結果入力表!H60) ->  | BR31: =IF(【進行】結果入力表!H76="","",【進行】結果入力表!H76) ->  | BT31: 0 | BU31: 0 | BV31: 0 | BW31: 0 | BX31: 8 | BY31: 柳川 | BZ31: SBC | CA31: 0 | CC31: 1 | CD31: 5 | CE31: 678 | CF31: 100678
B32: =IF(【準備】登録!$D$11=0,"",【準備】登録!$V$13) -> 大橋 | E32: =【準備】登録!X13 -> 140 | F32: =IF(【進行】結果入力表!G13="","",【進行】結果入力表!G13) -> 53 | H32: 0 | I32: 1 | J32: 53 | L32: 68.14285714 | N32: =IF(【進行】結果入力表!G29="","",【進行】結果入力表!G29) -> 49 | P32: 0 | Q32: 1 | R32: 0 | S32: 2 | T32: 102 | V32: 131.1428571 | X32: =IF(【進行】結果入力表!G37="","",【進行】結果入力表!G37) -> 102 | Z32: 0 | AA32: 1 | AB32: 0 | AC32: 3 | AD32: 204 | AF32: 262.2857143 | AH32: =IF(【進行】結果入力表!G53="","",【進行】結果入力表!G53) -> w | AJ32: 1 | AK32: 0 | AL32: 1 | AM32: 3 | AN32: 344 | AP32: 442.2857143 | AR32: =IF(【進行】結果入力表!G61="","",【進行】結果入力表!G61) -> 52 | AT32: 0 | AU32: 1 | AV32: 1 | AW32: 4 | AX32: 396 | AZ32: 509.1428571 | BB32: =IF(【進行】結果入力表!G77="","",【進行】結果入力表!G77) -> w | BD32: 1 | BE32: 0 | BF32: 2 | BG32: 4 | BH32: 536 | BJ32: 689.1428571 | BL32: 5 | BM32: =IF(【進行】結果入力表!H13="","",【進行】結果入力表!H13) ->  | BN32: =IF(【進行】結果入力表!H29="","",【進行】結果入力表!H29) ->  | BO32: =IF(【進行】結果入力表!H37="","",【進行】結果入力表!H37) ->  | BP32: =IF(【進行】結果入力表!H53="","",【進行】結果入力表!H53) ->  | BQ32: =IF(【進行】結果入力表!H61="","",【進行】結果入力表!H61) ->  | BR32: =IF(【進行】結果入力表!H77="","",【進行】結果入力表!H77) ->  | BT32: 0 | BU32: 0 | BV32: 0 | BW32: 0 | BX32: 8 | BY32: 大橋 | BZ32: SBC | CA32: 0 | CC32: 2 | CD32: 4 | CE32: 689.1428571 | CF32: 200689.1429
B33: =IF(【準備】登録!$Y$13=0,"",【準備】登録!$Y$13) ->  | E33: =IF(【準備】登録!$Y$13="","",【準備】登録!AA13) ->  | F33: =IF(【進行】結果入力表!G14="","",【進行】結果入力表!G14) ->  | H33: =IF(F33="","",IF(F33="w",1,0)) ->  | I33: =IF(F33="","",IF(F33="w",0,1)) ->  | N33: =IF(【進行】結果入力表!G30="","",【進行】結果入力表!G30) ->  | X33: =IF(【進行】結果入力表!G38="","",【進行】結果入力表!G38) ->  | AH33: =IF(【進行】結果入力表!G54="","",【進行】結果入力表!G54) ->  | AR33: =IF(【進行】結果入力表!G62="","",【進行】結果入力表!G62) ->  | BB33: =IF(【進行】結果入力表!G78="","",【進行】結果入力表!G78) ->  | BM33: =IF(【進行】結果入力表!I14="","",IF(【進行】結果入力表!H14="","",【進行】結果入力表!H14)) ->  | BN33: =IF(【進行】結果入力表!I30="","",IF(【進行】結果入力表!H30="","",【進行】結果入力表!H30)) ->  | BO33: =IF(【進行】結果入力表!I38="","",IF(【進行】結果入力表!H38="","",【進行】結果入力表!H38)) ->  | BP33: =IF(【進行】結果入力表!I54="","",IF(【進行】結果入力表!H54="","",【進行】結果入力表!H54)) ->  | BQ33: =IF(【進行】結果入力表!I61="","",IF(【進行】結果入力表!H62="","",【進行】結果入力表!H62)) ->  | BR33: =IF(【進行】結果入力表!I78="","",IF(【進行】結果入力表!H78="","",【進行】結果入力表!H78)) ->  | BT33: 0 | BU33: 0 | BV33: 0 | BW33: 0 | BX33: 8 | BZ33: SBC | CA33: 0 | CC33: =IF(B33="","",COUNTIF(F33:BC33,"w")) ->  | CD33: =IF(B33="","",COUNT(F33,N33,AH33,X33,AR33,BB33)) ->  | CE33: =IF(CC33="","",CC33*180+SUM(F33,N33,AH33,X33,AR33,BB33)*180/E33) ->  | CF33: =IF(B33="","",CC33*100000+CE33) -> 
B34: Total | H34: =IF(COUNTBLANK(H26:H33)=8,"",SUM(H26:H33)) -> 1 | I34: =IF(COUNTBLANK(I26:I33)=8,"",SUM(I26:I33)) -> 6 | J34: =IF($B26="","",SUM(J26:J33)) -> 896 | K34: =IF($B26="","",SUM(K26:K33)) -> 0 | L34: =IF(COUNTBLANK(L26:L33)=8,"",SUM(L26:L33)) -> 911.1428571 | M34: =IF($B26="","",SUM(M26:M33)) -> 0 | P34: =SUM(P26:P33) -> 2 | Q34: =SUM(Q26:Q33) -> 5 | R34: =IF(COUNTBLANK(R26:R33)=8,"",SUM(H34,P34)) -> 3 | S34: =IF(COUNTBLANK(S26:S33)=8,"",SUM(I34,Q34)) -> 11 | T34: =IF($B26="","",SUM(T26:T33)) -> 1657 | U34: =IF($B26="","",SUM(U26:U33)) -> 0 | V34: =IF(COUNTBLANK(V26:V33)=8,"",SUM(V26:V33)) -> 1686.142857 | W34: =IF($B26="","",SUM(W26:W33)) -> 0 | Z34: =SUM(Z26:Z33) -> 3 | AA34: =SUM(AA26:AA33) -> 4 | AB34: =IF(COUNTBLANK(AB26:AB33)=8,"",SUM(R34,Z34)) -> 6 | AC34: =IF(COUNTBLANK(AC26:AC33)=8,"",SUM(S34,AA34)) -> 15 | AD34: =IF($B26="","",SUM(AD26:AD33)) -> 2662 | AE34: =IF($B26="","",SUM(AE26:AE33)) -> 0 | AF34: =IF(COUNTBLANK(AF26:AF33)=8,"",SUM(AF26:AF33)) -> 2720.285714 | AG34: =IF($B26="","",SUM(AG26:AG33)) -> 0 | AJ34: =SUM(AJ26:AJ33) -> 3 | AK34: =SUM(AK26:AK33) -> 4 | AL34: =IF(COUNTBLANK(AL26:AL33)=8,"",SUM(AB34,AJ34)) -> 9 | AM34: =IF(COUNTBLANK(AM26:AM33)=8,"",SUM(AC34,AK34)) -> 19 | AN34: =IF($B26="","",SUM(AN26:AN33)) -> 3514 | AO34: =IF($B26="","",SUM(AO26:AO33)) -> 0 | AP34: =IF(COUNTBLANK(AP26:AP33)=8,"",SUM(AP26:AP33)) -> 3612.285714 | AQ34: =IF($B26="","",SUM(AQ26:AQ33)) -> 0 | AT34: =SUM(AT26:AT33) -> 2 | AU34: =SUM(AU26:AU33) -> 5 | AV34: =IF(COUNTBLANK(AV26:AV33)=8,"",SUM(AL34,AT34)) -> 11 | AW34: =IF(COUNTBLANK(AW26:AW33)=8,"",SUM(AM34,AU34)) -> 24 | AX34: =IF($B26="","",SUM(AX26:AX33)) -> 4230 | AY34: =IF($B26="","",SUM(AY26:AY33)) -> 0 | AZ34: =IF(COUNTBLANK(AZ26:AZ33)=8,"",SUM(AZ26:AZ33)) -> 4343.142857 | BA34: =IF($B26="","",SUM(BA26:BA33)) -> 0 | BD34: =SUM(BD26:BD33) -> 4 | BE34: =SUM(BE26:BE33) -> 3 | BF34: =IF(COUNTBLANK(BF26:BF33)=8,"",SUM(AV34,BD34)) -> 15 | BG34: =IF(COUNTBLANK(BG26:BG33)=8,"",SUM(AW34,BE34)) -> 27 | BH34: =IF(COUNTIF(BH26:BI33,"")=16,"",SUM(BH26:BH33)) -> 5313 | BI34: =IF($B26="","",SUM(BI26:BI33)) -> 0 | BJ34: =IF(COUNTBLANK(BJ26:BJ33)=8,"",SUM(BJ26:BJ33)) -> 5466.142857 | BK34: =IF($B26="","",SUM(BK26:BK33)) -> 0 | CC34: =SUM(CC26:CC33) -> 15 | CD34: =SUM(CD26:CD33) -> 27 | CE34: =SUM(CE26:CE33) -> 5466.142857 | CF34: =SUM(CF26:CF33) -> 1505466.143
B35: ※ | C35: TPの数字は、ハンデによる換算後の得点を示す。

Sheet 【結果】リーグ成績表
A1: =【結果】個人成績表!A1 -> 第16回 和奈滋対抗戦 (奈良；キングスポット)
AZ2: =【準備】登録!D4 -> 2018-11-18
A3: 第１節 | U3: 第２節 | AO3: 第３節
A4: =【準備】登録!D9 -> 1 | C4: Name | E4: 持点 | F4: =$A$5 -> NRC | H4: =$A$6 -> WRC | J4: =$A$7 -> SBC | L4: W | M4: L | N4: TP | P4: TP | Q4: LP | R4: R_P | S4: R | U4: 1 | W4: Name | Y4: =$E$4 -> 持点 | Z4: =$A$5 -> NRC | AB4: =$A$6 -> WRC | AD4: =$A$7 -> SBC | AF4: W | AG4: L | AH4: TP | AJ4: TP | AK4: LP | AL4: R_P | AM4: R | AO4: 1 | AQ4: Name | AS4: =$E$4 -> 持点 | AT4: =$A$5 -> NRC | AV4: =$A$6 -> WRC | AX4: =$A$7 -> SBC | AZ4: W | BA4: L | BB4: TP | BD4: TP | BE4: LP | BF4: R_P | BG4: R
A5: =IF(【準備】登録!$B$11="","",【準備】登録!$B$11) -> NRC | C5: =【進行】結果入力表!D7 -> 斉藤 | E5: =【準備】登録!F11 -> 180 | H5: =IF(【進行】結果入力表!F15="","",【進行】結果入力表!F15) -> 5 | J5: =IF(【進行】結果入力表!F7="","",【進行】結果入力表!F7) -> 62 | L5: =IF(J5="","",COUNTIF(F5:K5,"w")) -> 0 | M5: =IF(J5="","",COUNT(H5,J5)) -> 2 | N5: =SUM(F5:K5)+L5*E5 -> 67 | P5: =IF(J5="","",N5/E5*180) -> 67 | Q5: =IF(F6="w",180,F6/E5*180)+IF(F7="w",180,F7/E5*180) -> 360 | R5: =L5*10000000+P5*L10004*10000000+P5*1000-Q5 -> 66640 | S5: =IF(J5="","",RANK(R5:R7,R5:R7,0)) -> 3 | U5: =$A$5 -> NRC | W5: =【進行】結果入力表!D39 -> 岩本 | Y5: =【準備】登録!U11 -> 180 | AB5: =IF(【進行】結果入力表!F39="","",【進行】結果入力表!F39) -> 132 | AD5: =IF(【進行】結果入力表!F31="","",【進行】結果入力表!F31) -> 48 | AF5: =IF(AD5="","",COUNTIF(Z5:AE5,"w")) -> 0 | AG5: =IF(AD5="","",COUNT(AB5,AD5)) -> 2 | AH5: =SUM(Z5:AE5)+AF5*Y5 -> 180 | AJ5: =IF(AD5="","",AH5/Y5*180) -> 180 | AK5: =IF(Z6="w",180,Z6/Y5*180)+IF(Z7="w",180,Z7/Y5*180) -> 360 | AL5: =AF5*10000000+AJ5*AF10004*10000000+AJ5*1000-AK5 -> 179640 | AM5: =IF(AD5="","",RANK(AL5:AL7,AL5:AL7,0)) -> 3 | AO5: =$A$5 -> NRC | AQ5: =【進行】結果入力表!D63 -> 白戸 | AS5: =【準備】登録!O11 -> 180 | AV5: =IF(【進行】結果入力表!F63="","",【進行】結果入力表!F63) -> 117 | AX5: =IF(【進行】結果入力表!F55="","",【進行】結果入力表!F55) -> w | AZ5: =IF(AX5="","",COUNTIF(AT5:AY5,"w")) -> 1 | BA5: =IF(AX5="","",COUNT(AV5,AX5)) -> 1 | BB5: =SUM(AT5:AY5)+AZ5*AS5 -> 297 | BD5: =IF(AX5="","",BB5/AS5*180) -> 297 | BE5: =IF(AT6="w",180,AT6/AS5*180)+IF(AT7="w",180,AT7/AS5*180) -> 195 | BF5: =AZ5*10000000+BD5*AZ10004*10000000+BD5*1000-BE5 -> 10296805 | BG5: =IF(AX5="","",RANK(BF5:BF7,BF5:BF7,0)) -> 2
A6: =IF(【準備】登録!$B$12="","",【準備】登録!$B$12) -> WRC | C6: =【進行】結果入力表!I15 -> 和田 | E6: =【準備】登録!F12 -> 180 | F6: =IF(【進行】結果入力表!G15="","",【進行】結果入力表!G15) -> w | J6: =IF(【進行】結果入力表!F23="","",【進行】結果入力表!F23) -> w | L6: =IF(J5="","",COUNTIF(F6:K6,"w")) -> 2 | M6: =IF(J5="","",COUNT(F6,J6)) -> 0 | N6: =SUM(F6:K6)+L6*E6 -> 360 | P6: =IF(J5="","",N6/E6*180) -> 360 | Q6: =IF(H5="w",180,H5/E6*180)+IF(H7="w",180,H7/E6*180) -> 86 | R6: =L6*10000000+P6*L10005*10000000+P6*1000-Q6 -> 20359914 | S6: =IF(J5="","",RANK(R5:R7,R5:R7,0)) -> 1 | U6: =$A$6 -> WRC | W6: =【進行】結果入力表!I39 -> 松房 | Y6: =【準備】登録!X12 -> 140 | Z6: =IF(【進行】結果入力表!G39="","",【進行】結果入力表!G39) -> w | AD6: =IF(【進行】結果入力表!F47="","",【進行】結果入力表!F47) -> w | AF6: =IF(AD5="","",COUNTIF(Z6:AE6,"w")) -> 2 | AG6: =IF(AD5="","",COUNT(Z6,AD6)) -> 0 | AH6: =SUM(Z6:AE6)+AF6*Y6 -> 280 | AJ6: =IF(AD5="","",AH6/Y6*180) -> 360 | AK6: =IF(AB5="w",180,AB5/Y6*180)+IF(AB7="w",180,AB7/Y6*180) -> 198 | AL6: =AF6*10000000+AJ6*AF10005*10000000+AJ6*1000-AK6 -> 20359802 | AM6: =IF(AD5="","",RANK(AL5:AL7,AL5:AL7,0)) -> 1 | AO6: =$A$6 -> WRC | AQ6: =【進行】結果入力表!I63 -> 中本 | AS6: =【準備】登録!U12 -> 180 | AT6: =IF(【進行】結果入力表!G63="","",【進行】結果入力表!G63) -> w | AX6: =IF(【進行】結果入力表!F71="","",【進行】結果入力表!F71) -> 131 | AZ6: =IF(AX5="","",COUNTIF(AT6:AY6,"w")) -> 1 | BA6: =IF(AX5="","",COUNT(AT6,AX6)) -> 1 | BB6: =SUM(AT6:AY6)+AZ6*AS6 -> 311 | BD6: =IF(AX5="","",BB6/AS6*180) -> 311 | BE6: =IF(AV5="w",180,AV5/AS6*180)+IF(AV7="w",180,AV7/AS6*180) -> 297 | BF6: =AZ6*10000000+BD6*AZ10005*10000000+BD6*1000-BE6 -> 10310703 | BG6: =IF(AX5="","",RANK(BF5:BF7,BF5:BF7,0)) -> 1
A7: =IF(【準備】登録!$B$13="","",【準備】登録!$B$13) -> SBC | C7: =【進行】結果入力表!I7 -> 大橋 | E7: =【準備】登録!F13 -> 180 | F7: =IF(【進行】結果入力表!G7="","",【進行】結果入力表!G7) -> w | H7: =IF(【進行】結果入力表!G23="","",【進行】結果入力表!G23) -> 81 | L7: =IF(J5="","",COUNTIF(F7:K7,"w")) -> 1 | M7: =IF(J5="","",COUNT(F7,H7)) -> 1 | N7: =SUM(F7:K7)+L7*E7 -> 261 | P7: =IF(J5="","",N7/E7*180) -> 261 | Q7: =IF(J5="w",180,J5/E7*180)+IF(J6="w",180,J6/E7*180) -> 242 | R7: =L7*10000000+P7*L10006*10000000+P7*1000-Q7 -> 10260758 | S7: =IF(J5="","",RANK(R5:R7,R5:R7,0)) -> 2 | U7: =$A$7 -> SBC | W7: =【進行】結果入力表!I31 -> 大橋 | Y7: =【準備】登録!F13 -> 180 | Z7: =IF(【進行】結果入力表!G31="","",【進行】結果入力表!G31) -> w | AB7: =IF(【進行】結果入力表!G47="","",【進行】結果入力表!G47) -> 22 | AF7: =IF(AD5="","",COUNTIF(Z7:AE7,"w")) -> 1 | AG7: =IF(AD5="","",COUNT(Z7,AB7)) -> 1 | AH7: =SUM(Z7:AE7)+AF7*Y7 -> 202 | AJ7: =IF(AD5="","",AH7/Y7*180) -> 202 | AK7: =IF(AD5="w",180,AD5/Y7*180)+IF(AD6="w",180,AD6/Y7*180) -> 228 | AL7: =AF7*10000000+AJ7*AF10006*10000000+AJ7*1000-AK7 -> 10201772 | AM7: =IF(AD5="","",RANK(AL5:AL7,AL5:AL7,0)) -> 2 | AO7: =$A$7 -> SBC | AQ7: =【進行】結果入力表!I55 -> 大橋 | AS7: =【準備】登録!F13 -> 180 | AT7: =IF(【進行】結果入力表!G55="","",【進行】結果入力表!G55) -> 15 | AV7: =IF(【進行】結果入力表!G71="","",【進行】結果入力表!G71) -> w | AZ7: =IF(AX5="","",COUNTIF(AT7:AY7,"w")) -> 1 | BA7: =IF(AX5="","",COUNT(AT7,AV7)) -> 1 | BB7: =SUM(AT7:AY7)+AZ7*AS7 -> 195 | BD7: =IF(AX5="","",BB7/AS7*180) -> 195 | BE7: =IF(AX5="w",180,AX5/AS7*180)+IF(AX6="w",180,AX6/AS7*180) -> 311 | BF7: =AZ7*10000000+BD7*AZ10006*10000000+BD7*1000-BE7 -> 10194689 | BG7: =IF(AX5="","",RANK(BF5:BF7,BF5:BF7,0)) -> 3
A9: 2 | C9: Name | E9: =$E$4 -> 持点 | F9: =$A$5 -> NRC | H9: =$A$6 -> WRC | J9: =$A$7 -> SBC | L9: W | M9: L | N9: TP | P9: TP | Q9: LP | R9: R_P | S9: R | U9: 2 | W9: Name | Y9: =$E$4 -> 持点 | Z9: =$A$5 -> NRC | AB9: =$A$6 -> WRC | AD9: =$A$7 -> SBC | AF9: W | AG9: L | AH9: TP | AJ9: TP | AK9: LP | AL9: R_P | AM9: R | AO9: 2 | AQ9: Name | AS9: =$E$4 -> 持点 | AT9: =$A$5 -> NRC | AV9: =$A$6 -> WRC | AX9: =$A$7 -> SBC | AZ9: W | BA9: L | BB9: TP | BD9: TP | BE9: LP | BF9: R_P | BG9: R
A10: =$A$5 -> NRC | C10: =【進行】結果入力表!D8 -> 山田 | E10: =【準備】登録!I11 -> 180 | H10: =IF(【進行】結果入力表!F16="","",【進行】結果入力表!F16) -> w | J10: =IF(【進行】結果入力表!F8="","",【進行】結果入力表!F8) -> w | L10: =IF(J10="","",COUNTIF(F10:K10,"w")) -> 2 | M10: =IF(J10="","",COUNT(H10,J10)) -> 0 | N10: =SUM(F10:K10)+L10*E10 -> 360 | P10: =IF(J10="","",N10/E10*180) -> 360 | Q10: =IF(F11="w",180,F11/E10*180)+IF(F12="w",180,F12/E10*180) -> 217 | R10: =L10*10000000+P10*L10009*10000000+P10*1000-Q10 -> 20359783 | S10: =IF(J10="","",RANK(R10:R12,R10:R12,0)) -> 1 | U10: =$A$5 -> NRC | W10: =【進行】結果入力表!D40 -> 白戸 | Y10: =【準備】登録!X11 -> 140 | AB10: =IF(【進行】結果入力表!F40="","",【進行】結果入力表!F40) -> 120 | AD10: =IF(【進行】結果入力表!F32="","",【進行】結果入力表!F32) -> 96 | AF10: =IF(AD10="","",COUNTIF(Z10:AE10,"w")) -> 0 | AG10: =IF(AD10="","",COUNT(AB10,AD10)) -> 2 | AH10: =SUM(Z10:AE10)+AF10*Y10 -> 216 | AJ10: =IF(AD10="","",AH10/Y10*180) -> 277.7142857 | AK10: =IF(Z11="w",180,Z11/Y10*180)+IF(Z12="w",180,Z12/Y10*180) -> 360 | AL10: =AF10*10000000+AJ10*AF10009*10000000+AJ10*1000-AK10 -> 277354.2857 | AM10: =IF(AD10="","",RANK(AL10:AL12,AL10:AL12,0)) -> 3 | AO10: =$A$5 -> NRC | AQ10: =【進行】結果入力表!D64 -> 植田 | AS10: =【準備】登録!R11 -> 180 | AV10: =IF(【進行】結果入力表!F64="","",【進行】結果入力表!F64) -> 84 | AX10: =IF(【進行】結果入力表!F56="","",【進行】結果入力表!F56) -> w | AZ10: =IF(AX10="","",COUNTIF(AT10:AY10,"w")) -> 1 | BA10: =IF(AX10="","",COUNT(AV10,AX10)) -> 1 | BB10: =SUM(AT10:AY10)+AZ10*AS10 -> 264 | BD10: =IF(AX10="","",BB10/AS10*180) -> 264 | BE10: =IF(AT11="w",180,AT11/AS10*180)+IF(AT12="w",180,AT12/AS10*180) -> 252 | BF10: =AZ10*10000000+BD10*AZ10009*10000000+BD10*1000-BE10 -> 10263748 | BG10: =IF(AX10="","",RANK(BF10:BF12,BF10:BF12,0)) -> 2
A11: =$A$6 -> WRC | C11: =【進行】結果入力表!I16 -> 山中 | E11: =【準備】登録!I12 -> 180 | F11: =IF(【進行】結果入力表!G16="","",【進行】結果入力表!G16) -> 134 | J11: =IF(【進行】結果入力表!F24="","",【進行】結果入力表!F24) -> 159 | L11: =IF(J10="","",COUNTIF(F11:K11,"w")) -> 0 | M11: =IF(J10="","",COUNT(F11,J11)) -> 2 | N11: =SUM(F11:K11)+L11*E11 -> 293 | P11: =IF(J10="","",N11/E11*180) -> 293 | Q11: =IF(H10="w",180,H10/E11*180)+IF(H12="w",180,H12/E11*180) -> 360 | R11: =L11*10000000+P11*L10010*10000000+P11*1000-Q11 -> 292640 | S11: =IF(J10="","",RANK(R10:R12,R10:R12,0)) -> 3 | U11: =$A$6 -> WRC | W11: =【進行】結果入力表!I40 -> 和田 | Y11: =【準備】登録!F12 -> 180 | Z11: =IF(【進行】結果入力表!G40="","",【進行】結果入力表!G40) -> w | AD11: =IF(【進行】結果入力表!F48="","",【進行】結果入力表!F48) -> 98 | AF11: =IF(AD10="","",COUNTIF(Z11:AE11,"w")) -> 1 | AG11: =IF(AD10="","",COUNT(Z11,AD11)) -> 1 | AH11: =SUM(Z11:AE11)+AF11*Y11 -> 278 | AJ11: =IF(AD10="","",AH11/Y11*180) -> 278 | AK11: =IF(AB10="w",180,AB10/Y11*180)+IF(AB12="w",180,AB12/Y11*180) -> 300 | AL11: =AF11*10000000+AJ11*AF10010*10000000+AJ11*1000-AK11 -> 10277700 | AM11: =IF(AD10="","",RANK(AL10:AL12,AL10:AL12,0)) -> 2 | AO11: =$A$6 -> WRC | AQ11: =【進行】結果入力表!I64 -> 松房 | AS11: =【準備】登録!X12 -> 140 | AT11: =IF(【進行】結果入力表!G64="","",【進行】結果入力表!G64) -> w | AX11: =IF(【進行】結果入力表!F72="","",【進行】結果入力表!F72) -> w | AZ11: =IF(AX10="","",COUNTIF(AT11:AY11,"w")) -> 2 | BA11: =IF(AX10="","",COUNT(AT11,AX11)) -> 0 | BB11: =SUM(AT11:AY11)+AZ11*AS11 -> 280 | BD11: =IF(AX10="","",BB11/AS11*180) -> 360 | BE11: =IF(AV10="w",180,AV10/AS11*180)+IF(AV12="w",180,AV12/AS11*180) -> 300.8571429 | BF11: =AZ11*10000000+BD11*AZ10010*10000000+BD11*1000-BE11 -> 20359699.14 | BG11: =IF(AX10="","",RANK(BF10:BF12,BF10:BF12,0)) -> 1
A12: =$A$7 -> SBC | C12: =【進行】結果入力表!I8 -> 西峰 | E12: =【準備】登録!I13 -> 180 | F12: =IF(【進行】結果入力表!G8="","",【進行】結果入力表!G8) -> 83 | H12: =IF(【進行】結果入力表!G24="","",【進行】結果入力表!G24) -> w | L12: =IF(J10="","",COUNTIF(F12:K12,"w")) -> 1 | M12: =IF(J10="","",COUNT(F12,H12)) -> 1 | N12: =SUM(F12:K12)+L12*E12 -> 263 | P12: =IF(J10="","",N12/E12*180) -> 263 | Q12: =IF(J10="w",180,J10/E12*180)+IF(J11="w",180,J11/E12*180) -> 339 | R12: =L12*10000000+P12*L10011*10000000+P12*1000-Q12 -> 10262661 | S12: =IF(J10="","",RANK(R10:R12,R10:R12,0)) -> 2 | U12: =$A$7 -> SBC | W12: =【進行】結果入力表!I32 -> 西峰 | Y12: =【準備】登録!I13 -> 180 | Z12: =IF(【進行】結果入力表!G32="","",【進行】結果入力表!G32) -> w | AB12: =IF(【進行】結果入力表!G48="","",【進行】結果入力表!G48) -> w | AF12: =IF(AD10="","",COUNTIF(Z12:AE12,"w")) -> 2 | AG12: =IF(AD10="","",COUNT(Z12,AB12)) -> 0 | AH12: =SUM(Z12:AE12)+AF12*Y12 -> 360 | AJ12: =IF(AD10="","",AH12/Y12*180) -> 360 | AK12: =IF(AD10="w",180,AD10/Y12*180)+IF(AD11="w",180,AD11/Y12*180) -> 194 | AL12: =AF12*10000000+AJ12*AF10011*10000000+AJ12*1000-AK12 -> 20359806 | AM12: =IF(AD10="","",RANK(AL10:AL12,AL10:AL12,0)) -> 1 | AO12: =$A$7 -> SBC | AQ12: =【進行】結果入力表!I56 -> 西峰 | AS12: =【準備】登録!I13 -> 180 | AT12: =IF(【進行】結果入力表!G56="","",【進行】結果入力表!G56) -> 72 | AV12: =IF(【進行】結果入力表!G72="","",【進行】結果入力表!G72) -> 150 | AZ12: =IF(AX10="","",COUNTIF(AT12:AY12,"w")) -> 0 | BA12: =IF(AX10="","",COUNT(AT12,AV12)) -> 2 | BB12: =SUM(AT12:AY12)+AZ12*AS12 -> 222 | BD12: =IF(AX10="","",BB12/AS12*180) -> 222 | BE12: =IF(AX10="w",180,AX10/AS12*180)+IF(AX11="w",180,AX11/AS12*180) -> 360 | BF12: =AZ12*10000000+BD12*AZ10011*10000000+BD12*1000-BE12 -> 221640 | BG12: =IF(AX10="","",RANK(BF10:BF12,BF10:BF12,0)) -> 3
A14: 3 | C14: Name | E14: =E$4 -> 持点 | F14: =$A$5 -> NRC | H14: =$A$6 -> WRC | J14: =$A$7 -> SBC | L14: W | M14: L | N14: TP | P14: TP | Q14: LP | R14: R_P | S14: R | U14: 3 | W14: Name | Y14: =$E$4 -> 持点 | Z14: =$A$5 -> NRC | AB14: =$A$6 -> WRC | AD14: =$A$7 -> SBC | AF14: W | AG14: L | AH14: TP | AJ14: TP | AK14: LP | AL14: R_P | AM14: R | AO14: 3 | AQ14: Name | AS14: =$E$4 -> 持点 | AT14: =$A$5 -> NRC | AV14: =$A$6 -> WRC | AX14: =$A$7 -> SBC | AZ14: W | BA14: L | BB14: TP | BD14: TP | BE14: LP | BF14: R_P | BG14: R
A15: =$A$5 -> NRC | C15: =【進行】結果入力表!D9 -> 吉向 | E15: =【準備】登録!L11 -> 180 | H15: =IF(【進行】結果入力表!F17="","",【進行】結果入力表!F17) -> w | J15: =IF(【進行】結果入力表!F9="","",【進行】結果入力表!F9) -> w | L15: =IF(J15="","",COUNTIF(F15:K15,"w")) -> 2 | M15: =IF(J15="","",COUNT(H15,J15)) -> 0 | N15: =SUM(F15:K15)+L15*E15 -> 360 | P15: =IF(J15="","",N15/E15*180) -> 360 | Q15: =IF(F16="w",180,F16/E15*180)+IF(F17="w",180,F17/E15*180) -> 321 | R15: =L15*10000000+P15*L10014*10000000+P15*1000-Q15 -> 20359679 | S15: =IF(J15="","",RANK(R15:R17,R15:R17,0)) -> 1 | U15: =$A$5 -> NRC | W15: =【進行】結果入力表!D41 -> 斉藤 | Y15: =【準備】登録!F11 -> 180 | AB15: =IF(【進行】結果入力表!F41="","",【進行】結果入力表!F41) -> w | AD15: =IF(【進行】結果入力表!F33="","",【進行】結果入力表!F33) -> 107 | AF15: =IF(AD15="","",COUNTIF(Z15:AE15,"w")) -> 1 | AG15: =IF(AD15="","",COUNT(AB15,AD15)) -> 1 | AH15: =SUM(Z15:AE15)+AF15*Y15 -> 287 | AJ15: =IF(AD15="","",AH15/Y15*180) -> 287 | AK15: =IF(Z16="w",180,Z16/Y15*180)+IF(Z17="w",180,Z17/Y15*180) -> 195 | AL15: =AF15*10000000+AJ15*AF10014*10000000+AJ15*1000-AK15 -> 10286805 | AM15: =IF(AD15="","",RANK(AL15:AL17,AL15:AL17,0)) -> 1 | AO15: =$A$5 -> NRC | AQ15: =【進行】結果入力表!D65 -> 岩本 | AS15: =【準備】登録!U11 -> 180 | AV15: =IF(【進行】結果入力表!F65="","",【進行】結果入力表!F65) -> 148 | AX15: =IF(【進行】結果入力表!F57="","",【進行】結果入力表!F57) -> 147 | AZ15: =IF(AX15="","",COUNTIF(AT15:AY15,"w")) -> 0 | BA15: =IF(AX15="","",COUNT(AV15,AX15)) -> 2 | BB15: =SUM(AT15:AY15)+AZ15*AS15 -> 295 | BD15: =IF(AX15="","",BB15/AS15*180) -> 295 | BE15: =IF(AT16="w",180,AT16/AS15*180)+IF(AT17="w",180,AT17/AS15*180) -> 360 | BF15: =AZ15*10000000+BD15*AZ10014*10000000+BD15*1000-BE15 -> 294640 | BG15: =IF(AX15="","",RANK(BF15:BF17,BF15:BF17,0)) -> 3
A16: =$A$6 -> WRC | C16: =【進行】結果入力表!I17 -> 末岡 | E16: =【準備】登録!L12 -> 180 | F16: =IF(【進行】結果入力表!G17="","",【進行】結果入力表!G17) -> 164 | J16: =IF(【進行】結果入力表!F25="","",【進行】結果入力表!F25) -> w | L16: =IF(J15="","",COUNTIF(F16:K16,"w")) -> 1 | M16: =IF(J15="","",COUNT(F16,J16)) -> 1 | N16: =SUM(F16:K16)+L16*E16 -> 344 | P16: =IF(J15="","",N16/E16*180) -> 344 | Q16: =IF(H15="w",180,H15/E16*180)+IF(H17="w",180,H17/E16*180) -> 258 | R16: =L16*10000000+P16*L10015*10000000+P16*1000-Q16 -> 10343742 | S16: =IF(J15="","",RANK(R15:R17,R15:R17,0)) -> 2 | U16: =$A$6 -> WRC | W16: =【進行】結果入力表!I41 -> 山中 | Y16: =【準備】登録!I12 -> 180 | Z16: =IF(【進行】結果入力表!G41="","",【進行】結果入力表!G41) -> 15 | AD16: =IF(【進行】結果入力表!F49="","",【進行】結果入力表!F49) -> w | AF16: =IF(AD15="","",COUNTIF(Z16:AE16,"w")) -> 1 | AG16: =IF(AD15="","",COUNT(Z16,AD16)) -> 1 | AH16: =SUM(Z16:AE16)+AF16*Y16 -> 195 | AJ16: =IF(AD15="","",AH16/Y16*180) -> 195 | AK16: =IF(AB15="w",180,AB15/Y16*180)+IF(AB17="w",180,AB17/Y16*180) -> 284 | AL16: =AF16*10000000+AJ16*AF10015*10000000+AJ16*1000-AK16 -> 10194716 | AM16: =IF(AD15="","",RANK(AL15:AL17,AL15:AL17,0)) -> 3 | AO16: =$A$6 -> WRC | AQ16: =【進行】結果入力表!I65 -> 和田 | AS16: =【準備】登録!F12 -> 180 | AT16: =IF(【進行】結果入力表!G65="","",【進行】結果入力表!G65) -> w | AX16: =IF(【進行】結果入力表!F73="","",【進行】結果入力表!F73) -> 92 | AZ16: =IF(AX15="","",COUNTIF(AT16:AY16,"w")) -> 1 | BA16: =IF(AX15="","",COUNT(AT16,AX16)) -> 1 | BB16: =SUM(AT16:AY16)+AZ16*AS16 -> 272 | BD16: =IF(AX15="","",BB16/AS16*180) -> 272 | BE16: =IF(AV15="w",180,AV15/AS16*180)+IF(AV17="w",180,AV17/AS16*180) -> 328 | BF16: =AZ16*10000000+BD16*AZ10015*10000000+BD16*1000-BE16 -> 10271672 | BG16: =IF(AX15="","",RANK(BF15:BF17,BF15:BF17,0)) -> 2
A17: =$A$7 -> SBC | C17: =【進行】結果入力表!I9 -> 林 | E17: =【準備】登録!L13 -> 180 | F17: =IF(【進行】結果入力表!G9="","",【進行】結果入力表!G9) -> 157 | H17: =IF(【進行】結果入力表!G25="","",【進行】結果入力表!G25) -> 78 | L17: =IF(J15="","",COUNTIF(F17:K17,"w")) -> 0 | M17: =IF(J15="","",COUNT(F17,H17)) -> 2 | N17: =SUM(F17:K17)+L17*E17 -> 235 | P17: =IF(J15="","",N17/E17*180) -> 235 | Q17: =IF(J15="w",180,J15/E17*180)+IF(J16="w",180,J16/E17*180) -> 360 | R17: =L17*10000000+P17*L10016*10000000+P17*1000-Q17 -> 234640 | S17: =IF(J15="","",RANK(R15:R17,R15:R17,0)) -> 3 | U17: =$A$7 -> SBC | W17: =【進行】結果入力表!I33 -> 林 | Y17: =【準備】登録!L13 -> 180 | Z17: =IF(【進行】結果入力表!G33="","",【進行】結果入力表!G33) -> w | AB17: =IF(【進行】結果入力表!G49="","",【進行】結果入力表!G49) -> 104 | AF17: =IF(AD15="","",COUNTIF(Z17:AE17,"w")) -> 1 | AG17: =IF(AD15="","",COUNT(Z17,AB17)) -> 1 | AH17: =SUM(Z17:AE17)+AF17*Y17 -> 284 | AJ17: =IF(AD15="","",AH17/Y17*180) -> 284 | AK17: =IF(AD15="w",180,AD15/Y17*180)+IF(AD16="w",180,AD16/Y17*180) -> 287 | AL17: =AF17*10000000+AJ17*AF10016*10000000+AJ17*1000-AK17 -> 10283713 | AM17: =IF(AD15="","",RANK(AL15:AL17,AL15:AL17,0)) -> 2 | AO17: =$A$7 -> SBC | AQ17: =【進行】結果入力表!I57 -> 林 | AS17: =【準備】登録!L13 -> 180 | AT17: =IF(【進行】結果入力表!G57="","",【進行】結果入力表!G57) -> w | AV17: =IF(【進行】結果入力表!G73="","",【進行】結果入力表!G73) -> w | AZ17: =IF(AX15="","",COUNTIF(AT17:AY17,"w")) -> 2 | BA17: =IF(AX15="","",COUNT(AT17,AV17)) -> 0 | BB17: =SUM(AT17:AY17)+AZ17*AS17 -> 360 | BD17: =IF(AX15="","",BB17/AS17*180) -> 360 | BE17: =IF(AX15="w",180,AX15/AS17*180)+IF(AX16="w",180,AX16/AS17*180) -> 239 | BF17: =AZ17*10000000+BD17*AZ10016*10000000+BD17*1000-BE17 -> 20359761 | BG17: =IF(AX15="","",RANK(BF15:BF17,BF15:BF17,0)) -> 1
A19: 4 | C19: Name | E19: =E$4 -> 持点 | F19: =$A$5 -> NRC | H19: =$A$6 -> WRC | J19: =$A$7 -> SBC | L19: W | M19: L | N19: TP | P19: TP | Q19: LP | R19: R_P | S19: R | U19: 4 | W19: Name | Y19: =$E$4 -> 持点 | Z19: =$A$5 -> NRC | AB19: =$A$6 -> WRC | AD19: =$A$7 -> SBC | AF19: W | AG19: L | AH19: TP | AJ19: TP | AK19: LP | AL19: R_P | AM19: R | AO19: 4 | AQ19: Name | AS19: =$E$4 -> 持点 | AT19: =$A$5 -> NRC | AV19: =$A$6 -> WRC | AX19: =$A$7 -> SBC | AZ19: W | BA19: L | BB19: TP | BD19: TP | BE19: LP | BF19: R_P | BG19: R
A20: =$A$5 -> NRC | C20: =【進行】結果入力表!D10 -> 白戸 | E20: =【準備】登録!O11 -> 180 | H20: =IF(【進行】結果入力表!F18="","",【進行】結果入力表!F18) -> 57 | J20: =IF(【進行】結果入力表!F10="","",【進行】結果入力表!F10) -> w | L20: =IF(J20="","",COUNTIF(F20:K20,"w")) -> 1 | M20: =IF(J20="","",COUNT(H20,J20)) -> 1 | N20: =SUM(F20:K20)+L20*E20 -> 237 | P20: =IF(J20="","",N20/E20*180) -> 237 | Q20: =IF(F21="w",180,F21/E20*180)+IF(F22="w",180,F22/E20*180) -> 298 | R20: =L20*10000000+P20*L10019*10000000+P20*1000-Q20 -> 10236702 | S20: =IF(J20="","",RANK(R20:R22,R20:R22,0)) -> 2 | U20: =$A$5 -> NRC | W20: =【進行】結果入力表!D42 -> 山田 | Y20: =【準備】登録!I11 -> 180 | AB20: =IF(【進行】結果入力表!F42="","",【進行】結果入力表!F42) -> w | AD20: =IF(【進行】結果入力表!F34="","",【進行】結果入力表!F34) -> w | AF20: =IF(AD20="","",COUNTIF(Z20:AE20,"w")) -> 2 | AG20: =IF(AD20="","",COUNT(AB20,AD20)) -> 0 | AH20: =SUM(Z20:AE20)+AF20*Y20 -> 360 | AJ20: =IF(AD20="","",AH20/Y20*180) -> 360 | AK20: =IF(Z21="w",180,Z21/Y20*180)+IF(Z22="w",180,Z22/Y20*180) -> 282 | AL20: =AF20*10000000+AJ20*AF10019*10000000+AJ20*1000-AK20 -> 20359718 | AM20: =IF(AD20="","",RANK(AL20:AL22,AL20:AL22,0)) -> 1 | AO20: =$A$5 -> NRC | AQ20: =【進行】結果入力表!D66 -> 白戸 | AS20: =【準備】登録!X11 -> 140 | AV20: =IF(【進行】結果入力表!F66="","",【進行】結果入力表!F66) -> 138 | AX20: =IF(【進行】結果入力表!F58="","",【進行】結果入力表!F58) -> w | AZ20: =IF(AX20="","",COUNTIF(AT20:AY20,"w")) -> 1 | BA20: =IF(AX20="","",COUNT(AV20,AX20)) -> 1 | BB20: =SUM(AT20:AY20)+AZ20*AS20 -> 278 | BD20: =IF(AX20="","",BB20/AS20*180) -> 357.4285714 | BE20: =IF(AT21="w",180,AT21/AS20*180)+IF(AT22="w",180,AT22/AS20*180) -> 379.2857143 | BF20: =AZ20*10000000+BD20*AZ10019*10000000+BD20*1000-BE20 -> 10357049.29 | BG20: =IF(AX20="","",RANK(BF20:BF22,BF20:BF22,0)) -> 1
A21: =$A$6 -> WRC | C21: =【進行】結果入力表!I18 -> 杉本 | E21: =【準備】登録!O12 -> 180 | F21: =IF(【進行】結果入力表!G18="","",【進行】結果入力表!G18) -> w | J21: =IF(【進行】結果入力表!F26="","",【進行】結果入力表!F26) -> w | L21: =IF(J20="","",COUNTIF(F21:K21,"w")) -> 2 | M21: =IF(J20="","",COUNT(F21,J21)) -> 0 | N21: =SUM(F21:K21)+L21*E21 -> 360 | P21: =IF(J20="","",N21/E21*180) -> 360 | Q21: =IF(H20="w",180,H20/E21*180)+IF(H22="w",180,H22/E21*180) -> 130 | R21: =L21*10000000+P21*L10020*10000000+P21*1000-Q21 -> 20359870 | S21: =IF(J20="","",RANK(R20:R22,R20:R22,0)) -> 1 | U21: =$A$6 -> WRC | W21: =【進行】結果入力表!I42 -> 末岡 | Y21: =【準備】登録!L12 -> 180 | Z21: =IF(【進行】結果入力表!G42="","",【進行】結果入力表!G42) -> 145 | AD21: =IF(【進行】結果入力表!F50="","",【進行】結果入力表!F50) -> w | AF21: =IF(AD20="","",COUNTIF(Z21:AE21,"w")) -> 1 | AG21: =IF(AD20="","",COUNT(Z21,AD21)) -> 1 | AH21: =SUM(Z21:AE21)+AF21*Y21 -> 325 | AJ21: =IF(AD20="","",AH21/Y21*180) -> 325 | AK21: =IF(AB20="w",180,AB20/Y21*180)+IF(AB22="w",180,AB22/Y21*180) -> 331 | AL21: =AF21*10000000+AJ21*AF10020*10000000+AJ21*1000-AK21 -> 10324669 | AM21: =IF(AD20="","",RANK(AL20:AL22,AL20:AL22,0)) -> 2 | AO21: =$A$6 -> WRC | AQ21: =【進行】結果入力表!I66 -> 山中 | AS21: =【準備】登録!I12 -> 180 | AT21: =IF(【進行】結果入力表!G66="","",【進行】結果入力表!G66) -> w | AX21: =IF(【進行】結果入力表!F74="","",【進行】結果入力表!F74) -> 131 | AZ21: =IF(AX20="","",COUNTIF(AT21:AY21,"w")) -> 1 | BA21: =IF(AX20="","",COUNT(AT21,AX21)) -> 1 | BB21: =SUM(AT21:AY21)+AZ21*AS21 -> 311 | BD21: =IF(AX20="","",BB21/AS21*180) -> 311 | BE21: =IF(AV20="w",180,AV20/AS21*180)+IF(AV22="w",180,AV22/AS21*180) -> 318 | BF21: =AZ21*10000000+BD21*AZ10020*10000000+BD21*1000-BE21 -> 10310682 | BG21: =IF(AX20="","",RANK(BF20:BF22,BF20:BF22,0)) -> 3
A22: =$A$7 -> SBC | C22: =【進行】結果入力表!I10 -> 秋田 | E22: =【準備】登録!O13 -> 180 | F22: =IF(【進行】結果入力表!G10="","",【進行】結果入力表!G10) -> 118 | H22: =IF(【進行】結果入力表!G26="","",【進行】結果入力表!G26) -> 73 | L22: =IF(J20="","",COUNTIF(F22:K22,"w")) -> 0 | M22: =IF(J20="","",COUNT(F22,H22)) -> 2 | N22: =SUM(F22:K22)+L22*E22 -> 191 | P22: =IF(J20="","",N22/E22*180) -> 191 | Q22: =IF(J20="w",180,J20/E22*180)+IF(J21="w",180,J21/E22*180) -> 360 | R22: =L22*10000000+P22*L10021*10000000+P22*1000-Q22 -> 190640 | S22: =IF(J20="","",RANK(R20:R22,R20:R22,0)) -> 3 | U22: =$A$7 -> SBC | W22: =【進行】結果入力表!I34 -> 秋田 | Y22: =【準備】登録!O13 -> 180 | Z22: =IF(【進行】結果入力表!G34="","",【進行】結果入力表!G34) -> 137 | AB22: =IF(【進行】結果入力表!G50="","",【進行】結果入力表!G50) -> 151 | AF22: =IF(AD20="","",COUNTIF(Z22:AE22,"w")) -> 0 | AG22: =IF(AD20="","",COUNT(Z22,AB22)) -> 2 | AH22: =SUM(Z22:AE22)+AF22*Y22 -> 288 | AJ22: =IF(AD20="","",AH22/Y22*180) -> 288 | AK22: =IF(AD20="w",180,AD20/Y22*180)+IF(AD21="w",180,AD21/Y22*180) -> 360 | AL22: =AF22*10000000+AJ22*AF10021*10000000+AJ22*1000-AK22 -> 287640 | AM22: =IF(AD20="","",RANK(AL20:AL22,AL20:AL22,0)) -> 3 | AO22: =$A$7 -> SBC | AQ22: =【進行】結果入力表!I58 -> 秋田 | AS22: =【準備】登録!O13 -> 180 | AT22: =IF(【進行】結果入力表!G58="","",【進行】結果入力表!G58) -> 155 | AV22: =IF(【進行】結果入力表!G74="","",【進行】結果入力表!G74) -> w | AZ22: =IF(AX20="","",COUNTIF(AT22:AY22,"w")) -> 1 | BA22: =IF(AX20="","",COUNT(AT22,AV22)) -> 1 | BB22: =SUM(AT22:AY22)+AZ22*AS22 -> 335 | BD22: =IF(AX20="","",BB22/AS22*180) -> 335 | BE22: =IF(AX20="w",180,AX20/AS22*180)+IF(AX21="w",180,AX21/AS22*180) -> 311 | BF22: =AZ22*10000000+BD22*AZ10021*10000000+BD22*1000-BE22 -> 10334689 | BG22: =IF(AX20="","",RANK(BF20:BF22,BF20:BF22,0)) -> 2
A24: 5 | C24: Name | E24: =E$4 -> 持点 | F24: =$A$5 -> NRC | H24: =$A$6 -> WRC | J24: =$A$7 -> SBC | L24: W | M24: L | N24: TP | P24: TP | Q24: LP | R24: R_P | S24: R | U24: 5 | W24: Name | Y24: =$E$4 -> 持点 | Z24: =$A$5 -> NRC | AB24: =$A$6 -> WRC | AD24: =$A$7 -> SBC | AF24: W | AG24: L | AH24: TP | AJ24: TP | AK24: LP | AL24: R_P | AM24: R | AO24: 5 | AQ24: Name | AS24: =$E$4 -> 持点 | AT24: =$A$5 -> NRC | AV24: =$A$6 -> WRC | AX24: =$A$7 -> SBC | AZ24: W | BA24: L | BB24: TP | BD24: TP | BE24: LP | BF24: R_P | BG24: R
A25: =$A$5 -> NRC | C25: =【進行】結果入力表!D11 -> 植田 | E25: =【準備】登録!R11 -> 180 | H25: =IF(【進行】結果入力表!F19="","",【進行】結果入力表!F19) -> w | J25: =IF(【進行】結果入力表!F11="","",【進行】結果入力表!F11) -> w | L25: =IF(J25="","",COUNTIF(F25:K25,"w")) -> 2 | M25: =IF(J25="","",COUNT(H25,J25)) -> 0 | N25: =SUM(F25:K25)+L25*E25 -> 360 | P25: =IF(J25="","",N25/E25*180) -> 360 | Q25: =IF(F26="w",180,F26/E25*180)+IF(F27="w",180,F27/E25*180) -> 162 | R25: =L25*10000000+P25*L10024*10000000+P25*1000-Q25 -> 20359838 | S25: =IF(J25="","",RANK(R25:R27,R25:R27,0)) -> 1 | U25: =$A$5 -> NRC | W25: =【進行】結果入力表!D43 -> 吉向 | Y25: =【準備】登録!L11 -> 180 | AB25: =IF(【進行】結果入力表!F43="","",【進行】結果入力表!F43) -> w | AD25: =IF(【進行】結果入力表!F35="","",【進行】結果入力表!F35) -> w | AF25: =IF(AD25="","",COUNTIF(Z25:AE25,"w")) -> 2 | AG25: =IF(AD25="","",COUNT(AB25,AD25)) -> 0 | AH25: =SUM(Z25:AE25)+AF25*Y25 -> 360 | AJ25: =IF(AD25="","",AH25/Y25*180) -> 360 | AK25: =IF(Z26="w",180,Z26/Y25*180)+IF(Z27="w",180,Z27/Y25*180) -> 333 | AL25: =AF25*10000000+AJ25*AF10024*10000000+AJ25*1000-AK25 -> 20359667 | AM25: =IF(AD25="","",RANK(AL25:AL27,AL25:AL27,0)) -> 1 | AO25: =$A$5 -> NRC | AQ25: =【進行】結果入力表!D67 -> 斉藤 | AS25: =【準備】登録!F11 -> 180 | AV25: =IF(【進行】結果入力表!F67="","",【進行】結果入力表!F67) -> w | AX25: =IF(【進行】結果入力表!F59="","",【進行】結果入力表!F59) -> 87 | AZ25: =IF(AX25="","",COUNTIF(AT25:AY25,"w")) -> 1 | BA25: =IF(AX25="","",COUNT(AV25,AX25)) -> 1 | BB25: =SUM(AT25:AY25)+AZ25*AS25 -> 267 | BD25: =IF(AX25="","",BB25/AS25*180) -> 267 | BE25: =IF(AT26="w",180,AT26/AS25*180)+IF(AT27="w",180,AT27/AS25*180) -> 272 | BF25: =AZ25*10000000+BD25*AZ10024*10000000+BD25*1000-BE25 -> 10266728 | BG25: =IF(AX25="","",RANK(BF25:BF27,BF25:BF27,0)) -> 3
A26: =$A$6 -> WRC | C26: =【進行】結果入力表!I19 -> 大迫 | E26: =【準備】登録!R12 -> 180 | F26: =IF(【進行】結果入力表!G19="","",【進行】結果入力表!G19) -> 21 | J26: =IF(【進行】結果入力表!F27="","",【進行】結果入力表!F27) -> 74 | L26: =IF(J25="","",COUNTIF(F26:K26,"w")) -> 0 | M26: =IF(J25="","",COUNT(F26,J26)) -> 2 | N26: =SUM(F26:K26)+L26*E26 -> 95 | P26: =IF(J25="","",N26/E26*180) -> 95 | Q26: =IF(H25="w",180,H25/E26*180)+IF(H27="w",180,H27/E26*180) -> 360 | R26: =L26*10000000+P26*L10025*10000000+P26*1000-Q26 -> 94640 | S26: =IF(J25="","",RANK(R25:R27,R25:R27,0)) -> 3 | U26: =$A$6 -> WRC | W26: =【進行】結果入力表!I43 -> 杉本 | Y26: =【準備】登録!O12 -> 180 | Z26: =IF(【進行】結果入力表!G43="","",【進行】結果入力表!G43) -> 164 | AD26: =IF(【進行】結果入力表!F51="","",【進行】結果入力表!F51) -> w | AF26: =IF(AD25="","",COUNTIF(Z26:AE26,"w")) -> 1 | AG26: =IF(AD25="","",COUNT(Z26,AD26)) -> 1 | AH26: =SUM(Z26:AE26)+AF26*Y26 -> 344 | AJ26: =IF(AD25="","",AH26/Y26*180) -> 344 | AK26: =IF(AB25="w",180,AB25/Y26*180)+IF(AB27="w",180,AB27/Y26*180) -> 255 | AL26: =AF26*10000000+AJ26*AF10025*10000000+AJ26*1000-AK26 -> 10343745 | AM26: =IF(AD25="","",RANK(AL25:AL27,AL25:AL27,0)) -> 2 | AO26: =$A$6 -> WRC | AQ26: =【進行】結果入力表!I67 -> 末岡 | AS26: =【準備】登録!L12 -> 180 | AT26: =IF(【進行】結果入力表!G67="","",【進行】結果入力表!G67) -> 92 | AX26: =IF(【進行】結果入力表!F75="","",【進行】結果入力表!F75) -> w | AZ26: =IF(AX25="","",COUNTIF(AT26:AY26,"w")) -> 1 | BA26: =IF(AX25="","",COUNT(AT26,AX26)) -> 1 | BB26: =SUM(AT26:AY26)+AZ26*AS26 -> 272 | BD26: =IF(AX25="","",BB26/AS26*180) -> 272 | BE26: =IF(AV25="w",180,AV25/AS26*180)+IF(AV27="w",180,AV27/AS26*180) -> 338 | BF26: =AZ26*10000000+BD26*AZ10025*10000000+BD26*1000-BE26 -> 10271662 | BG26: =IF(AX25="","",RANK(BF25:BF27,BF25:BF27,0)) -> 2
A27: =$A$7 -> SBC | C27: =【進行】結果入力表!I11 -> 山中 | E27: =【準備】登録!R13 -> 180 | F27: =IF(【進行】結果入力表!G11="","",【進行】結果入力表!G11) -> 141 | H27: =IF(【進行】結果入力表!G27="","",【進行】結果入力表!G27) -> w | L27: =IF(J25="","",COUNTIF(F27:K27,"w")) -> 1 | M27: =IF(J25="","",COUNT(F27,H27)) -> 1 | N27: =SUM(F27:K27)+L27*E27 -> 321 | P27: =IF(J25="","",N27/E27*180) -> 321 | Q27: =IF(J25="w",180,J25/E27*180)+IF(J26="w",180,J26/E27*180) -> 254 | R27: =L27*10000000+P27*L10026*10000000+P27*1000-Q27 -> 10320746 | S27: =IF(J25="","",RANK(R25:R27,R25:R27,0)) -> 2 | U27: =$A$7 -> SBC | W27: =【進行】結果入力表!I35 -> 山中 | Y27: =【準備】登録!R13 -> 180 | Z27: =IF(【進行】結果入力表!G35="","",【進行】結果入力表!G35) -> 169 | AB27: =IF(【進行】結果入力表!G51="","",【進行】結果入力表!G51) -> 75 | AF27: =IF(AD25="","",COUNTIF(Z27:AE27,"w")) -> 0 | AG27: =IF(AD25="","",COUNT(Z27,AB27)) -> 2 | AH27: =SUM(Z27:AE27)+AF27*Y27 -> 244 | AJ27: =IF(AD25="","",AH27/Y27*180) -> 244 | AK27: =IF(AD25="w",180,AD25/Y27*180)+IF(AD26="w",180,AD26/Y27*180) -> 360 | AL27: =AF27*10000000+AJ27*AF10026*10000000+AJ27*1000-AK27 -> 243640 | AM27: =IF(AD25="","",RANK(AL25:AL27,AL25:AL27,0)) -> 3 | AO27: =$A$7 -> SBC | AQ27: =【進行】結果入力表!I59 -> 山中 | AS27: =【準備】登録!R13 -> 180 | AT27: =IF(【進行】結果入力表!G59="","",【進行】結果入力表!G59) -> w | AV27: =IF(【進行】結果入力表!G75="","",【進行】結果入力表!G75) -> 158 | AZ27: =IF(AX25="","",COUNTIF(AT27:AY27,"w")) -> 1 | BA27: =IF(AX25="","",COUNT(AT27,AV27)) -> 1 | BB27: =SUM(AT27:AY27)+AZ27*AS27 -> 338 | BD27: =IF(AX25="","",BB27/AS27*180) -> 338 | BE27: =IF(AX25="w",180,AX25/AS27*180)+IF(AX26="w",180,AX26/AS27*180) -> 267 | BF27: =AZ27*10000000+BD27*AZ10026*10000000+BD27*1000-BE27 -> 10337733 | BG27: =IF(AX25="","",RANK(BF25:BF27,BF25:BF27,0)) -> 1
A29: 6 | C29: Name | E29: =E$4 -> 持点 | F29: =$A$5 -> NRC | H29: =$A$6 -> WRC | J29: =$A$7 -> SBC | L29: W | M29: L | N29: TP | P29: TP | Q29: LP | R29: R_P | S29: R | U29: 6 | W29: Name | Y29: =$E$4 -> 持点 | Z29: =$A$5 -> NRC | AB29: =$A$6 -> WRC | AD29: =$A$7 -> SBC | AF29: W | AG29: L | AH29: TP | AJ29: TP | AK29: LP | AL29: R_P | AM29: R | AO29: 6 | AQ29: Name | AS29: =$E$4 -> 持点 | AT29: =$A$5 -> NRC | AV29: =$A$6 -> WRC | AX29: =$A$7 -> SBC | AZ29: W | BA29: L | BB29: TP | BD29: TP | BE29: LP | BF29: R_P | BG29: R
A30: =$A$5 -> NRC | C30: =【進行】結果入力表!D12 -> 岩本 | E30: =【準備】登録!U11 -> 180 | H30: =IF(【進行】結果入力表!F20="","",【進行】結果入力表!F20) -> w | J30: =IF(【進行】結果入力表!F12="","",【進行】結果入力表!F12) -> w | L30: =IF(J30="","",COUNTIF(F30:K30,"w")) -> 2 | M30: =IF(J30="","",COUNT(H30,J30)) -> 0 | N30: =SUM(F30:K30)+L30*E30 -> 360 | P30: =IF(J30="","",N30/E30*180) -> 360 | Q30: =IF(F31="w",180,F31/E30*180)+IF(F32="w",180,F32/E30*180) -> 277 | R30: =L30*10000000+P30*L10029*10000000+P30*1000-Q30 -> 20359723 | S30: =IF(J30="","",RANK(R30:R32,R30:R32,0)) -> 1 | U30: =$A$5 -> NRC | W30: =【進行】結果入力表!D44 -> 白戸 | Y30: =【準備】登録!O11 -> 180 | AB30: =IF(【進行】結果入力表!F44="","",【進行】結果入力表!F44) -> w | AD30: =IF(【進行】結果入力表!F36="","",【進行】結果入力表!F36) -> w | AF30: =IF(AD30="","",COUNTIF(Z30:AE30,"w")) -> 2 | AG30: =IF(AD30="","",COUNT(AB30,AD30)) -> 0 | AH30: =SUM(Z30:AE30)+AF30*Y30 -> 360 | AJ30: =IF(AD30="","",AH30/Y30*180) -> 360 | AK30: =IF(Z31="w",180,Z31/Y30*180)+IF(Z32="w",180,Z32/Y30*180) -> 105 | AL30: =AF30*10000000+AJ30*AF10029*10000000+AJ30*1000-AK30 -> 20359895 | AM30: =IF(AD30="","",RANK(AL30:AL32,AL30:AL32,0)) -> 1 | AO30: =$A$5 -> NRC | AQ30: =【進行】結果入力表!D68 -> 山田 | AS30: =【準備】登録!I11 -> 180 | AV30: =IF(【進行】結果入力表!F68="","",【進行】結果入力表!F68) -> 141 | AX30: =IF(【進行】結果入力表!F60="","",【進行】結果入力表!F60) -> w | AZ30: =IF(AX30="","",COUNTIF(AT30:AY30,"w")) -> 1 | BA30: =IF(AX30="","",COUNT(AV30,AX30)) -> 1 | BB30: =SUM(AT30:AY30)+AZ30*AS30 -> 321 | BD30: =IF(AX30="","",BB30/AS30*180) -> 321 | BE30: =IF(AT31="w",180,AT31/AS30*180)+IF(AT32="w",180,AT32/AS30*180) -> 242 | BF30: =AZ30*10000000+BD30*AZ10029*10000000+BD30*1000-BE30 -> 10320758 | BG30: =IF(AX30="","",RANK(BF30:BF32,BF30:BF32,0)) -> 2
A31: =$A$6 -> WRC | C31: =【進行】結果入力表!I20 -> 中本 | E31: =【準備】登録!U12 -> 180 | F31: =IF(【進行】結果入力表!G20="","",【進行】結果入力表!G20) -> 113 | J31: =IF(【進行】結果入力表!F28="","",【進行】結果入力表!F28) -> w | L31: =IF(J30="","",COUNTIF(F31:K31,"w")) -> 1 | M31: =IF(J30="","",COUNT(F31,J31)) -> 1 | N31: =SUM(F31:K31)+L31*E31 -> 293 | P31: =IF(J30="","",N31/E31*180) -> 293 | Q31: =IF(H30="w",180,H30/E31*180)+IF(H32="w",180,H32/E31*180) -> 300 | R31: =L31*10000000+P31*L10030*10000000+P31*1000-Q31 -> 10292700 | S31: =IF(J30="","",RANK(R30:R32,R30:R32,0)) -> 2 | U31: =$A$6 -> WRC | W31: =【進行】結果入力表!I44 -> 大迫 | Y31: =【準備】登録!R12 -> 180 | Z31: =IF(【進行】結果入力表!G44="","",【進行】結果入力表!G44) -> 48 | AD31: =IF(【進行】結果入力表!F52="","",【進行】結果入力表!F52) -> 142 | AF31: =IF(AD30="","",COUNTIF(Z31:AE31,"w")) -> 0 | AG31: =IF(AD30="","",COUNT(Z31,AD31)) -> 2 | AH31: =SUM(Z31:AE31)+AF31*Y31 -> 190 | AJ31: =IF(AD30="","",AH31/Y31*180) -> 190 | AK31: =IF(AB30="w",180,AB30/Y31*180)+IF(AB32="w",180,AB32/Y31*180) -> 360 | AL31: =AF31*10000000+AJ31*AF10030*10000000+AJ31*1000-AK31 -> 189640 | AM31: =IF(AD30="","",RANK(AL30:AL32,AL30:AL32,0)) -> 3 | AO31: =$A$6 -> WRC | AQ31: =【進行】結果入力表!I68 -> 杉本 | AS31: =【準備】登録!O12 -> 180 | AT31: =IF(【進行】結果入力表!G68="","",【進行】結果入力表!G68) -> w | AX31: =IF(【進行】結果入力表!F76="","",【進行】結果入力表!F76) -> w | AZ31: =IF(AX30="","",COUNTIF(AT31:AY31,"w")) -> 2 | BA31: =IF(AX30="","",COUNT(AT31,AX31)) -> 0 | BB31: =SUM(AT31:AY31)+AZ31*AS31 -> 360 | BD31: =IF(AX30="","",BB31/AS31*180) -> 360 | BE31: =IF(AV30="w",180,AV30/AS31*180)+IF(AV32="w",180,AV32/AS31*180) -> 236 | BF31: =AZ31*10000000+BD31*AZ10030*10000000+BD31*1000-BE31 -> 20359764 | BG31: =IF(AX30="","",RANK(BF30:BF32,BF30:BF32,0)) -> 1
A32: =$A$7 -> SBC | C32: =【進行】結果入力表!I12 -> 柳川 | E32: =【準備】登録!U13 -> 180 | F32: =IF(【進行】結果入力表!G12="","",【進行】結果入力表!G12) -> 164 | H32: =IF(【進行】結果入力表!G28="","",【進行】結果入力表!G28) -> 120 | L32: =IF(J30="","",COUNTIF(F32:K32,"w")) -> 0 | M32: =IF(J30="","",COUNT(F32,H32)) -> 2 | N32: =SUM(F32:K32)+L32*E32 -> 284 | P32: =IF(J30="","",N32/E32*180) -> 284 | Q32: =IF(J30="w",180,J30/E32*180)+IF(J31="w",180,J31/E32*180) -> 360 | R32: =L32*10000000+P32*L10031*10000000+P32*1000-Q32 -> 283640 | S32: =IF(J30="","",RANK(R30:R32,R30:R32,0)) -> 3 | U32: =$A$7 -> SBC | W32: =【進行】結果入力表!I36 -> 柳川 | Y32: =【準備】登録!U13 -> 180 | Z32: =IF(【進行】結果入力表!G36="","",【進行】結果入力表!G36) -> 57 | AB32: =IF(【進行】結果入力表!G52="","",【進行】結果入力表!G52) -> w | AF32: =IF(AD30="","",COUNTIF(Z32:AE32,"w")) -> 1 | AG32: =IF(AD30="","",COUNT(Z32,AB32)) -> 1 | AH32: =SUM(Z32:AE32)+AF32*Y32 -> 237 | AJ32: =IF(AD30="","",AH32/Y32*180) -> 237 | AK32: =IF(AD30="w",180,AD30/Y32*180)+IF(AD31="w",180,AD31/Y32*180) -> 322 | AL32: =AF32*10000000+AJ32*AF10031*10000000+AJ32*1000-AK32 -> 10236678 | AM32: =IF(AD30="","",RANK(AL30:AL32,AL30:AL32,0)) -> 2 | AO32: =$A$7 -> SBC | AQ32: =【進行】結果入力表!I60 -> 柳川 | AS32: =【準備】登録!U13 -> 180 | AT32: =IF(【進行】結果入力表!G60="","",【進行】結果入力表!G60) -> 62 | AV32: =IF(【進行】結果入力表!G76="","",【進行】結果入力表!G76) -> 95 | AZ32: =IF(AX30="","",COUNTIF(AT32:AY32,"w")) -> 0 | BA32: =IF(AX30="","",COUNT(AT32,AV32)) -> 2 | BB32: =SUM(AT32:AY32)+AZ32*AS32 -> 157 | BD32: =IF(AX30="","",BB32/AS32*180) -> 157 | BE32: =IF(AX30="w",180,AX30/AS32*180)+IF(AX31="w",180,AX31/AS32*180) -> 360 | BF32: =AZ32*10000000+BD32*AZ10031*10000000+BD32*1000-BE32 -> 156640 | BG32: =IF(AX30="","",RANK(BF30:BF32,BF30:BF32,0)) -> 3
A34: 7 | C34: Name | E34: =E$4 -> 持点 | F34: =$A$5 -> NRC | H34: =$A$6 -> WRC | J34: =$A$7 -> SBC | L34: W | M34: L | N34: TP | P34: TP | Q34: LP | R34: R_P | S34: R | U34: 7 | W34: Name | Y34: =$E$4 -> 持点 | Z34: =$A$5 -> NRC | AB34: =$A$6 -> WRC | AD34: =$A$7 -> SBC | AF34: W | AG34: L | AH34: TP | AJ34: TP | AK34: LP | AL34: R_P | AM34: R | AO34: 7 | AQ34: Name | AS34: =$E$4 -> 持点 | AT34: =$A$5 -> NRC | AV34: =$A$6 -> WRC | AX34: =$A$7 -> SBC | AZ34: W | BA34: L | BB34: TP | BD34: TP | BE34: LP | BF34: R_P | BG34: R
A35: =$A$5 -> NRC | C35: =【進行】結果入力表!D13 -> 白戸 | E35: =【準備】登録!X11 -> 140 | H35: =IF(【進行】結果入力表!F21="","",【進行】結果入力表!F21) -> w | J35: =IF(【進行】結果入力表!F13="","",【進行】結果入力表!F13) -> w | L35: =IF(J35="","",COUNTIF(F35:K35,"w")) -> 2 | M35: =IF(J35="","",COUNT(H35,J35)) -> 0 | N35: =SUM(F35:K35)+L35*E35 -> 280 | P35: =IF(J35="","",N35/E35*180) -> 360 | Q35: =IF(F36="w",180,F36/E35*180)+IF(F37="w",180,F37/E35*180) -> 195.4285714 | R35: =L35*10000000+P35*L10034*10000000+P35*1000-Q35 -> 20359804.57 | S35: =IF(J35="","",RANK(R35:R37,R35:R37,0)) -> 1 | U35: =$A$5 -> NRC | W35: =【進行】結果入力表!D45 -> 植田 | Y35: =【準備】登録!R11 -> 180 | AB35: =IF(【進行】結果入力表!F45="","",【進行】結果入力表!F45) -> w | AD35: =IF(【進行】結果入力表!F37="","",【進行】結果入力表!F37) -> w | AF35: =IF(AD35="","",COUNTIF(Z35:AE35,"w")) -> 2 | AG35: =IF(AD35="","",COUNT(AB35,AD35)) -> 0 | AH35: =SUM(Z35:AE35)+AF35*Y35 -> 360 | AJ35: =IF(AD35="","",AH35/Y35*180) -> 360 | AK35: =IF(Z36="w",180,Z36/Y35*180)+IF(Z37="w",180,Z37/Y35*180) -> 243 | AL35: =AF35*10000000+AJ35*AF10034*10000000+AJ35*1000-AK35 -> 20359757 | AM35: =IF(AD35="","",RANK(AL35:AL37,AL35:AL37,0)) -> 1 | AO35: =$A$5 -> NRC | AQ35: =【進行】結果入力表!D69 -> 吉向 | AS35: =【準備】登録!L11 -> 180 | AV35: =IF(【進行】結果入力表!F69="","",【進行】結果入力表!F69) -> w | AX35: =IF(【進行】結果入力表!F61="","",【進行】結果入力表!F61) -> w | AZ35: =IF(AX35="","",COUNTIF(AT35:AY35,"w")) -> 2 | BA35: =IF(AX35="","",COUNT(AV35,AX35)) -> 0 | BB35: =SUM(AT35:AY35)+AZ35*AS35 -> 360 | BD35: =IF(AX35="","",BB35/AS35*180) -> 360 | BE35: =IF(AT36="w",180,AT36/AS35*180)+IF(AT37="w",180,AT37/AS35*180) -> 217 | BF35: =AZ35*10000000+BD35*AZ10034*10000000+BD35*1000-BE35 -> 20359783 | BG35: =IF(AX35="","",RANK(BF35:BF37,BF35:BF37,0)) -> 1
A36: =$A$6 -> WRC | C36: =【進行】結果入力表!I21 -> 松房 | E36: =【準備】登録!X12 -> 140 | F36: =IF(【進行】結果入力表!G21="","",【進行】結果入力表!G21) -> 99 | J36: =IF(【進行】結果入力表!F29="","",【進行】結果入力表!F29) -> w | L36: =IF(J35="","",COUNTIF(F36:K36,"w")) -> 1 | M36: =IF(J35="","",COUNT(F36,J36)) -> 1 | N36: =SUM(F36:K36)+L36*E36 -> 239 | P36: =IF(J35="","",N36/E36*180) -> 307.2857143 | Q36: =IF(H35="w",180,H35/E36*180)+IF(H37="w",180,H37/E36*180) -> 243 | R36: =L36*10000000+P36*L10035*10000000+P36*1000-Q36 -> 10307042.71 | S36: =IF(J35="","",RANK(R35:R37,R35:R37,0)) -> 2 | U36: =$A$6 -> WRC | W36: =【進行】結果入力表!I45 -> 中本 | Y36: =【準備】登録!U12 -> 180 | Z36: =IF(【進行】結果入力表!G45="","",【進行】結果入力表!G45) -> 141 | AD36: =IF(【進行】結果入力表!F53="","",【進行】結果入力表!F53) -> 156 | AF36: =IF(AD35="","",COUNTIF(Z36:AE36,"w")) -> 0 | AG36: =IF(AD35="","",COUNT(Z36,AD36)) -> 2 | AH36: =SUM(Z36:AE36)+AF36*Y36 -> 297 | AJ36: =IF(AD35="","",AH36/Y36*180) -> 297 | AK36: =IF(AB35="w",180,AB35/Y36*180)+IF(AB37="w",180,AB37/Y36*180) -> 360 | AL36: =AF36*10000000+AJ36*AF10035*10000000+AJ36*1000-AK36 -> 296640 | AM36: =IF(AD35="","",RANK(AL35:AL37,AL35:AL37,0)) -> 3 | AO36: =$A$6 -> WRC | AQ36: =【進行】結果入力表!I69 -> 大迫 | AS36: =【準備】登録!R12 -> 180 | AT36: =IF(【進行】結果入力表!G69="","",【進行】結果入力表!G69) -> 165 | AX36: =IF(【進行】結果入力表!F77="","",【進行】結果入力表!F77) -> 52 | AZ36: =IF(AX35="","",COUNTIF(AT36:AY36,"w")) -> 0 | BA36: =IF(AX35="","",COUNT(AT36,AX36)) -> 2 | BB36: =SUM(AT36:AY36)+AZ36*AS36 -> 217 | BD36: =IF(AX35="","",BB36/AS36*180) -> 217 | BE36: =IF(AV35="w",180,AV35/AS36*180)+IF(AV37="w",180,AV37/AS36*180) -> 360 | BF36: =AZ36*10000000+BD36*AZ10035*10000000+BD36*1000-BE36 -> 216640 | BG36: =IF(AX35="","",RANK(BF35:BF37,BF35:BF37,0)) -> 3
A37: =$A$7 -> SBC | C37: =【進行】結果入力表!I13 -> 大橋 | E37: =【準備】登録!X13 -> 140 | F37: =IF(【進行】結果入力表!G13="","",【進行】結果入力表!G13) -> 53 | H37: =IF(【進行】結果入力表!G29="","",【進行】結果入力表!G29) -> 49 | L37: =IF(J35="","",COUNTIF(F37:K37,"w")) -> 0 | M37: =IF(J35="","",COUNT(F37,H37)) -> 2 | N37: =SUM(F37:K37)+L37*E37 -> 102 | P37: =IF(J35="","",N37/E37*180) -> 131.1428571 | Q37: =IF(J35="w",180,J35/E37*180)+IF(J36="w",180,J36/E37*180) -> 360 | R37: =L37*10000000+P37*L10036*10000000+P37*1000-Q37 -> 130782.8571 | S37: =IF(J35="","",RANK(R35:R37,R35:R37,0)) -> 3 | U37: =$A$7 -> SBC | W37: =【進行】結果入力表!I37 -> 大橋 | Y37: =【準備】登録!X13 -> 140 | Z37: =IF(【進行】結果入力表!G37="","",【進行】結果入力表!G37) -> 102 | AB37: =IF(【進行】結果入力表!G53="","",【進行】結果入力表!G53) -> w | AF37: =IF(AD35="","",COUNTIF(Z37:AE37,"w")) -> 1 | AG37: =IF(AD35="","",COUNT(Z37,AB37)) -> 1 | AH37: =SUM(Z37:AE37)+AF37*Y37 -> 242 | AJ37: =IF(AD35="","",AH37/Y37*180) -> 311.1428571 | AK37: =IF(AD35="w",180,AD35/Y37*180)+IF(AD36="w",180,AD36/Y37*180) -> 380.5714286 | AL37: =AF37*10000000+AJ37*AF10036*10000000+AJ37*1000-AK37 -> 10310762.29 | AM37: =IF(AD35="","",RANK(AL35:AL37,AL35:AL37,0)) -> 2 | AO37: =$A$7 -> SBC | AQ37: =【進行】結果入力表!I61 -> 大橋 | AS37: =【準備】登録!X13 -> 140 | AT37: =IF(【進行】結果入力表!G61="","",【進行】結果入力表!G61) -> 52 | AV37: =IF(【進行】結果入力表!G77="","",【進行】結果入力表!G77) -> w | AZ37: =IF(AX35="","",COUNTIF(AT37:AY37,"w")) -> 1 | BA37: =IF(AX35="","",COUNT(AT37,AV37)) -> 1 | BB37: =SUM(AT37:AY37)+AZ37*AS37 -> 192 | BD37: =IF(AX35="","",BB37/AS37*180) -> 246.8571429 | BE37: =IF(AX35="w",180,AX35/AS37*180)+IF(AX36="w",180,AX36/AS37*180) -> 246.8571429 | BF37: =AZ37*10000000+BD37*AZ10036*10000000+BD37*1000-BE37 -> 10246610.29 | BG37: =IF(AX35="","",RANK(BF35:BF37,BF35:BF37,0)) -> 2
A39: =IF(【準備】登録!Y11="","",【準備】登録!Y9) ->  | C39: Name | E39: =E$4 -> 持点 | F39: =$A$40 ->  | H39: =$A$41 ->  | J39: =$A$42 ->  | L39: W | M39: L | N39: TP | P39: TP | Q39: LP | R39: R_P | S39: R | U39: =A39 ->  | W39: Name | Y39: =$E$4 -> 持点 | Z39: =$A$40 ->  | AB39: =$A$41 ->  | AD39: =$A$42 ->  | AF39: W | AG39: L | AH39: TP | AJ39: TP | AK39: LP | AL39: R_P | AM39: R | AO39: =A39 ->  | AQ39: Name | AS39: =$E$4 -> 持点 | AT39: =$A$40 ->  | AV39: =$A$41 ->  | AX39: =$A$42 ->  | AZ39: W | BA39: L | BB39: TP | BD39: TP | BE39: LP | BF39: R_P | BG39: R
A40: =IF(【準備】登録!Y11="","",$A$5) ->  | C40: =【進行】結果入力表!D14 ->  | E40: =【準備】登録!AA11 -> 180 | H40: =IF(【進行】結果入力表!F22="","",【進行】結果入力表!F22) ->  | J40: =IF(【進行】結果入力表!F14="","",【進行】結果入力表!F14) ->  | L40: =IF(J40="","",COUNTIF(F40:K40,"w")) ->  | M40: =IF(J40="","",COUNT(H40,J40)) ->  | N40: =SUM(F40:K40)+L40*E40 ->  | P40: =IF(J40="","",N40/E40*180) ->  | Q40: =IF(F41="w",180,F41/E40*180)+IF(F42="w",180,F42/E40*180) ->  | R40: =L40*10000000+P40*L10039*10000000+P40*1000-Q40 ->  | S40: =IF(J40="","",RANK(R40:R42,R40:R42,0)) ->  | U40: =$A40 ->  | W40: =【進行】結果入力表!D46 ->  | Y40: =【準備】登録!U11 -> 180 | AB40: =IF(【進行】結果入力表!F46="","",【進行】結果入力表!F46) ->  | AD40: =IF(【進行】結果入力表!F38="","",【進行】結果入力表!F38) ->  | AF40: =IF(AD40="","",COUNTIF(Z40:AE40,"w")) ->  | AG40: =IF(AD40="","",COUNT(AB40,AD40)) ->  | AH40: =SUM(Z40:AE40)+AF40*Y40 ->  | AJ40: =IF(AD40="","",AH40/Y40*180) ->  | AK40: =IF(Z41="w",180,Z41/Y40*180)+IF(Z42="w",180,Z42/Y40*180) ->  | AL40: =AF40*10000000+AJ40*AF10039*10000000+AJ40*1000-AK40 ->  | AM40: =IF(AD40="","",RANK(AL40:AL42,AL40:AL42,0)) ->  | AO40: =$A40 ->  | AQ40: =【進行】結果入力表!D70 ->  | AS40: =【準備】登録!O11 -> 180 | AV40: =IF(【進行】結果入力表!F70="","",【進行】結果入力表!F70) ->  | AX40: =IF(【進行】結果入力表!F62="","",【進行】結果入力表!F62) ->  | AZ40: =IF(AX40="","",COUNTIF(AT40:AY40,"w")) ->  | BA40: =IF(AX40="","",COUNT(AV40,AX40)) ->  | BB40: =SUM(AT40:AY40)+AZ40*AS40 ->  | BD40: =IF(AX40="","",BB40/AS40*180) ->  | BE40: =IF(AT41="w",180,AT41/AS40*180)+IF(AT42="w",180,AT42/AS40*180) ->  | BF40: =AZ40*10000000+BD40*AZ10039*10000000+BD40*1000-BE40 ->  | BG40: =IF(AX40="","",RANK(BF40:BF42,BF40:BF42,0)) -> 
A41: =IF(【準備】登録!Y12="","",$A$6) ->  | C41: =【進行】結果入力表!I22 ->  | E41: =【準備】登録!AA12 -> 140 | F41: =IF(【進行】結果入力表!G22="","",【進行】結果入力表!G22) ->  | J41: =IF(【進行】結果入力表!F30="","",【進行】結果入力表!F30) ->  | L41: =IF(J40="","",COUNTIF(F41:K41,"w")) ->  | M41: =IF(J40="","",COUNT(F41,J41)) ->  | N41: =SUM(F41:K41)+L41*E41 ->  | P41: =IF(J40="","",N41/E41*180) ->  | Q41: =IF(H40="w",180,H40/E41*180)+IF(H42="w",180,H42/E41*180) ->  | R41: =L41*10000000+P41*L10040*10000000+P41*1000-Q41 ->  | S41: =IF(J40="","",RANK(R40:R42,R40:R42,0)) ->  | U41: =$A41 ->  | W41: =【進行】結果入力表!I46 ->  | Y41: =【準備】登録!X12 -> 140 | Z41: =IF(【進行】結果入力表!G46="","",【進行】結果入力表!G46) ->  | AD41: =IF(【進行】結果入力表!F54="","",【進行】結果入力表!F54) ->  | AF41: =IF(AD40="","",COUNTIF(Z41:AE41,"w")) ->  | AG41: =IF(AD40="","",COUNT(Z41,AD41)) ->  | AH41: =SUM(Z41:AE41)+AF41*Y41 ->  | AJ41: =IF(AD40="","",AH41/Y41*180) ->  | AK41: =IF(AB40="w",180,AB40/Y41*180)+IF(AB42="w",180,AB42/Y41*180) ->  | AL41: =AF41*10000000+AJ41*AF10040*10000000+AJ41*1000-AK41 ->  | AM41: =IF(AD40="","",RANK(AL40:AL42,AL40:AL42,0)) ->  | AO41: =$A41 ->  | AQ41: =【進行】結果入力表!I70 ->  | AS41: =【準備】登録!U12 -> 180 | AT41: =IF(【進行】結果入力表!G70="","",【進行】結果入力表!G70) ->  | AX41: =IF(【進行】結果入力表!F78="","",【進行】結果入力表!F78) ->  | AZ41: =IF(AX40="","",COUNTIF(AT41:AY41,"w")) ->  | BA41: =IF(AX40="","",COUNT(AT41,AX41)) ->  | BB41: =SUM(AT41:AY41)+AZ41*AS41 ->  | BD41: =IF(AX40="","",BB41/AS41*180) ->  | BE41: =IF(AV40="w",180,AV40/AS41*180)+IF(AV42="w",180,AV42/AS41*180) ->  | BF41: =AZ41*10000000+BD41*AZ10040*10000000+BD41*1000-BE41 ->  | BG41: =IF(AX40="","",RANK(BF40:BF42,BF40:BF42,0)) -> 
A42: =IF(【準備】登録!Y13="","",$A$7) ->  | C42: =【進行】結果入力表!I14 ->  | E42: =【準備】登録!AA13 -> 140 | F42: =IF(【進行】結果入力表!G14="","",【進行】結果入力表!G14) ->  | H42: =IF(C40="","",【進行】結果入力表!G30) ->  | L42: =IF(J40="","",COUNTIF(F42:K42,"w")) ->  | M42: =IF(J40="","",COUNT(F42,H42)) ->  | N42: =SUM(F42:K42)+L42*E42 ->  | P42: =IF(J40="","",N42/E42*180) ->  | Q42: =IF(J40="w",180,J40/E42*180)+IF(J41="w",180,J41/E42*180) ->  | R42: =L42*10000000+P42*L10041*10000000+P42*1000-Q42 ->  | S42: =IF(J40="","",RANK(R40:R42,R40:R42,0)) ->  | U42: =$A42 ->  | W42: =【進行】結果入力表!I38 ->  | Y42: =【準備】登録!AA13 -> 140 | Z42: =IF(【進行】結果入力表!G38="","",【進行】結果入力表!G38) ->  | AB42: =IF(【進行】結果入力表!G54="","",【進行】結果入力表!G54) ->  | AF42: =IF(AD40="","",COUNTIF(Z42:AE42,"w")) ->  | AG42: =IF(AD40="","",COUNT(Z42,AB42)) ->  | AH42: =SUM(Z42:AE42)+AF42*Y42 ->  | AJ42: =IF(AD40="","",AH42/Y42*180) ->  | AK42: =IF(AD40="w",180,AD40/Y42*180)+IF(AD41="w",180,AD41/Y42*180) ->  | AL42: =AF42*10000000+AJ42*AF10041*10000000+AJ42*1000-AK42 ->  | AM42: =IF(AD40="","",RANK(AL40:AL42,AL40:AL42,0)) ->  | AO42: =$A42 ->  | AQ42: =【進行】結果入力表!I62 ->  | AS42: =【準備】登録!AA13 -> 140 | AT42: =IF(【進行】結果入力表!G62="","",【進行】結果入力表!G62) ->  | AV42: =IF(【進行】結果入力表!G78="","",【進行】結果入力表!G78) ->  | AZ42: =IF(AX40="","",COUNTIF(AT42:AY42,"w")) ->  | BA42: =IF(AX40="","",COUNT(AT42,AV42)) ->  | BB42: =SUM(AT42:AY42)+AZ42*AS42 ->  | BD42: =IF(AX40="","",BB42/AS42*180) ->  | BE42: =IF(AX40="w",180,AX40/AS42*180)+IF(AX41="w",180,AX41/AS42*180) ->  | BF42: =AZ42*10000000+BD42*AZ10041*10000000+BD42*1000-BE42 ->  | BG42: =IF(AX40="","",RANK(BF40:BF42,BF40:BF42,0)) -> 
B43: ※ | C43: TPの数字は、ハンデによる換算後の得点を示す。

Sheet 【結果】総合結果表
B1: =【結果】個人成績表!A1 -> 第16回 和奈滋対抗戦 (奈良；キングスポット)
AK4: =【準備】登録!D4 -> 2018-11-18
B6: MVP | F6: 吉向 翔平 | N6: NRC ６勝０敗 | Y6: VP | AC6: 杉本 博章 | AG6: WRC ５勝１敗
B8: HR | F8: 末岡 修 | N8: WRC 135点 | Y8: VP | AC8: 林 秀忠 | AG8: SBC ３勝３敗
E12: =B16 -> NRC | K12: =B22 -> WRC | Q12: =B28 -> SBC | W12: W | AA12: L | AE12: TP | AK12: RK
AI13: (TP) | AJ13: TP
E14: W | H14: L | K14: W | N14: L | Q14: W | T14: L
B16: =IF(【準備】登録!B11="","",【準備】登録!B11) -> NRC | K16: =IF(【結果】個人成績表!R14="","",【結果】個人成績表!R14-Q16) -> 5 | N16: =IF(【結果】個人成績表!S14="","",【結果】個人成績表!S14-T16) -> 2 | Q16: =【結果】個人成績表!H14 -> 6 | T16: =【結果】個人成績表!I14 -> 1 | W16: =IF(Q16="","",SUM(Q16:S21,K16:M21)) -> 27 | AA16: =IF(T16="","",SUM(T16:V21,N16:P21)) -> 15 | AE16: =IF(【結果】個人成績表!BH14="","","("&【結果】個人成績表!BH14&")") -> (6229) | AI16: =【結果】個人成績表!BH14 -> 6229 | AJ16: =【結果】個人成績表!CE14 -> 6450.142857 | AK16: =IF(AE18="","",RANK(W$16:W$33,W$16:W$33,0)) -> 1
K18: =IF(【結果】個人成績表!AL14="","",【結果】個人成績表!AL14-【結果】個人成績表!AB14) -> 5 | N18: =IF(【結果】個人成績表!AM14="","",【結果】個人成績表!AM14-【結果】個人成績表!AC14) -> 2 | Q18: =IF(【結果】個人成績表!AB14="","",【結果】個人成績表!AB14-【結果】個人成績表!R14) -> 4 | T18: =IF(【結果】個人成績表!AC14="","",【結果】個人成績表!AC14-【結果】個人成績表!S14) -> 3 | AE18: =IF(【結果】個人成績表!CE14=0,"",【結果】個人成績表!CE14) -> 6450.142857
K20: =IF(【結果】個人成績表!BF14="","",【結果】個人成績表!BF14-【結果】個人成績表!AV14) -> 2 | N20: =IF(【結果】個人成績表!BG14="","",【結果】個人成績表!BG14-【結果】個人成績表!AW14) -> 5 | Q20: =IF(【結果】個人成績表!AV14="","",【結果】個人成績表!AV14-【結果】個人成績表!AL14) -> 5 | T20: =IF(【結果】個人成績表!AW14="","",【結果】個人成績表!AW14-【結果】個人成績表!AM14) -> 2
B22: =IF(【準備】登録!B12="","",【準備】登録!B12) -> WRC | E22: =N16 -> 2 | H22: =K16 -> 5 | Q22: =IF(【結果】個人成績表!R24="","",【結果】個人成績表!R24-【結果】個人成績表!H24) -> 5 | T22: =IF(【結果】個人成績表!S24="","",【結果】個人成績表!S24-【結果】個人成績表!I24) -> 2 | W22: =IF(E22="","",SUM(E22:G27,Q22:S27)) -> 21 | AA22: =IF(H22="","",SUM(H22:J27,T22:V27)) -> 21 | AE22: =IF(【結果】個人成績表!BH24="","","("&【結果】個人成績表!BH24&")") -> (5916) | AI22: =【結果】個人成績表!BH24 -> 5916 | AJ22: =【結果】個人成績表!CE24 -> 6144.285714 | AK22: =IF(AE24="","",RANK(W$16:W$33,W$16:W$33,0)) -> 2
E24: =N18 -> 2 | H24: =K18 -> 5 | Q24: =IF(【結果】個人成績表!AL24="","",【結果】個人成績表!AL24-【結果】個人成績表!AB24) -> 4 | T24: =IF(【結果】個人成績表!AM24="","",【結果】個人成績表!AM24-【結果】個人成績表!AC24) -> 3 | AE24: =IF(【結果】個人成績表!CE24=0,"",【結果】個人成績表!CE24) -> 6144.285714
E26: =N20 -> 5 | H26: =K20 -> 2 | Q26: =IF(【結果】個人成績表!BF24="","",【結果】個人成績表!BF24-【結果】個人成績表!AV24) -> 3 | T26: =IF(【結果】個人成績表!BG24="","",【結果】個人成績表!BG24-【結果】個人成績表!AW24) -> 4
B28: =IF(【準備】登録!B13="","",【準備】登録!B13) -> SBC | E28: =【結果】個人成績表!H34 -> 1 | H28: =【結果】個人成績表!I34 -> 6 | K28: =T22 -> 2 | N28: =Q22 -> 5 | W28: =IF(E28="","",SUM(E28:G33,K28:M33)) -> 15 | AA28: =IF(H28="","",SUM(H28:J33,N28:P33)) -> 27 | AE28: =IF(【結果】個人成績表!BH34="","","("&【結果】個人成績表!BH34&")") -> (5313) | AI28: =【結果】個人成績表!BH34 -> 5313 | AJ28: =【結果】個人成績表!CE34 -> 5466.142857 | AK28: =IF(AE30="","",RANK(W$16:W$33,W$16:W$33,0)) -> 3
E30: =T18 -> 3 | H30: =Q18 -> 4 | K30: =T24 -> 3 | N30: =Q24 -> 4 | AE30: =IF(【結果】個人成績表!CE34=0,"",【結果】個人成績表!CE34) -> 5466.142857
E32: =T20 -> 2 | H32: =Q20 -> 5 | K32: =T26 -> 4 | N32: =Q26 -> 3
D34: ※ | E34: TPの上段（ ）内の数字は、ハンデによる換算をしていない得点を示す。
